{"text_format":"1","workbook":"xlsx","n_sheets":31,"sheets":["Инструкция","Справочная информация","Лог обновления","Титульный","Список МО","ХВС доступ","Ссылки на публикации","Комментарии","Проверка","AllSheetsInThisWorkbook","TEHSHEET","et_union_hor","et_union_vert","modInfo","modReestr","modfrmReestr","modUpdTemplMain","REESTR_ORG","modClassifierValidate","modProv","modHyp","modList00","modList01","modList02","modList03","modfrmDateChoose","modComm","modThisWorkbook","REESTR_MO","modfrmReestrMR","modfrmCheckUpdates"],"not_rendered":{"charts":0,"images":20,"macros":1,"external_links":0,"defined_names":95,"comments":0,"pivot_tables":0},"unopened":[],"bounds":{"document_bytes":16777216,"sheet_cells":100000,"rows_first":2000,"rows_last":500,"rows_between":2000,"halvings":0,"cell_chars":16384,"cell_head_chars":4096},"cells_cut":0,"cells_raw":0,"read":"whole","date_system":"1900"}

{"sheet":"Инструкция","index":0,"n_rows":110,"n_cols":27,"rows_kept":110,"cut":false,"hidden":false,"merged":[[90,4,90,6],[90,7,90,23],[91,7,91,23],[105,4,105,23],[107,5,107,18],[109,5,109,23],[60,7,60,23],[88,4,88,6],[88,7,88,23],[89,4,89,6],[89,7,89,23],[77,4,77,23],[69,4,69,23],[78,4,78,23],[79,4,79,23],[70,4,70,23],[71,5,71,23],[72,5,72,23],[73,5,73,23],[74,5,74,23],[75,5,75,23],[57,4,57,6],[57,7,57,23],[58,4,58,6],[58,7,58,23],[59,4,59,6],[59,7,59,23],[45,4,56,23],[22,15,22,22],[1,1,1,6],[2,1,2,2],[4,1,4,24],[6,4,18,23],[20,5,20,12],[20,15,20,23],[21,5,21,12],[21,15,21,23],[34,4,38,23],[39,4,39,23],[40,4,44,23],[83,4,83,23],[84,4,84,23],[87,4,87,7],[87,8,87,23],[80,4,80,23],[86,4,86,23],[82,4,82,23],[81,4,81,23]]}
[null,null,null,null,null,null,null,null,null,null,null,null,null,null,null,null,null,null,null,null,null,null,null,null,null,null," (требуется обновление)"]
[null,{"$f":"\"Код шаблона: \" & GetCode()","v":"Код шаблона: JKH.OPEN.INFO.QUARTER.HVS"}]
[null,{"$f":"\"Версия \" & GetVersion()","v":"Версия 6.0"}]
[]
[null,{"$f":"\"Показатели, подлежащие раскрытию в сфере \"&TSphere_full&\" (квартальные)\"","v":"Показатели, подлежащие раскрытию в сфере холодного водоснабжения (квартальные)"}]
[]
[null,null,null,null,"• На рабочем месте должен быть установлен MS Office 2003 SP3, 2007 SP3, 2010 с полной версией MS Excel\n\n• Макросы во время работы должны быть включены (!)\n\n• Для корректной работы отчёта требуется выбрать низкий уровень безопасности\n(В меню MS Excel 2003: Сервис | Макрос | Безопасность | выбрать пункт «Низкая безопасность» | OK)\n(В меню MS Excel 2007/2010: Параметры Excel | Центр управления безопасностью | Параметры центра управления безопасностью | Параметры макросов | Включить все макросы | ОК)\n\n• Если Вы работаете в табличном процессоре MS Excel 2007 и выше, то можете использовать для работы формат XLSM (Книга Excel с поддержкой макросов). При работе в формате XLSM заметно быстрее происходит сохранение файла, а также уменьшается размер по сравнению с форматом XLS\n\n• Не рекомендуется снимать защиту с листов и каким-либо образом модифицировать защищаемые формулы и расчётные поля, в противном случае, отчёт будет отклонён системой\n\n• При сохранении не следует выбирать формат XLSX (Книга Excel), так как в указанном формате макросы, необходимые для работы отчёта, безвозвратно удаляются"]
[]
[]
[]
[]
[]
[]
[]
[]
[]
[]
[]
[]
[]
[null,null,null,null,"A"," - не обязательные для заполнения",null,null,null,null,null,null,null,null,"A"," - с формулами и константами"]
[null,null,null,null,"A"," - обязательные для заполнения",null,null,null,null,null,null,null,null,"A"," - с выбором значений до двойному клику,"]
[null,null,null,null,null,null,null,null,null,null,null,null,null,null,null,"либо с возможностью выбора даты из календаря или ручного ввода"]
[]
[]
[]
[]
[]
[]
[]
[]
[]
[]
[]
[null,null,null,null,"Если в предложенном Вам списке необходимая организация, МР/МО отсутствуют, обновите реестры с помощью кнопок\n\nВ результате синхронизации с базой данных список организаций (МР/МО) будет заменён актуальным (механизм синхронизации требует подключения к сети Интернет и основан на использовании протокола HTTPS (TCP порт 443))\n\nЕсли после обновления Вам не удалось найти необходимую организацию в списке, обратитесь к ответственному за поддержание реестра Вашего региона. Информация о региональных органах регулирования доступна по ссылке:"]
[]
[]
[]
[]
[null,null,null,null,"http://www.fstrf.ru/regions/region/showlist"]
[]
[]
[]
[]
[]
[null,null,null,null,"• При сохранении шаблона осуществляется проверка корректности данных, в том числе на наличие значений в ячейках, обязательных для заполнения\n\n• Если какая-то ячейка не удовлетворяет условию проверки, на лист «Проверка» добавляется гиперссылка на данную ячейку и указывается причина ошибки\n\n• В колонке «Статус» для каждого сообщения возможны 2 значения: ошибка и предупреждение\n\n• При наличии сообщений со статусом «Ошибка» шаблон будет отклонён системой и не будет загружен в хранилище данных, сообщения со статусом «Предупреждение» носят информационный характер, и такой шаблон будет принят системой"]
[]
[]
[]
[]
[]
[]
[]
[]
[]
[]
[]
[null,null,null,null,"Web-сайт:",null,null,"http://support.eias.ru/index.php?a=add&catid=5"]
[null,null,null,null,"E-mail:",null,null,"openinfo@eias.ru"]
[null,null,null,null,"Дистрибутивы:",null,null,"http://eias.ru/?page=show_distrs"]
[null,null,null,null,null,null,null,"для устранения ошибок (например, \"Compile error in hidden module\")"]
[]
[]
[]
[]
[]
[]
[]
[]
[null,null,null,null,"Законодательная основа шаблона"]
[null,null,null,null,"Данный шаблон разработан в соответствии с:"]
[null,null,null,null," • ","Постановлением Правительства РФ от 17.01.2013 N 6 \"О стандартах раскрытия информации в сфере водоснабжения и водоотведения\""]
[null,null,null,null,null,"Полный текст Постановления N 6"]
[null,null,null,null,null,{"$f":"\"Подробнее о сфере \"& TSphere_full","v":"Подробнее о сфере холодного водоснабжения"}]
[null,null,null,null," • ","Приказом Федеральной службы по тарифам (ФСТ России) от 15 мая 2013 г. № 129 (зарегистрирован Минюстом России № 28876 от 25.06.2013) «Об утверждении форм предоставления информации, подлежащей раскрытию, организациями, осуществляющими горячее водоснабжение, холодное водоснабжение и водоотведение, и органами регулирования тарифов, а также Правил заполнения таких форм»"]
[null,null,null,null,null,"Полный текст Приказа № 129 на сайте ФСТ России"]
[]
[null,null,null,null,"Принципы работы с шаблоном"]
[null,null,null,null,"  Перед началом работы с шаблоном Вам необходимо нажать кнопку \"Приступить к заполнению\", после чего на форме выбора выбрать из выпадающего списка нужный субъект РФ. После выбора субъекта РФ в шаблоне отобразятся листы для заполнения."]
[null,null,null,null,"  На листе «Титульный» нужно заполнить все ячейки голубого цвета."]
[null,null,null,null,"  На листе «Ссылки на публикации» «Адрес сайта в сети интернет» вводите, не нарушая цвет ячейки /если копируете гиперссылку из браузера, то выполните двойной щелчок левой кнопки мыши по ячейке и только после этого можете вставить скопированный элемент/.\n"]
[null,null,null,null,"  При вводе даты на расчетных листах необходимо выбрать дату из календаря (иконка справа от выбранной ячейки), либо ввести дату непосредственно в ячейку в формате - 'ДД.ММ.ГГГГ'."]
[null,null,null,null,"  Если какой-либо из показателей на расчетных листах для Вашей организации отсутствует, введите в поле, обязательное для заполнение, «0» (для числовых показателей) и «-» (для текстовых).\n"]
[null,null,null,null,"  Внимательно следите за информационными сообщениями на расчетных листах."]
[null,null,null,null,"  Все необходимые комментарии по всем формам Вы можете отразить на листе «Комментарии»."]
[]
[null,null,null,null,"  Сопроводительные материалы необходимо загружать с помощью \"ЕИАС Мониторинг\""]
[null,null,null,null,"Инструкция",null,null,null,"http://eias.ru/files/shablon/manual_loading_through_monitoring.pdf"]
[]
[null,null,null,null,"E-mail:",null,null,"openinfo@eias.ru"]
[null,null,null,null,"Web-сайт:",null,null,"http://eias.ru/?page=show_templates"]
[]
[]
[]
[]
[]
[]
[]
[]
[]
[]
[]
[]
[]
[]
[null,null,null,null,"При наличии подключения к Интернет, можно автоматически проверять наличие доступных обновлений. Выберите способ оповещения о наличии обновлений для отчёта:"]
[]
[null,null,null,null,null,"проверять доступные обновления (рекомендуется)",null,null,null,null,null,null,null,null,null,null,null,null,null,null,null,null,null,null,null,null,"y"]
[]
[null,null,null,null,null,"никогда не проверять наличие обновлений (не рекомендуется)"]

{"sheet":"Справочная информация","index":1,"n_rows":142,"n_cols":6,"rows_kept":142,"cut":false,"hidden":false,"merged":[]}
[]
[null,{"$f":"code","v":"Код шаблона: JKH.OPEN.INFO.QUARTER.HVS"}]
[]
[]
[null,null,"II. Стандарты раскрытия информации в сфере холодного водоснабжения"]
[]
[null,null," 14. Регулируемой организацией подлежит раскрытию информация:",null,null," "]
[null,null,"  а) о регулируемой организации (общая информация);",null,null,"  "]
[null,null,"  б) о тарифах на регулируемые товары (услуги);",null,null,"  "]
[null,null,"  в) об основных показателях финансово-хозяйственной деятельности регулируемой организации, включая структуру основных производственных затрат (в части регулируемой деятельности);",null,null,"  "]
[null,null,"  г) об основных потребительских характеристиках регулируемых товаров и услуг регулируемой организации и их соответствии установленным требованиям;",null,null,"  "]
[null,null,"  д) об инвестиционных программах регулируемой организации и отчетах об их реализации;",null,null,"  "]
[null,null,"  е) о наличии (отсутствии) технической возможности подключения к централизованной системе холодного водоснабжения, а также о регистрации и ходе реализации заявок о подключении к централизованной системе холодного водоснабжения;",null,null,"  "]
[null,null,"  ж) об условиях, на которых осуществляется поставка регулируемых товаров (оказание регулируемых услуг), и (или) об условиях договоров о подключении к системе централизованного водоснабжения;",null,null,"  "]
[null,null,"  з) о порядке выполнения технологических, технических и других мероприятий, связанных с подключением к централизованной системе холодного водоснабжения;",null,null,"  "]
[null,null,"  и) о способах приобретения, стоимости и объемах товаров, необходимых для производства регулируемых товаров и (или) оказания регулируемых услуг регулируемой организацией;",null,null,"  "]
[null,null,"  к) о предложении регулируемой организации об установлении тарифов в сфере холодного водоснабжения.",null,null,"  "]
[null,null,"  ",null,null,"  "]
[null,null," 15. Информация о тарифах на регулируемые товары (услуги) в сфере холодного водоснабжения содержит сведения:",null,null," "]
[null,null,"  а) об утвержденных тарифах на питьевую воду (питьевое водоснабжение); руб/куб м",null,null,"  "]
[null,null,"  б) об утвержденных тарифах на техническую воду;",null,null,"  "]
[null,null,"  в) об утвержденных тарифах на транспортировку воды;",null,null,"  "]
[null,null,"  г) об утвержденных тарифах на подвоз воды;",null,null,"  "]
[null,null,"  д) об утвержденных тарифах на подключение к централизованной системе холодного водоснабжения руб./куб. м/час.",null,null,"  "]
[null,null,"  ",null,null,"  "]
[null,null," 16. В отношении сведений, предусмотренных пунктом 15 настоящего документа, указывается информация:",null,null," "]
[null,null,"  а) о наименовании органа регулирования, принявшего решение об утверждении тарифов;",null,null,"  "]
[null,null,"  б) о реквизитах (дата и номер) такого решения;",null,null,"  "]
[null,null,"  в) о величине установленного тарифа;",null,null,"  "]
[null,null,"  г) о сроке действия тарифа;",null,null,"  "]
[null,null,"  д) об источнике официального опубликования решения.",null,null,"  "]
[null,null,"  ",null,null,"  "]
[null,null," 17. В рамках общей информации о регулируемой организации раскрытию подлежат следующие сведения:",null,null," "]
[null,null,"  а) фирменное наименование юридического лица (согласно уставу регулируемой организации), фамилия, имя и отчество руководителя регулируемой организации;",null,null,"  "]
[null,null,"  б) основной государственный регистрационный номер, дата его присвоения и наименование органа, принявшего решение о регистрации, в соответствии со свидетельством о государственной регистрации в качестве юридического лица;",null,null,"  "]
[null,null,"  в) почтовый адрес, адрес фактического местонахождения органов управления регулируемой организации, контактные телефоны, а также (при наличии) официальный сайт в сети \"Интернет\" и адрес электронной почты;",null,null,"  "]
[null,null,"  г) режим работы регулируемой организации (абонентских отделов, сбытовых подразделений), в том числе часы работы диспетчерских служб;",null,null,"  "]
[null,null,"  д) вид регулируемой деятельности;",null,null,"  "]
[null,null,"  е) протяженность водопроводных сетей (в однотрубном исчислении) (километров);",null,null,"  "]
[null,null,"  ж) количество скважин (штук);",null,null,"  "]
[null,null,"  з) количество подкачивающих насосных станций (штук).",null,null,"  "]
[null,null,"  ",null,null,"  "]
[null,null," 18. Информация об основных показателях финансово-хозяйственной деятельности регулируемой организации, включая структуру основных производственных затрат (в части регулируемой деятельности), содержит сведения:",null,null," "]
[null,null,"  а) о выручке от вида регулируемой деятельности (тыс. рублей) с разбивкой по видам деятельности;",null,null,"  "]
[null,null,"  б) о себестоимости производимых товаров (оказываемых услуг) по виду регулируемой деятельности (тыс. рублей), включая:",null,null,"  "]
[null,null,"   - расходы на оплату холодной воды, приобретаемой у других организаций для последующей подачи потребителям;",null,null,"   "]
[null,null,"   - расходы на покупаемую электрическую энергию (мощность), используемую в технологическом процессе (с указанием средневзвешенной стоимости 1 кВт·ч), и объем приобретения электрической энергии;",null,null,"   "]
[null,null,"   - расходы на химические реагенты, используемые в технологическом процессе;",null,null,"   "]
[null,null,"   - расходы на оплату труда и отчисления на социальные нужды основного производственного персонала;",null,null,"   "]
[null,null,"   - расходы на оплату труда и отчисления на социальные нужды административно-управленческого персонала;",null,null,"   "]
[null,null,"   - расходы на амортизацию основных производственных средств;",null,null,"   "]
[null,null,"   - расходы на аренду имущества, используемого для осуществления регулируемого вида деятельности;",null,null,"   "]
[null,null,"   - общепроизводственные расходы, в том числе отнесенные к ним расходы на текущий и капитальный ремонт;",null,null,"   "]
[null,null,"   - общехозяйственные расходы, в том числе отнесенные к ним расходы на текущий и капитальный ремонт;",null,null,"   "]
[null,null,"   - расходы на капитальный и текущий ремонт основных производственных средств (в том числе информация об объемах товаров и услуг, их стоимости и способах приобретения у тех организаций, сумма оплаты услуг которых превышает 20 процентов суммы расходов по указанной статье расходов);",null,null,"   "]
[null,null,"   - расходы на услуги производственного характера, оказываемые по договорам с организациями на проведение регламентных работ в рамках технологического процесса (в том числе информация об объемах товаров и услуг, их стоимости и способах приобретения у тех организаций, сумма оплаты услуг которых превышает 20 процентов суммы расходов по указанной статье расходов);",null,null,"   "]
[null,null,"   - прочие расходы, которые подлежат отнесению на регулируемые виды деятельности в соответствии с основами ценообразования в сфере водоснабжения и водоотведения, утверждаемыми Правительством Российской Федерации;",null,null,"   "]
[null,null,"  в) о чистой прибыли, полученной от регулируемого вида деятельности, с указанием размера ее расходования на финансирование мероприятий, предусмотренных инвестиционной программой регулируемой организации (тыс. рублей);",null,null,"  "]
[null,null,"  г) об изменении стоимости основных фондов (в том числе за счет их ввода в эксплуатацию (вывода из эксплуатации)), их переоценки (тыс. рублей);",null,null,"  "]
[null,null,"  д) о валовой прибыли (убытках) от продажи товаров и услуг по регулируемому виду деятельности (тыс. рублей);",null,null,"  "]
[null,null,"  е) о годовой бухгалтерской отчетности, включая бухгалтерский баланс и приложения к нему (раскрывается регулируемой организацией, выручка от регулируемой деятельности которой превышает 80 процентов совокупной выручки за отчетный год);",null,null,"  "]
[null,null,"  ж) об объеме поднятой воды (тыс. куб. метров);",null,null,"  "]
[null,null,"  з) об объеме покупной воды (тыс. куб. метров);",null,null,"  "]
[null,null,"  и) об объеме воды, пропущенной через очистные сооружения (тыс. куб. метров);",null,null,"  "]
[null,null,"  к) об объеме отпущенной потребителям воды, определенном по приборам учета и расчетным путем (по нормативам потребления) (тыс. куб. метров);",null,null,"  "]
[null,null,"  л) о потерях воды в сетях (процентов);",null,null,"  "]
[null,null,"  м) о среднесписочной численности основного производственного персонала (человек);",null,null,"  "]
[null,null,"  н) об удельном расходе электроэнергии на подачу воды в сеть (тыс. кВт·ч или тыс. куб. метров);",null,null,"  "]
[null,null,"  о) о расходе воды на собственные (в том числе хозяйственно-бытовые) нужды (процент объема отпуска воды потребителям);",null,null,"  "]
[null,null,"  п) о показателе использования производственных объектов (по объему перекачки) по отношению к пиковому дню отчетного года (процентов).",null,null,"  "]
[null,null,"  ",null,null,"  "]
[null,null," 19. Информация об основных потребительских характеристиках регулируемых товаров и услуг регулируемой организации и их соответствии установленным требованиям содержит сведения:",null,null," "]
[null,null,"  а) о количестве аварий на системах холодного водоснабжения (единиц на километр);",null,null,"  "]
[null,null,"  б) о количестве случаев ограничения подачи холодной воды по графику с указанием срока действия таких ограничений (менее 24 часов в сутки) и доле потребителей (процентов), затронутых ограничениями подачи холодной воды;",null,null,"  "]
[null,null,"  в) об общем количестве проведенных проб качества воды по следующим показателям:",null,null,"  "]
[null,null,"   - мутность;",null,null,"   "]
[null,null,"   - цветность;",null,null,"   "]
[null,null,"   - хлор остаточный общий, в том числе хлор остаточный связанный и хлор остаточный свободный;",null,null,"   "]
[null,null,"   - общие колиформные бактерии;",null,null,"   "]
[null,null,"   - термотолерантные колиформные бактерии;",null,null,"   "]
[null,null,"  г) о количестве проведенных проб, выявивших несоответствие холодной воды санитарным нормам (предельно допустимой концентрации), по следующим показателям:",null,null,"  "]
[null,null,"   - мутность;",null,null,"   "]
[null,null,"   - цветность;",null,null,"   "]
[null,null,"   - хлор остаточный общий, в том числе хлор остаточный связанный и хлор остаточный свободный;",null,null,"   "]
[null,null,"   - общие колиформные бактерии;",null,null,"   "]
[null,null,"   - термотолерантные колиформные бактерии;",null,null,"   "]
[null,null,"  д) о доле исполненных в срок договоров о подключении (процент общего количества заключенных договоров о подключении);",null,null,"  "]
[null,null,"  е) о средней продолжительности рассмотрения заявлений о подключении (дней).",null,null,"  "]
[null,null,"  ",null,null,"  "]
[null,null," 20. Информация об инвестиционных программах регулируемой организации содержит сведения:",null,null," "]
[null,null,"  а) о наименовании, дате утверждения и цели инвестиционной программы;",null,null,"  "]
[null,null,"  б) о наименовании органа исполнительной власти субъекта Российской Федерации, утвердившего инвестиционную программу, и о наименовании органа местного самоуправления, согласовавшего инвестиционную программу;",null,null,"  "]
[null,null,"  в) о сроках начала и окончания реализации инвестиционной программы;",null,null,"  "]
[null,null,"  г) о потребностях в финансовых средствах, необходимых для реализации инвестиционной программы, в том числе с разбивкой по годам, мероприятиям и источникам финансирования инвестиционной программы (тыс. рублей);",null,null,"  "]
[null,null,"  д) о плановых значениях целевых показателей инвестиционной программы (с разбивкой по мероприятиям);",null,null,"  "]
[null,null,"  е) о фактических значениях целевых показателей (тыс. рублей);",null,null,"  "]
[null,null,"  ж) об использовании инвестиционных средств за отчетный год с разбивкой по кварталам, мероприятиям и источникам финансирования инвестиционной программы (тыс. рублей);",null,null,"  "]
[null,null,"  з) о внесении изменений в инвестиционную программу.",null,null,"  "]
[null,null,"  ",null,null,"  "]
[null,null," 21. Информация о наличии (отсутствии) технической возможности подключения к централизованной системе холодного водоснабжения, а также о регистрации и ходе реализации заявок о подключении к централизованной системе холодного водоснабжения содержит сведения:",null,null," "]
[null,null,"  а) о количестве поданных заявок о подключении к централизованной системе холодного водоснабжения в течение квартала;",null,null,"  "]
[null,null,"  б) о количестве исполненных заявок о подключении к централизованной системе холодного водоснабжения в течение квартала;",null,null,"  "]
[null,null,"  в) о количестве заявок о подключении к централизованной системе холодного водоснабжения, по которым принято решение об отказе в подключении (с указанием причин), в течение квартала;",null,null,"  "]
[null,null,"  г) о резерве мощности централизованной системы холодного водоснабжения в течение квартала.",null,null,"  "]
[null,null,"  ",null,null,"  "]
[null,null," 22. При использовании регулируемой организацией нескольких централизованных систем холодного водоснабжения информация о резерве мощности таких систем публикуется в отношении каждой централизованной системы холодного водоснабжения.",null,null," "]
[null,null,"  ",null,null,"  "]
[null,null," 23. Информация об условиях, на которых осуществляется поставка регулируемых товаров и (или) оказание регулируемых услуг, должна содержать сведения об условиях публичных договоров поставок регулируемых товаров, оказания регулируемых услуг, в том числе договоров о подключении к централизованной системе холодного водоснабжения.",null,null," "]
[null,null,"  ",null,null,"  "]
[null,null," 24. Информация о порядке выполнения технологических, технических и других мероприятий, связанных с подключением к централизованной системе холодного водоснабжения, содержит:",null,null," "]
[null,null,"  а) форму заявки о подключении к централизованной системе холодного водоснабжения;",null,null,"  "]
[null,null,"  б) перечень документов, представляемых одновременно с заявкой о подключении к централизованной системе холодного водоснабжения;",null,null,"  "]
[null,null,"  в) реквизиты нормативного правового акта, регламентирующего порядок действий заявителя и регулируемой организации при подаче, приеме, обработке заявки о подключении к централизованной системе холодного водоснабжения, принятии решения и уведомлении о принятом решении;",null,null,"  "]
[null,null,"  г) телефоны и адреса службы, ответственной за прием и обработку заявок о подключении к централизованной системе холодного водоснабжения.",null,null,"  "]
[null,null,"  ",null,null,"  "]
[null,null," 25. Информация о способах приобретения, стоимости и об объемах товаров, необходимых для производства регулируемых товаров и (или) оказания регулируемых услуг регулируемой организацией, содержит сведения о правовых актах, регламентирующих правила закупки (положение о закупках) в регулируемой организации, о месте размещения положения о закупках регулируемой организации, а также сведения о планировании конкурсных процедур и результатах их проведения.",null,null," "]
[null,null,"  ",null,null,"  "]
[null,null," 26. Информация о предложении регулируемой организации об установлении тарифов в сфере холодного водоснабжения на очередной период регулирования содержит копию утвержденной в установленном порядке инвестиционной программы (проекта инвестиционной программы), а также сведения:",null,null," "]
[null,null,"  а) о предлагаемом методе регулирования;",null,null,"  "]
[null,null,"  б) о расчетной величине тарифов;",null,null,"  "]
[null,null,"  в) о периоде действия тарифов;",null,null,"  "]
[null,null,"  г) о долгосрочных параметрах регулирования (в случае если их установление предусмотрено выбранным методом регулирования);",null,null,"  "]
[null,null,"  д) о необходимой валовой выручке на соответствующий период, в том числе с разбивкой по годам;",null,null,"  "]
[null,null,"  е) о годовом объеме отпущенной потребителям воды;",null,null,"  "]
[null,null,"  ж) о размере недополученных доходов регулируемой организации (при их наличии), исчисленном в соответствии с основами ценообразования в сфере водоснабжения и водоотведения, утверждаемыми Правительством Российской Федерации;",null,null,"  "]
[null,null,"  з) о размере экономически обоснованных расходов, не учтенных при регулировании тарифов в предыдущий период регулирования (при их наличии), определенном в соответствии с основами ценообразования в сфере водоснабжения и водоотведения, утверждаемыми Правительством Российской Федерации.",null,null,"  "]
[null,null,"  ",null,null,"  "]
[null,null," 27. Информация, указанная в пунктах 15, 23 и 24 настоящего документа, раскрывается регулируемой организацией не позднее 30 календарных дней со дня принятия решения об установлении тарифа на очередной период регулирования.",null,null," "]
[null,null,"  ",null,null,"  "]
[null,null," 28. Информация, указанная в пунктах 18 - 20 настоящего документа, раскрывается регулируемой организацией не позднее 30 календарных дней со дня направления годового бухгалтерского баланса в налоговые органы, за исключением информации, указанной в подпункте \"з\" пункта 20 настоящего документа.",null,null," "]
[null,null,"  ",null,null,"  "]
[null,null," 29. Информация, указанная в пункте 18 настоящего документа, соответствует годовой бухгалтерской отчетности за отчетный год.",null,null," "]
[null,null,"  ",null,null,"  "]
[null,null," 30. Регулируемая организация, не осуществляющая сдачу годового бухгалтерского баланса в налоговые органы, информацию, указанную в пунктах 18 - 20, за исключением информации, указанной в подпункте \"з\" пункта 20 настоящего документа, раскрывает не позднее 30 календарных дней со дня истечения срока, установленного законодательством Российской Федерации для сдачи годового бухгалтерского баланса в налоговые органы.",null,null," "]
[null,null,"  ",null,null,"  "]
[null,null," 31. Информация, указанная в подпункте \"з\" пункта 20 настоящего документа, раскрывается регулируемой организацией в течение 10 календарных дней со дня принятия органом исполнительной власти субъекта Российской Федерации решения о внесении изменений в инвестиционную программу.",null,null," "]
[null,null,"  ",null,null,"  "]
[null,null," 32. Информация, указанная в пункте 21 настоящего документа, раскрывается регулируемой организацией ежеквартально, в течение 30 календарных дней по истечении квартала, за который раскрывается информация.",null,null," "]
[null,null,"  ",null,null,"  "]
[null,null," 33. Информация, указанная в пунктах 25 и 26 настоящего документа, раскрывается регулируемой организацией в течение 10 календарных дней со дня подачи ею заявления об установлении тарифов в сфере холодного водоснабжения в орган исполнительной власти субъекта Российской Федерации в области государственного регулирования тарифов (орган местного самоуправления).",null,null," "]
[null,null,"  ",null,null,"  "]
[null,null," 34. Информация, указанная в пункте 17 настоящего документа, подлежит раскрытию в течение месяца со дня вступления в силу настоящего документа.",null,null," "]

{"sheet":"Лог обновления","index":2,"n_rows":6,"n_cols":3,"rows_kept":6,"cut":false,"hidden":true,"merged":[]}
["Дата/Время","Сообщение","Статус"]
[]
["2013-10-25T15:48:13","Проверка доступных обновлений...","Информация"]
["2013-10-25T15:48:13","Версия шаблона 6.0 актуальна, обновление не требуется","Информация"]
["2013-10-29T12:02:37","Проверка доступных обновлений...","Информация"]
["2013-10-29T12:02:37","Версия шаблона 6.0 актуальна, обновление не требуется","Информация"]

{"sheet":"Титульный","index":3,"n_rows":44,"n_cols":6,"rows_kept":44,"cut":false,"hidden":false,"merged":[[4,4,4,5]]}
[null,null,null,null,null,27579111]
[]
[]
[null,null,null,null,null,{"$f":"version","v":"Версия 6.0"}]
[null,null,null,null,{"$f":"\"Показатели, подлежащие раскрытию в сфере \"&TSphere_full&\" (3)\"","v":"Показатели, подлежащие раскрытию в сфере холодного водоснабжения (3)"}]
[]
[null,null,null,null,"Субъект РФ","Московская область"]
[]
[null,null,null,null,"Публикация","На сайте регулирующего органа"]
[]
[null,null,null,null,null,"Источники публикаций"]
[null,null,null,null,"Сайт организации в сети Интернет","a"]
[null,null,null,null,"Печатное издание"]
[]
[null,null,null,null,null,"Отчётный период"]
[null,null,null,null,"Квартал","II квартал"]
[null,null,null,null,"Год",2013]
[]
[null,null,null,null,"Является ли данное юридическое лицо подразделением (филиалом) другой организации"]
[]
[null,null,null,null,"Наименование организации","ООО \"ТЕТА\""]
[null,null,null,null,"Наименование филиала"]
[null,null,null,null,"ИНН","5007070670"]
[null,null,null,null,"КПП","500701001"]
[]
[null,null,null,null,"Вид деятельности","Оказание услуг в сфере водоснабжения и очистки сточных вод"]
[]
[null,null,null,null,null,"Адрес регулируемой организации"]
[null,null,null,null,"Юридический адрес","141840,Московская область,Дмитровский р-н, г/п Яхрома, дер. Астрецово, ул.Озерная, дом 85"]
[null,null,null,null,"Почтовый адрес","141840,Московская область,Дмитровский р-н, г/п Яхрома, дер. Астрецово, ул.Озерная, дом 85"]
[]
[null,null,null,null,null,"Руководитель"]
[null,null,null,null,"Фамилия, имя, отчество","Гелета Юрий Владимирович"]
[null,null,null,null,"(код) номер телефона","8-929-515-42-48"]
[]
[null,null,null,null,null,"Главный бухгалтер"]
[null,null,null,null,"Фамилия, имя, отчество","Гелета Юрий Владимирович"]
[null,null,null,null,"(код) номер телефона","8-929-515-42-48"]
[]
[null,null,null,null,null,"Должностное лицо, ответственное за составление формы"]
[null,null,null,null,"Фамилия, имя, отчество","Исаева Ирина Сергеевна"]
[null,null,null,null,"Должность","бухгалтер"]
[null,null,null,null,"(код) номер телефона","8-905-524-76-26"]
[null,null,null,null,"e-mail","uk-tete@yandex.ru"]

{"sheet":"Список МО","index":4,"n_rows":16,"n_cols":8,"rows_kept":16,"cut":false,"hidden":false,"merged":[[13,3,14,3],[13,4,14,4],[3,3,3,7],[4,3,4,7],[6,5,6,7],[7,5,7,7],[8,5,8,7]]}
[]
[]
[]
[null,null,null,"Дифференциация тарифа"]
[null,null,null,{"$f":"IF(org=0,\"Не определено\",org)","v":"ООО \"ТЕТА\""}]
[]
[null,null,null,null,null,"Централизованная система холодного водоснабжения"]
[null,null,null,null,"Условный порядковый номер","1"]
[null,null,null,null,"Описание","Водозабор, водоочистка, транспортировка и распределение воды"]
[]
[null,null,null,"№ п/п","Муниципальный район","№ п/п","Муниципальное образование","ОКТМО"]
[null,null,null,"1","2","3","4","5"]
[null,null,null,0,null,0]
[null,null,"О",1,"Дмитровский муниципальный район",1,"городское поселение Яхрома","46608105"]
[null,null,null,null,null,null,"Добавить МО"]
[null,null,null,null,"Добавить МР"]

{"sheet":"ХВС доступ","index":5,"n_rows":20,"n_cols":6,"rows_kept":20,"cut":false,"hidden":false,"merged":[[19,4,19,5],[13,4,13,5],[6,4,6,5],[3,4,3,5],[18,4,18,5],[4,3,4,5],[5,3,5,5]]}
[]
[]
[]
[null,null,null,null,"Приложение 2\nк приказу ФСТ России\nот 15 мая 2013 г. №129.\nФорма 2.10"]
[null,null,null,"Информация о наличии (отсутствии) технической возможности доступа*"]
[null,null,null,{"$f":"IF(org=0,\"Не определено\",org)","v":"ООО \"ТЕТА\""}]
[]
[null,null,null,"№ п/п","Наименование показателя","Значение"]
[null,null,null,"А","1","2"]
[null,null,null,"1",{"$f":"\"Количество поданных заявок о подключении к централизованной системе \"& TSphere_full &\" в течение квартала, шт.\"","v":"Количество поданных заявок о подключении к централизованной системе холодного водоснабжения в течение квартала, шт."},0]
[null,null,null,"2",{"$f":"\"Количество исполненных заявок о подключении к централизованной системе \"& TSphere_full &\" в течение квартала, шт.\"","v":"Количество исполненных заявок о подключении к централизованной системе холодного водоснабжения в течение квартала, шт."},0]
[null,null,null,"3",{"$f":"\"Количество заявок о подключении к централизованной системе  \"& TSphere_full &\", по которым принято решение об отказе в подключении в течение квартала, шт.\"","v":"Количество заявок о подключении к централизованной системе  холодного водоснабжения, по которым принято решение об отказе в подключении в течение квартала, шт."},0]
[null,null,null,"4","Причины отказа в подключении"]
[null,null,null,"4.0"]
[null,null,null,null,"Добавить причину"]
[null,null,null,"5",{"$f":"\"Резерв мощности централизованной системы \"& TSphere_full &\" в течение квартала, тыс.куб.м/сутки\"","v":"Резерв мощности централизованной системы холодного водоснабжения в течение квартала, тыс.куб.м/сутки"},0]
[null,null,null,"6","Справочно: количество выданных техусловий на подключение, шт."]
[]
[null,null,null,"*",{"$f":"\"Информация о наличии (отсутствии) технической возможности доступа к регулируемым товарам и услугам регулируемых организаций, а также о регистрации и ходе реализации заявок на подключение к централизованной системе \"&TSphere_full&\".\"","v":"Информация о наличии (отсутствии) технической возможности доступа к регулируемым товарам и услугам регулируемых организаций, а также о регистрации и ходе реализации заявок на подключение к централизованной системе холодного водоснабжения."}]
[null,null,null,null,"Информация раскрывается ежеквартально, в течение 30 календарных дней по истечении квартала, за который раскрывается информация."]

{"sheet":"Ссылки на публикации","index":6,"n_rows":14,"n_cols":12,"rows_kept":14,"cut":false,"hidden":false,"merged":[[5,3,5,8],[10,0,12,0],[4,3,4,8],[10,4,10,11]]}
[]
[]
[]
[]
[null,null,null,"Ссылки на публикации\n(указание на официальное печатное издание и (или) адрес сайта в сети Интернет, которые используются для размещения раскрываемой информации)"]
[null,null,null,{"$f":"IF(org=0,\"Не определено\",org)","v":"ООО \"ТЕТА\""}]
[]
[]
[null,null,null,"№ п/п","Содержание","Наименование источника\n(сайта или печатного издания)","Дата размещения информации","Номер печатного издания","Дата печатного издания","Ссылка на PDF копии издания","Адрес сайта в сети Интернет","Комментарий для КРО о причинах, \nпо которым информация не раскрывалась"]
[null,null,null,"1","2","3","4","5","6","7","8","4"]
["1",null,null,{"$f":"A11","v":"1"},{"$f":"\"Информация о наличии (отсутствии) технической возможности доступа к регулируемым товарам и услугам регулируемых организаций, а также о регистрации и ходе реализации заявок на подключение к централизованой системе \"& TSphere_full","v":"Информация о наличии (отсутствии) технической возможности доступа к регулируемым товарам и услугам регулируемых организаций, а также о регистрации и ходе реализации заявок на подключение к централизованой системе холодного водоснабжения"}]
[null,null,null,{"$f":"A11&\".1\"","v":"1.1"},"Сайт организации в сети Интернет","http://yahrgorki.ru/","29.10.2013","x","x","x","http://yahrgorki.ru/dokumentacija/tarify/"]
[null,null,null,{"$f":"A11&\".2\"","v":"1.2"},"Печатное издание",null,null,null,null,null,"x"]
[null,null,null,null,"Добавить"]

{"sheet":"Комментарии","index":7,"n_rows":13,"n_cols":5,"rows_kept":13,"cut":false,"hidden":false,"merged":[[6,3,6,4],[7,3,7,4]]}
[]
[]
[]
[]
[]
[]
[null,null,null,"Комментарии"]
[null,null,null,{"$f":"IF(org=0,\"Не определено\",org)","v":"ООО \"ТЕТА\""}]
[]
[null,null,null,"№ п/п","Комментарий"]
[null,null,null,"1","2"]
[null,null,null,0]
[null,null,null,null,"Добавить"]

{"sheet":"Проверка","index":8,"n_rows":6,"n_cols":4,"rows_kept":6,"cut":false,"hidden":false,"merged":[[1,1,1,3]]}
[]
[null,"Результат проверки"]
[]
[null,"Ссылка","Причина","Статус"]
[null,"Титульный!F13","Не указан источник информации: 'Печатное издание' на листе 'Титульный'!","Предупреждение"]
[null,"Титульный!F19","Не указано значение на листе 'Титульный'!","Предупреждение"]

{"sheet":"AllSheetsInThisWorkbook","index":9,"n_rows":23,"n_cols":2,"rows_kept":23,"cut":false,"hidden":true,"merged":[]}
["Расчетные листы","Скрытые листы"]
["Инструкция","AllSheetsInThisWorkbook"]
["Справочная информация","TEHSHEET"]
["Лог обновления","et_union_hor"]
["Титульный","et_union_vert"]
["Список МО","modInfo"]
["ХВС доступ","modReestr"]
["Ссылки на публикации","modfrmReestr"]
["Комментарии","modUpdTemplMain"]
["Проверка","REESTR_ORG"]
[null,"modClassifierValidate"]
[null,"modProv"]
[null,"modHyp"]
[null,"modList00"]
[null,"modList01"]
[null,"modList02"]
[null,"modList03"]
[null,"modfrmDateChoose"]
[null,"modComm"]
[null,"modThisWorkbook"]
[null,"REESTR_MO"]
[null,"modfrmReestrMR"]
[null,"modfrmCheckUpdates"]

{"sheet":"TEHSHEET","index":10,"n_rows":85,"n_cols":12,"rows_kept":85,"cut":false,"hidden":true,"merged":[]}
["REGION",null,"year_list","logical","Месяц\n(MONTH)","Квартал\n(QUARTER)","Месяц\n(kind_of_publication)","НДС\n/kind_of_NDS/","Номер СЦХВ(СЦВО)\n/SKI_number/",null,"версия шаблона\n (DocProp_Version)","6.0a"]
["Алтайский край",null,2013,"да","январь","I квартал","На официальном сайте организации","общий","1",null,"код шаблона\n(DocProp_TemplateCode)","JKH.OPEN.INFO.QUARTER.HVS"]
["Амурская область",null,2014,"нет","февраль","II квартал","На сайте регулирующего органа","общий с учетом освобождения от уплаты НДС","2",null,"сфера\n(TSphere)","ХВС"]
["Архангельская область",null,2015,null,"март","III квартал",null,"специальный (упрощенная система налогообложения, система налогообложения для сельскохозяйственных товаропроизводителей)","3",null,"сфера(латиница)\n(TSphere_trans)","HVS"]
["Астраханская область",null,2016,null,"апрель","IV квартал",null,null,"4",null,"сфера расширено\n(TSphere_full)","холодного водоснабжения"]
["Белгородская область",null,2017,null,"май",null,null,null,"5"]
["Брянская область",null,null,null,"июнь",null,null,null,"6"]
["Владимирская область",null,null,null,"июль",null,null,null,"7"]
["Волгоградская область",null,null,null,"август",null,null,null,"8"]
["Вологодская область",null,null,null,"сентябрь",null,null,null,"9"]
["Воронежская область",null,null,null,"октябрь",null,null,null,"10"]
["г.Байконур",null,null,null,"ноябрь",null,null,null,"11"]
["г. Москва",null,null,null,"декабрь",null,null,null,"12"]
["г.Санкт-Петербург",null,null,null,null,null,null,null,"13"]
["Еврейская автономная область",null,null,null,null,null,null,null,"14"]
["Забайкальский край",null,null,null,null,null,null,null,"15"]
["Ивановская область",null,null,null,null,null,null,null,"16"]
["Иркутская область",null,null,null,null,null,null,null,"17"]
["Кабардино-Балкарская республика",null,null,null,null,null,null,null,"18"]
["Калининградская область",null,null,null,null,null,null,null,"19"]
["Калужская область",null,null,null,null,null,null,null,"20"]
["Камчатский край"]
["Карачаево-Черкесская республика"]
["Кемеровская область"]
["Кировская область"]
["Костромская область"]
["Краснодарский край"]
["Красноярский край"]
["Курганская область"]
["Курская область"]
["Ленинградская область"]
["Липецкая область"]
["Магаданская область"]
["Московская область"]
["Мурманская область"]
["Ненецкий автономный округ"]
["Нижегородская область"]
["Новгородская область"]
["Новосибирская область"]
["Омская область"]
["Оренбургская область"]
["Орловская область"]
["Пензенская область"]
["Пермский край"]
["Приморский край"]
["Псковская область"]
["Республика Адыгея"]
["Республика Алтай"]
["Республика Башкортостан"]
["Республика Бурятия"]
["Республика Дагестан"]
["Республика Ингушетия"]
["Республика Калмыкия"]
["Республика Карелия"]
["Республика Коми"]
["Республика Марий Эл"]
["Республика Мордовия"]
["Республика Саха (Якутия)"]
["Республика Северная Осетия-Алания"]
["Республика Татарстан"]
["Республика Тыва"]
["Республика Хакасия"]
["Ростовская область"]
["Рязанская область"]
["Самарская область"]
["Саратовская область"]
["Сахалинская область"]
["Свердловская область"]
["Смоленская область"]
["Ставропольский край"]
["Тамбовская область"]
["Тверская область"]
["Томская область"]
["Тульская область"]
["Тюменская область"]
["Удмуртская республика"]
["Ульяновская область"]
["Хабаровский край"]
["Ханты-Мансийский автономный округ"]
["Челябинская область"]
["Чеченская республика"]
["Чувашская республика"]
["Чукотский автономный округ"]
["Ямало-Ненецкий автономный округ"]
["Ярославская область"]

{"sheet":"et_union_hor","index":11,"n_rows":22,"n_cols":11,"rows_kept":22,"cut":false,"hidden":true,"merged":[[15,0,17,0],[3,4,4,4],[3,3,4,3],[23,4,23,5],[15,4,15,11]]}
[]
["et_List01","et_List01_1"]
[]
[null,null,null,null,null,1]
[null,null,null,null,null,null,"Добавить МО"]
[]
[]
["et_Comm"]
[]
[]
[]
[]
["et_List03"]
[]
[]
[null,null,null,{"$f":"A16","v":0}]
[null,null,null,{"$f":"A16&\".1\"","v":".1"},"Сайт организации в сети Интернет",null,null,"x","x","x"]
[null,null,null,{"$f":"A16&\".2\"","v":".2"},"Печатное издание",null,null,null,null,null,"x"]
[]
[]
[]
["et_List02"]

{"sheet":"et_union_vert","index":12,"n_rows":0,"n_cols":0,"rows_kept":0,"cut":false,"hidden":true,"merged":[]}

{"sheet":"modInfo","index":13,"n_rows":16,"n_cols":2,"rows_kept":16,"cut":false,"hidden":true,"merged":[]}
[null,"Титульный"]
[null,"Для выбора того или иного источника публикации выполните двойной щелчок по синей ячейке напротив соответствующего источника.\nВНИМАНИЕ! Если Вы снимаете галочку с пункта, то будут скрыты и очищены соответствующие строки на листе \"Ссылки на публикации\"!\n\nОпубликование перечисленных в шаблоне показателей на сайте организации в сети Интернет и в печатных изданиях не обязательно, если  данный шаблон предоставлен по системе ЕИАС (региональный сегмент)."]
[null,"Обязательное опубликование на официальном сайте органа исполнительной власти субъекта Российской Федерации в области государственного регулирования тарифов (на официальном сайте органа местного самоуправления поселения или городского округа в случае передачи законом субъекта Российской Федерации полномочий по утверждению тарифов в сфере водоснабжения и водоотведения органам местного самоуправления) предусмотрено пунктом 3 (а) постановления Правительства №6 от 17.01.2013"]
[null,"Задайте период регулирования, выбрав квартал и год из соответствующих списков"]
[null,"Шаблон заполняется раздельно по каждому виду тарифа"]
[null,"Ссылки на публикации"]
[null,"Вводите адрес сайта, не нарушая цвет ячейки /если копируете гиперссылку из браузера, то выполните двойной щелчок по ячейке и только после этого можете вставить скопированный элемент/"]
[null,"Сопроводительные материалы необходимо загружать с помощью \"ЕИАС Мониторинг\". Ссылка на инструкцию по загрузке сопроводительных материалов расположена на листе 'Инструкция' в п.'Методология заполнения'"]
[null,"Если для какого-либо пункта графы 'Наименование источника (сайта или печатного издания)' информация не раскрывалась, то в соответствующем поле укажите - 'не раскрывалась'"]
[null,"Список МО"]
[null,{"$f":"\"В случае, если тариф не дифференцируется по централизованным системам холодного водоснабжения, перечислите все муниципальные районы, в которых организация осуществляет услуги \"&TSphere_full","v":"В случае, если тариф не дифференцируется по централизованным системам холодного водоснабжения, перечислите все муниципальные районы, в которых организация осуществляет услуги холодного водоснабжения"}]
[null,{"$f":"\"В случае, если тариф не дифференцируется по централизованным системам холодного водоснабжения, перечислите все муниципальные образования, в которых организация осуществляет услуги \"&TSphere_full","v":"В случае, если тариф не дифференцируется по централизованным системам холодного водоснабжения, перечислите все муниципальные образования, в которых организация осуществляет услуги холодного водоснабжения"}]
[null,{"$f":"\"Централизованная система \"&TSphere_full&\" - комплекс технологически связанных между собой инженерных сооружений, предназначенных для водоподготовки, транспортировки и подачи питьевой и (или) технической воды абонентам\"","v":"Централизованная система холодного водоснабжения - комплекс технологически связанных между собой инженерных сооружений, предназначенных для водоподготовки, транспортировки и подачи питьевой и (или) технической воды абонентам"}]
[null,{"$f":"\"В случае, если тариф не дифференцируется по централизованным системам \"&TSphere_full&\", укажите '1'. Выберите значение из списка, указав очередной условный порядковый номер централизованной системы холодного водоснабжения\"","v":"В случае, если тариф не дифференцируется по централизованным системам холодного водоснабжения, укажите '1'. Выберите значение из списка, указав очередной условный порядковый номер централизованной системы холодного водоснабжения"}]
[null,"Стандарты"]
[null,"В качестве примечания Вы можете указать единицу измерения"]

{"sheet":"modReestr","index":14,"n_rows":0,"n_cols":0,"rows_kept":0,"cut":false,"hidden":true,"merged":[]}

{"sheet":"modfrmReestr","index":15,"n_rows":0,"n_cols":0,"rows_kept":0,"cut":false,"hidden":true,"merged":[]}

{"sheet":"modUpdTemplMain","index":16,"n_rows":0,"n_cols":0,"rows_kept":0,"cut":false,"hidden":true,"merged":[]}

{"sheet":"REESTR_ORG","index":17,"n_rows":651,"n_cols":12,"rows_kept":651,"cut":false,"hidden":true,"merged":[]}
["№","NSRF","MR_NAME","OKTMO_MR_NAME","MO_NAME","OKTMO_NAME","RST_ORG_ID","ORG_NAME","INN_NAME","KPP_NAME","VDET_NAME"]
[1,"Московская область","Дмитровский муниципальный район","46608000","городское поселение  Дмитров","46608101","26568823","\"1166 Военно - строительное управление \" филиал ОАО \"Главное управление обустройства войск\"","7703702341","770301001","Оказание услуг в сфере водоснабжения","VS"]
[2,"Московская область","Наро-Фоминский муниципальный район","46638000","Городское поселение Наро-Фоминск","46638101","26548249","\"МУП \"Водоканал\" г. Наро-Фоминск\"","5030015500","503001001","Оказание услуг в сфере водоснабжения","VS"]
[3,"Московская область","городской округ Троицк","46775000","Город Троицк","46775000","26548293","\"МУП \"Водоканал\" г. Троицк\"","5046048090","775101001","Оказание услуг в сфере водоснабжения","VS"]
[4,"Московская область","Дмитровский муниципальный район","46608000","городское поселение  Дмитров","46608101","26548031","\"НИЦИАМТ-ФГУП-НАМИ\"","7711000924","774301001","Оказание услуг в сфере водоснабжения","VS"]
[5,"Московская область","Дмитровский муниципальный район","46608000","сельское поселение Габовское","46608413","26548361","2217 Отделение Морской Инженерной Службы","5007020446","500701001","Оказание услуг в сфере водоснабжения","VS"]
[6,"Московская область","Ленинский муниципальный район","46628000","сельское поселение Мосрентген","46628409","26357567","294 ЦСООР МЧС","5003008102","500301001","","VS"]
[7,"Московская область","Воскресенский муниципальный район","46606000","городское поселение Белоозерский","46606154","26576681","«Конструкторское бюро химического машиностроения им. А.М. Исаева – филиал ФГУП «Государственный Казенный научно-производственный центр им. М.В. Хруничева»","7730052050","500501001","Оказание услуг в сфере водоснабжения","VS"]
[8,"Московская область","Ногинский муниципальный район","46639000","городское поселение Ногинск","46639101","26568661","АУ \"С/п Буньковское\"","5031087410","503101001","Оказание услуг в сфере водоснабжения","VS"]
[9,"Московская область","Пушкинский муниципальный район","46647000","сельское поселение Царевское","46647443","26409912","Академия ГПС МЧС России","7717035419","771701001","Оказание услуг в сфере водоснабжения","VS"]
[10,"Московская область","Красногорский муниципальный район","46623000","городское поселение Красногорск","46623101","26548255","Архангельская КЭЧ","5024000070","502401001","Оказание услуг в сфере водоснабжения","VS"]
[11,"Московская область","городской округ Бронницы","46705000","Город Бронницы","46705000","26357553","Бронницкое УГХ","5002000100","500201001","Оказание услуг в сфере водоснабжения","VS"]
[12,"Московская область","Одинцовский муниципальный район","46641000","городское поселение Одинцово","46641101","26548207","В/Ч 73535","5032031265","503201001","Оказание услуг в сфере водоснабжения и очистки сточных вод","VS"]
[13,"Московская область","городской округ Балашиха","46704000","Город Балашиха","46704000","26652115","В/ч 96000","5012058639","501201001","Оказание услуг в сфере водоснабжения","VS"]
[14,"Московская область","Пушкинский муниципальный район","46647000","городское поселение Пушкино","46647101","26651694","ВДО \"Космодром\"","5038019360","503801001","Оказание услуг в сфере водоснабжения","VS"]
[15,"Московская область","Клинский муниципальный район","46621000","городское поселение Клин","46621101","26772706","Войсковая часть 12517","5038073159","502043001","Оказание услуг в сфере водоснабжения","VS"]
[16,"Московская область","городской округ Балашиха","46704000","Город Балашиха","46704000","26803940","Войсковая часть 35690","7702232171","500102001","Оказание услуг в сфере водоснабжения","VS"]
[17,"Московская область","Пушкинский муниципальный район","46647000","городское поселение Пушкино","46647101","26649290","Войсковая часть 3641 Московского округа Внутренних войск МВД России","5038019183","501801001","Оказание услуг в сфере водоснабжения","VS"]
[18,"Московская область","Чеховский муниципальный район","46656000","городское поселение Чехов","46656101","26357991","Войсковая часть 52583","5048051612","504801001","Оказание услуг в сфере водоснабжения","VS"]
[19,"Московская область","Солнечногорский муниципальный район","46652000","городское поселение Солнечногорск","46652101","26357962","Войсковая часть 68542","5044010164","504401001","Оказание услуг в сфере водоснабжения","VS"]
[20,"Московская область","Коломенский муниципальный район","46622000","сельское поселение Радужное","46622422","26548122","ГАСУСО МО \"Черкизовский психоневрологический интернат\"","5070000719","502201001","Оказание услуг в сфере водоснабжения и очистки сточных вод","VS"]
[21,"Московская область","Шатурский муниципальный район","46657000","городское поселение Шатура","46657101","26357998","ГБОУ НПО ПУ № 66 МО","5049005915","504901001","Оказание услуг в сфере водоснабжения","VS"]
[22,"Московская область","Волоколамский муниципальный район","46605000","городское поселение Волоколамск","46605101","26510879","ГБОУ СПО МО ВАТ\"Холмогорка\"","5004000160","500401001","Оказание услуг в сфере водоснабжения","VS"]
[23,"Московская область","Егорьевский муниципальный район","46612000","сельское поселение Раменское","46612440","26513744","ГБСУ СО МО \"Егорьевский психоневрологический интернат\"","5011006941","501101001","Оказание услуг в сфере водоснабжения","VS"]
[24,"Московская область","Орехово-Зуевский муниципальный район","46643000","городское поселение Куровское","46643108","26511079","ГБСУ СО МО \"Куровской психоневрологический интернат\"","5073065270","503401001","Оказание услуг в сфере водоснабжения","VS"]
[25,"Московская область","Егорьевский муниципальный район","46612000","городское поселение Егорьевск","46612101","26548263","ГБСУСО МО \"Колычевский ПНИ\"","5011005930","501101001","Оказание услуг в сфере водоснабжения","VS"]
[26,"Московская область","Чеховский муниципальный район","46656000","городское поселение Чехов","46656101","26808476","ГБСУСО МО «Антроповский психоневрологический интернат»","5048051186","504801001","Оказание услуг в сфере водоснабжения","VS"]
[27,"Московская область","Ступинский муниципальный район","46653000","городское поселение Ступино","46653101","26784943","ГБУ  города Москвы \"Психоневрологический интернат № 13\"","5045015550","504501001","Оказание услуг в сфере водоснабжения и очистки сточных вод","VS"]
[28,"Московская область","Ступинский муниципальный район","46653000","сельское поселение Аксиньинское","46653402","26511483","ГБУ \"Пансионат для инвалидов по зрению\"","5045032690","504501001","Оказание услуг в сфере водоснабжения и очистки сточных вод","VS"]
[29,"Московская область","Серпуховский муниципальный район","46651000","сельское поселение Данковское","46651407","26548148","ГБУ ПНИ №2","5077000796","507701001","Оказание услуг в сфере водоснабжения","VS"]
[30,"Московская область","Москва","46000000","Москва","46000000","26631434","ГБУ СО МО \"Центр социально-медицинской реабилитации инвалидов и ветеранов боевых действий \"Ясенки\"","5074035310","507401001","Оказание услуг в сфере водоснабжения","VS"]
[31,"Московская область","Ступинский муниципальный район","46653000","сельское поселение Аксиньинское","46653402","28257178","ГБУВУ \"Социальный приют для детей и подростков\"","5017035138","504501001","Оказание услуг в сфере водоснабжения и очистки сточных вод","VS"]
[32,"Московская область","Рузский муниципальный район","46649000","сельское поселение Колюбакинское","46649402","26531600","ГБУЗ \"ДГБВЛ № 3 ДЗМ\"","5075005654","507501001","Оказание услуг в сфере водоснабжения","VS"]
[33,"Московская область","Красногорский муниципальный район","46623000","сельское поселение Ильинское","46623404","26357724","ГБУЗ \"МГОБ №62 ДЗМ\"","5024001482","502401001","Оказание услуг в сфере водоснабжения","VS"]
[34,"Московская область","Лотошинский муниципальный район","46629000","сельское поселение Микулинское","46629416","26548401","ГБУЗ МО \"ПБ № 12\"","5071001391","507101001","Оказание услуг в сфере водоснабжения","VS"]
[35,"Московская область","Пушкинский муниципальный район","46647000","городское поселение Пушкино","46647101","28059175","ГБУЗ МО \"Санаторий Пушкино\"","5038005670","503801001","Оказание услуг в сфере водоснабжения и очистки сточных вод","VS"]
[36,"Московская область","городской округ Троицк","46775000","Город Троицк","46775000","26647766","ГБУЗ города Москвы «Детский кардиоревматологический санаторий №20 «Красная Пахра» Департамента здравоохранения города Москвы","5046021524","504601001","Оказание услуг в сфере водоснабжения","VS"]
[37,"Московская область","городской округ Домодедово","46709000","Город Домодедово","46709000","26357625","ГКУЗ ПБ №2 ДЗМ","5009014328","500901001","Оказание услуг в сфере водоснабжения и очистки сточных вод","VS"]
[38,"Московская область","Рузский муниципальный район","46649000","сельское поселение Дороховское","46649428","26358059","ГКУЗ ТС №58 ДЗМ","5075008045","507501001","Оказание услуг в сфере водоснабжения","VS"]
[39,"Московская область","Солнечногорский муниципальный район","46652000","городское поселение Солнечногорск","46652101","26357963","ГКУЗ Туберкулезная больница №11 ДЗМ","5044015638","504401001","Оказание услуг в сфере водоснабжения","VS"]
[40,"Московская область","Павлово-Посадский муниципальный район","46645000","городское поселение Павловский Посад","46645101","26357868","ГОУ НПО \"Профессиональное училище № 69\"","5035005312","503501001","Оказание услуг в сфере водоснабжения","VS"]
[41,"Московская область","Егорьевский муниципальный район","46612000","сельское поселение Раменское","46612440","26513742","ГОУ НПО ПЛ № 96 МО","5011004856","501101001","Оказание услуг в сфере водоснабжения","VS"]
[42,"Московская область","Щелковский муниципальный район","46659000","городское поселение Свердловский","46659158","26361045","ГП ТКЦ \"Электробыт\"","7722013234","505001001","Оказание услуг в сфере водоснабжения","VS"]
[43,"Московская область","Красногорский муниципальный район","46623000","городское поселение Красногорск","46623101","26548142","ГПУ \"Медицинский центр\" санаторий Отрадное\"","7709096376","772907141","Оказание услуг в сфере водоснабжения","VS"]
[44,"Московская область","Дмитровский муниципальный район","46608000","городское поселение  Дмитров","46608101","26548347","ГУ \"Психоневрологический интернат №3\"","5007008047","500701001","Оказание услуг в сфере водоснабжения","VS"]
[45,"Московская область","Щелковский муниципальный район","46659000","городское поселение Щелково","46659101","27581963","ГУ здравоохранения г. Москвы Детская психиатрическая больница №11","5050006060","505001001","Оказание услуг в сфере водоснабжения","VS"]
[46,"Московская область","Чеховский муниципальный район","46656000","сельское поселение Любучанское","46656416","26357990","ГУЗ \" Психиатрическая больница №5\"","5048050866","504801001","Оказание услуг в сфере водоснабжения","VS"]
[47,"Московская область","Одинцовский муниципальный район","46641000","городское поселение Одинцово","46641101","26548073","ГУЗ \"Городская клиническая больница №45 департамента здравоохранения г.Москвы\"","5032029890","503201001","Оказание услуг в сфере водоснабжения","VS"]
[48,"Московская область","Одинцовский муниципальный район","46641000","городское поселение Одинцово","46641101","26548227","ГУП \"Московский метрополитен\"","7702038150","503203001","Оказание услуг в сфере водоснабжения","VS"]
[49,"Московская область","городской округ Орехово-Зуево","46757000","Город Орехово-Зуево","46757000","26796753","ГУП МО \"КС МО\"","5034065171","503401001","Оказание услуг в сфере водоснабжения","VS"]
[50,"Московская область","городской округ Звенигород","46730000","Город Звенигород","46730000","26548069","ГУП МЦ \"Санаторий Звенигород\"","7729071411","772501001","Оказание услуг в сфере водоснабжения","VS"]
[51,"Московская область","Сергиево-Посадский муниципальный район","46615000","Город Сергиев Посад","46615101","26360926","ГУП МосНПО \"Радон\"","7704009700","770401001","Оказание услуг в сфере водоснабжения и очистки сточных вод","VS"]
[52,"Московская область","Наро-Фоминский муниципальный район","46638000","Городское поселение Наро-Фоминск","46638101","26548085","ГУП ППЗ \"Птичное\"","5030005679","503001001","Оказание услуг в сфере водоснабжения","VS"]
[53,"Московская область","городской округ Дзержинский","46711000","Город Дзержинский","46711000","26357746","ДМУП \"ЭКПО\"","5027033059","505601001","Оказание услуг в сфере водоснабжения и очистки сточных вод","VS"]
[54,"Московская область","Истринский муниципальный район","46618000","городское поселение Истра","46618101","28047561","ДНП \"РОУД\"","5017054282","501701001","Оказание услуг в сфере водоснабжения и очистки сточных вод","VS"]
[55,"Московская область","Истринский муниципальный район","46618000","сельское поселение Павло-Слободское","46618437","28047529","ДНП \"Чистые пруды\"","5017088926","501701001","Оказание услуг в сфере водоснабжения и очистки сточных вод","VS"]
[56,"Московская область","городской округ Домодедово","46709000","Город Домодедово","46709000","26548039","ДОЛ \"Небо Москвы\"","5003019471","997650001","Оказание услуг в сфере водоснабжения","VS"]
[57,"Московская область","Москва","46000000","Москва","46000000","26548359","Дирекция по эксплуатации городка писателей \"Переделкино\"","5003028042","775101001","Оказание услуг в сфере водоснабжения","VS"]
[58,"Московская область","Коломенский муниципальный район","46622000","городское поселение Пески","46622154","26806038","Дом отдыха \"Северское\" Управления Федеральной службы безопасности РФ по г. Москве и Московской области","7702148402","507032001","Оказание услуг в сфере водоснабжения","VS"]
[59,"Московская область","Москва","46000000","Москва","46000000","26548107","Дом приемов \"Богородское\"","7736050003","500301001","Оказание услуг в сфере водоснабжения","VS"]
[60,"Московская область","Егорьевский муниципальный район","46612000","городское поселение Егорьевск","46612101","26357638","ЕМУП \"Алникс\"","5011017380","501101001","Оказание услуг в сфере водоснабжения","VS"]
[61,"Московская область","Мытищинский муниципальный район","46634000","городское поселение Мытищи","46634101","26548353","ЖСПК \"Вешки-95\"","5029036979","502901001","Оказание услуг в сфере водоснабжения","VS"]
[62,"Московская область","Москва","46000000","Москва","46000000","26358051","ЗАО \" Санаторий \"Ерино\"","5074017181","507401001","Оказание услуг в сфере водоснабжения","VS"]
[63,"Московская область","Одинцовский муниципальный район","46641000","сельское поселение Горское","46641413","26357816","ЗАО \"Агрокомплекс Горки-2\"","5032000193","503201001","Оказание услуг в сфере водоснабжения","VS"]
[64,"Московская область","Ногинский муниципальный район","46639000","сельское поселение Буньковское","46639407","27256344","ЗАО \"Агрокомплекс Ногинский\"","5031069844","503101001","Оказание услуг в сфере водоснабжения и очистки сточных вод","VS"]
[65,"Московская область","Воскресенский муниципальный район","46606000","городское поселение Воскресенск","46606101","26548053","ЗАО \"Аквасток\"","5005041232","500501001","Оказание услуг в сфере водоснабжения","VS"]
[66,"Московская область","Красногорский муниципальный район","46623000","городское поселение Красногорск","46623101","26548015","ЗАО \"Бецема\"","5024012580","502401001","Оказание услуг в сфере водоснабжения","VS"]
[67,"Московская область","городской округ Долгопрудный","46716000","Город Долгопрудный","46716000","26361020","ЗАО \"Вегетта\"","7713070229","773101001","Оказание услуг в сфере водоснабжения","VS"]
[68,"Московская область","Красногорский муниципальный район","46623000","городское поселение Красногорск","46623101","27581214","ЗАО \"Вектор плюс\"","5024099693","502401001","Оказание услуг в сфере водоснабжения","VS"]
[69,"Московская область","Луховицкий муниципальный район","46630000","сельское поселение Фруктовское","46630452","26358037","ЗАО \"ГОРАК\"","5072701075","507201001","Оказание услуг в сфере водоснабжения","VS"]
[70,"Московская область","Одинцовский муниципальный район","46641000","городское поселение Одинцово","46641101","26548389","ЗАО \"Голицынская птицефабрика\"","5032000228","503201001","Оказание услуг в сфере водоснабжения","VS"]
[71,"Московская область","Ногинский муниципальный район","46639000","городское поселение Ногинск","46639101","26544006","ЗАО \"Группа \"Энерготехсервис\"","7719161472","771901001","Оказание услуг в сфере водоснабжения и очистки сточных вод","VS"]
[72,"Московская область","Одинцовский муниципальный район","46641000","сельское поселение Ершовское","46641419","26357844","ЗАО \"Дом Отдыха \"Ершово\"","5032053886","503201001","Оказание услуг в сфере водоснабжения","VS"]
[73,"Московская область","Одинцовский муниципальный район","46641000","сельское поселение Часцовское","46641464","26357838","ЗАО \"Дом отдыха Покровское\"","5032032484","503201001","Оказание услуг в сфере водоснабжения","VS"]
[74,"Московская область","Щелковский муниципальный район","46659000","городское поселение Щелково","46659101","26548447","ЗАО \"Домостроитель\"","5050009760","505001001","Оказание услуг в сфере водоснабжения","VS"]
[75,"Московская область","Талдомский муниципальный район","46654000","городское поселение Запрудня","46654158","26548385","ЗАО \"ЖКС поселка Запрудня\"","5078015146","507801001","Оказание услуг в сфере водоснабжения","VS"]
[76,"Московская область","Сергиево-Посадский муниципальный район","46615000","сельское поселение Лозовское","46615458","26357944","ЗАО \"ЗОЗП\"","5042015689","504201001","Оказание услуг в сфере водоснабжения","VS"]
[77,"Московская область","Наро-Фоминский муниципальный район","46638000","сельское поселение Атепцевское","46638404","26357783","ЗАО \"ЗЭИМ \"Элинар\"","5030035264","503001001","Оказание услуг в сфере водоснабжения","VS"]
[78,"Московская область","Одинцовский муниципальный район","46641000","городское поселение Заречье","46641157","26357819","ЗАО \"Заречье\" им.С.А.Кушнарева","5032001366","503201001","Оказание услуг в сфере водоснабжения","VS"]
[79,"Московская область","городской округ Троицк","46775000","Город Троицк","46775000","26509171","ЗАО \"Знамя Подмосковье\"","5074000156","507401001","Оказание услуг в сфере водоснабжения","VS"]
[80,"Московская область","Красногорский муниципальный район","46623000","городское поселение Красногорск","46623101","26548277","ЗАО \"ИСК \"Новое строительство\"","7710155065","774501001","Оказание услуг в сфере водоснабжения","VS"]
[81,"Московская область","Одинцовский муниципальный район","46641000","городское поселение Одинцово","46641101","26548175","ЗАО \"КОМПЛЕКС-ЧИГ\"","7703065332","503201001","Оказание услуг в сфере водоснабжения","VS"]
[82,"Московская область","городской округ Климовск","46736000","Город Климовск","46736000","26549209","ЗАО \"КСПЗ\"","5021011845","401801001","Оказание услуг в сфере водоснабжения","VS"]
[83,"Московская область","Каширский муниципальный район","46620000","сельское поселение Колтовское","46620413","26508665","ЗАО \"Каширское\"","5019015634","501901001","Оказание услуг в сфере водоснабжения","VS"]
[84,"Московская область","Можайский муниципальный район","46633000","городское поселение Уваровка","46633154","26807285","ЗАО \"Колхоз Уваровский\"","5028015648","502801001","Оказание услуг в сфере водоснабжения","VS"]
[85,"Московская область","Раменский муниципальный район","46648000","городское поселение Раменское","46648101","26548243","ЗАО \"Константиновская птицефабрика\"","5040072681","504001001","Оказание услуг в сфере водоснабжения","VS"]
[86,"Московская область","городской округ Лобня","46740000","Город Лобня","46740000","26548146","ЗАО \"Краснополянская птицефабрика\"","5029014809","502901001","Оказание услуг в сфере водоснабжения","VS"]
[87,"Московская область","Ступинский муниципальный район","46653000","городское поселение Ступино","46653101","26785033","ЗАО \"Леонтьево\"","5045001966","504501001","Оказание услуг в сфере водоснабжения и очистки сточных вод","VS"]
[88,"Московская область","Одинцовский муниципальный район","46641000","городское поселение Одинцово","46641101","26650567","ЗАО \"Матвеевское\"","5032025310","503201001","Оказание услуг в сфере водоснабжения","VS"]
[89,"Московская область","городской округ Домодедово","46709000","Город Домодедово","46709000","26504868","ЗАО \"Международный аэропорт Домодедово\"","5009026330","997650001","Оказание услуг в сфере водоснабжения","VS"]
[90,"Московская область","городской округ Домодедово","46709000","Город Домодедово","46709000","26548327","ЗАО \"Международный аэропорт Домодедово\"","5009026330","997650002","Оказание услуг в сфере водоснабжения","VS"]
[91,"Московская область","Москва","46000000","Москва","46000000","26567385","ЗАО \"Металоре\"","5003083558","500301001","Оказание услуг в сфере водоснабжения и очистки сточных вод","VS"]
[92,"Московская область","Можайский муниципальный район","46633000","городское поселение Можайск","46633101","26548093","ЗАО \"Можайский\"","5028000377","502801001","Оказание услуг в сфере водоснабжения","VS"]
[93,"Московская область","городской округ Балашиха","46704000","Город Балашиха","46704000","26357546","ЗАО \"Московский авиационно-ремонтный завод РОСТО\" (\"МАРЗ РОСТО\")","5001020016","500101001","Оказание услуг в сфере водоснабжения","VS"]
[94,"Московская область","Одинцовский муниципальный район","46641000","городское поселение Одинцово","46641101","26548341","ЗАО \"Московский конный завод № 1\"","5032039592","503201001","Оказание услуг в сфере водоснабжения","VS"]
[95,"Московская область","Москва","46000000","Москва","46000000","26548369","ЗАО \"Мосрентген\"","5003760880","500307001","Оказание услуг в сфере водоснабжения","VS"]
[96,"Московская область","Красногорский муниципальный район","46623000","городское поселение Красногорск","46623101","26357727","ЗАО \"Никольское\"","5024013512","502401001","Оказание услуг в сфере водоснабжения","VS"]
[97,"Московская область","Красногорский муниципальный район","46623000","городское поселение Красногорск","46623101","27554202","ЗАО \"Новая усадьба\"","7728587940","502401001","Оказание услуг в сфере водоснабжения","VS"]
[98,"Московская область","Чеховский муниципальный район","46656000","городское поселение Чехов","46656101","26548065","ЗАО \"Новый Быт\"","5048019136","504801001","Оказание услуг в сфере водоснабжения","VS"]
[99,"Московская область","Ногинский муниципальный район","46639000","городское поселение Ногинск","46639101","26548021","ЗАО \"Ногинское\"","5031015180","503101001","Оказание услуг в сфере водоснабжения","VS"]
[100,"Московская область","Одинцовский муниципальный район","46641000","сельское поселение Часцовское","46641464","26357817","ЗАО \"Петелинская птицефабрика\"","5032000235","503201001","Оказание услуг в сфере водоснабжения","VS"]
[101,"Московская область","городской округ Домодедово","46709000","Город Домодедово","46709000","26548289","ЗАО \"Племенной завод \"Барыбино\"","5009041258","997650003","Оказание услуг в сфере водоснабжения","VS"]
[102,"Московская область","Одинцовский муниципальный район","46641000","городское поселение Одинцово","46641101","26548315","ЗАО \"Племхоз Наро-Осановский\"","5032025455","503201001","Оказание услуг в сфере водоснабжения","VS"]
[103,"Московская область","Раменский муниципальный район","46648000","городское поселение Раменское","46648101","26650368","ЗАО \"Продснаб АПК Раменский\"","5040034453","504001001","Оказание услуг в сфере водоснабжения","VS"]
[104,"Московская область","Павлово-Посадский муниципальный район","46645000","городское поселение Павловский Посад","46645101","26357864","ЗАО \"Производственное объединение \"Берег\"","5035001332","503501001","Оказание услуг в сфере водоснабжения","VS"]
[105,"Московская область","Дмитровский муниципальный район","46608000","городское поселение  Дмитров","46608101","26548321","ЗАО \"СИК КОНКОР\"","7734049820","500731001","Оказание услуг в сфере водоснабжения","VS"]
[106,"Московская область","Сергиево-Посадский муниципальный район","46615000","городское поселение Богородское","46615153","26357948","ЗАО \"СТРОЙГРУППА СП\"","5042074571","504201001","Оказание услуг в сфере водоснабжения","VS"]
[107,"Московская область","Сергиево-Посадский муниципальный район","46615000","Город Сергиев Посад","46615101","26357949","ЗАО \"СТЭК\"","5042080504","504201001","Оказание услуг в сфере водоснабжения","VS"]
[108,"Московская область","Пушкинский муниципальный район","46647000","городское поселение Правдинский","46647158","26357894","ЗАО \"Санаторий Зеленый городок\"","5038004010","503801001","Оказание услуг в сфере водоснабжения","VS"]
[109,"Московская область","Истринский муниципальный район","46618000","сельское поселение Лучинское","46618425","26510967","ЗАО \"Санаторий Истра\"","5017003947","501701001","Оказание услуг в сфере водоснабжения","VS"]
[110,"Московская область","Коломенский муниципальный район","46622000","городское поселение Пески","46622154","26548345","ЗАО \"Сергиевское ВМК\"","5022060362","502201001","Оказание услуг в сфере водоснабжения","VS"]
[111,"Московская область","Одинцовский муниципальный район","46641000","городское поселение Одинцово","46641101","26548283","ЗАО \"Совхоз Москворецкий\"","5032058267","503201001","Оказание услуг в сфере водоснабжения","VS"]
[112,"Московская область","Ленинский муниципальный район","46628000","сельское поселение Совхоз имени Ленина","46628411","26548177","ЗАО \"Совхоз имени Ленина\"","5003009032","500301001","Оказание услуг в сфере водоснабжения","VS"]
[113,"Московская область","Воскресенский муниципальный район","46606000","городское поселение Воскресенск","46606101","26777934","ЗАО \"Станция очистки\"","5005033834","500501001","Оказание услуг в сфере водоснабжения","VS"]
[114,"Московская область","Одинцовский муниципальный район","46641000","городское поселение Одинцово","46641101","26548397","ЗАО \"УМЦ Голицыно\"","5032008153","503201001","Оказание услуг в сфере водоснабжения","VS"]
[115,"Московская область","городской округ Долгопрудный","46716000","Город Долгопрудный","46716000","26357617","ЗАО \"Универсал-нефть\"","5008028511","500801001","Оказание услуг в сфере водоснабжения","VS"]
[116,"Московская область","Пушкинский муниципальный район","46647000","городское поселение Пушкино","46647101","26639008","ЗАО \"Центромебель\" детский оздоровительный центр \"Пушкино\"","7705044296","503803001","Оказание услуг в сфере водоснабжения","VS"]
[117,"Московская область","Одинцовский муниципальный район","46641000","городское поселение Одинцово","46641101","26548152","ЗАО \"Шарапово\"","5032002264","503201001","Оказание услуг в сфере водоснабжения","VS"]
[118,"Московская область","Истринский муниципальный район","46618000","городское поселение Истра","46618101","26357683","ЗАО \"ЭНО\"","5017032666","501701001","Оказание услуг в сфере водоснабжения","VS"]
[119,"Московская область","Сергиево-Посадский муниципальный район","46615000","городское поселение Хотьково","46615106","26357929","ЗАО \"Электроизолит\"","5042000530","504201001","Оказание услуг в сфере водоснабжения","VS"]
[120,"Московская область","Ногинский муниципальный район","46639000","сельское поселение Мамонтовское","46639416","26647957","ЗАО \"Элинар-Бройлер\"","5030036290","503001001","Оказание услуг в сфере водоснабжения","VS"]
[121,"Московская область","Москва","46000000","Москва","46000000","26504900","ЗАО « МОСМЕК»","5003086982","500301001","Оказание услуг в сфере водоснабжения","VS"]
[122,"Московская область","городской округ Котельники","46739000","Город Котельники","46739000","28073137","ЗАО «Белая Дача Инжиниринг»","5027188045","502701001","Оказание услуг в сфере водоснабжения и очистки сточных вод","VS"]
[123,"Московская область","Клинский муниципальный район","46621000","городское поселение Клин","46621101","26772758","ЗАО «Водоканал»","5020051845","502001001","Оказание услуг в сфере водоснабжения","VS"]
[124,"Московская область","Воскресенский муниципальный район","46606000","городское поселение Воскресенск","46606101","26777937","ЗАО «Воскресенское»","5005001776","500501001","Оказание услуг в сфере водоснабжения","VS"]
[125,"Московская область","городской округ Железнодорожный","46724000","Город Железнодорожный","46724000","28007395","ЗАО «МОЭГ»","5012070724","501201001","Оказание услуг в сфере водоснабжения и очистки сточных вод","VS"]
[126,"Московская область","Клинский муниципальный район","46621000","городское поселение Клин","46621101","26773206","ЗАО «Петелинская птицефабрика»","5032000235","502032001","Оказание услуг в сфере водоснабжения","VS"]
[127,"Московская область","городской округ Химки","46783000","Город Химки","46783000","26505020","ЗАО «ЭУК Подмосковье-Сервис»","5032047850","504701001","Оказание услуг в сфере водоснабжения","VS"]
[128,"Московская область","Москва","46000000","Москва","46000000","26357556","ЗАО Агрокомбинат \"Московский\"","5003003432","500301001","Оказание услуг в сфере водоснабжения","VS"]
[129,"Московская область","Коломенский муниципальный район","46622000","сельское поселение Биорковское","46622404","26504934","ЗАО ПО «Карасевский керамический завод»","5027130359","502201001","Оказание услуг в сфере водоснабжения","VS"]
[130,"Московская область","Раменский муниципальный район","46648000","городское поселение Раменское","46648101","26650381","ЗАО ПХ \"Чулковское\"","5040004160","504001001","Оказание услуг в сфере водоснабжения","VS"]
[131,"Московская область","Ступинский муниципальный район","46653000","сельское поселение Аксиньинское","46653402","26357970","ЗАО Сельскохозяйственное предприятие \"Аксиньино\"","5045000352","504501001","Оказание услуг в сфере водоснабжения","VS"]
[132,"Московская область","Мытищинский муниципальный район","46634000","городское поселение Пироговский","46634162","26548120","ЗАО ТК \"Клязьминское водохранилище\"","5029026466","502901001","Оказание услуг в сфере водоснабжения","VS"]
[133,"Московская область","Ступинский муниципальный район","46653000","городское поселение Ступино","46653101","26627395","ЗАО Управляющая компания \"ИнтеллектСервис\"","7727651270","772701001","Оказание услуг в сфере водоснабжения","VS"]
[134,"Московская область","городской округ Домодедово","46709000","Город Домодедово","46709000","26357630","ЗАО племзавод \"Барыбино\"","5009041258","500901001","Оказание услуг в сфере водоснабжения и очистки сточных вод","VS"]
[135,"Московская область","Воскресенский муниципальный район","46606000","городское поселение Воскресенск","46606101","26548055","Замоскворецкая КЭЧ","7704065166","770401001","Оказание услуг в сфере водоснабжения","VS"]
[136,"Московская область","Шатурский муниципальный район","46657000","городское поселение Шатура","46657101","26548445","ИПЛИТ РАН","5049005016","504901001","Оказание услуг в сфере водоснабжения","VS"]
[137,"Московская область","Шатурский муниципальный район","46657000","сельское поселение Кривандинское","46657416","26358000","Кривандинское МУ ЖКП","5049008602","504901001","Оказание услуг в сфере водоснабжения","VS"]
[138,"Московская область","Щелковский муниципальный район","46659000","городское поселение Свердловский","46659158","26358016","ЛПУ \"Гастроэнтерологический  санаторий \"Монино\"","5050028120","505001001","Оказание услуг в сфере водоснабжения и очистки сточных вод","VS"]
[139,"Московская область","Пушкинский муниципальный район","46647000","городское поселение Ашукино","46647152","26357907","Лечебно-профилактическое учреждение \"Санаторий Правда\"","5038036051","503801001","Оказание услуг в сфере водоснабжения","VS"]
[140,"Московская область","Пушкинский муниципальный район","46647000","сельское поселение Ельдигинское","46647407","26357896","Лечебно-профилактическое учреждение Санаторно-курортное объединение \"Тишково\"","5038005582","503801001","Оказание услуг в сфере водоснабжения","VS"]
[141,"Московская область","Озерский муниципальный район","46642000","городское поселение Озеры","46642101","26649472","Лечебно-профилактическое учреждение санаторий «Озёры»","5033002210","503301001","Оказание услуг в сфере водоснабжения","VS"]
[142,"Московская область","Егорьевский муниципальный район","46612000","городское поселение Егорьевск","46612101","26548373","МОПБ №3","5011011388","501101001","Оказание услуг в сфере водоснабжения","VS"]
[143,"Московская область","Ленинский муниципальный район","46628000","городское поселение Видное","46628101","26514988","МП \"Видновское ПТО ГХ\"","5003002816","500301001","Оказание услуг в сфере водоснабжения","VS"]
[144,"Московская область","Озерский муниципальный район","46642000","городское поселение Озеры","46642101","26548165","МП \"Водоканал\"","5022556672","503301001","Оказание услуг в сфере водоснабжения","VS"]
[145,"Московская область","городской округ Лыткарино","46741000","Город Лыткарино","46741000","26548421","МП \"Водоканал\"","5026000090","502601001","Оказание услуг в сфере водоснабжения","VS"]
[146,"Московская область","Чеховский муниципальный район","46656000","городское поселение Чехов","46656101","26357992","МП \"ЖКХ \" Чеховского района","5048052077","504801001","Оказание услуг в сфере водоснабжения","VS"]
[147,"Московская область","городской округ Лосино-Петровский","46742000","Город Лосино-Петровский","46742000","28044250","МП \"ЛП КТВС\"","5050097808","505001001","Оказание услуг в сфере водоснабжения и очистки сточных вод","VS"]
[148,"Московская область","Лотошинский муниципальный район","46629000","городское поселение Лотошино","46629151","28054885","МП \"Лотошинское ЖКХ\"","5071005886","507101001","Оказание услуг в сфере водоснабжения","VS"]
[149,"Московская область","Щелковский муниципальный район","46659000","городское поселение Монино","46659154","27709982","МП \"Монинский имущественный комплекс\"","5050092408","505001001","Оказание услуг в сфере водоснабжения и очистки сточных вод","VS"]
[150,"Московская область","Щелковский муниципальный район","46659000","городское поселение Щелково","46659101","26548331","МП ЩР \"Щелковский Водоканал\"","5050025306","505001001","Оказание услуг в сфере водоснабжения и очистки сточных вод","VS"]
[151,"Московская область","Шаховской муниципальный район","46658000","городское поселение Шаховская","46658151","26358074","МПКХ \"Шаховская\"","5079000720","507901001","Оказание услуг в сфере водоснабжения","VS"]
[152,"Московская область","городской округ Котельники","46739000","Город Котельники","46739000","26357752","МУЖКП \"Котельники\"","5027048658","502701001","Оказание услуг в сфере водоснабжения","VS"]
[153,"Московская область","городской округ Дубна","46718000","Город Дубна","46718000","26357633","МУП  г. Дубны \"ПТО ГХ\"","5010010769","501001001","Оказание услуг в сфере водоснабжения","VS"]
[154,"Московская область","Егорьевский муниципальный район","46612000","городское поселение Егорьевск","46612101","26357640","МУП \"Азимут\"","5011018009","501101001","Оказание услуг в сфере водоснабжения","VS"]
[155,"Московская область","Воскресенский муниципальный район","46606000","городское поселение Воскресенск","46606101","26508619","МУП \"Белоозерское ЖКХ\"","5005038631","500501001","Оказание услуг в сфере водоснабжения","VS"]
[156,"Московская область","городской округ Власиха","46773000","Городской округ Власиха","46773000","26647127","МУП \"Благоустройство и развитие\" городского округа Власиха","5032223658","503201001","Оказание услуг в сфере водоснабжения","VS"]
[157,"Московская область","Одинцовский муниципальный район","46641000","городское поселение Большие Вяземы","46641152","26548211","МУП \"Большие Вяземы\"","5032199148","503201001","Оказание услуг в сфере водоснабжения","VS"]
[158,"Московская область","Истринский муниципальный район","46618000","городское поселение Истра","46618101","26357679","МУП \"Бужаровское РЭП ЖКХ\"","5017031214","501701001","Оказание услуг в сфере водоснабжения","VS"]
[159,"Московская область","Истринский муниципальный район","46618000","сельское поселение Букаревское","46618404","26357677","МУП \"Букаревское РЭП ЖКХ\"","5017030997","501701001","Оказание услуг в сфере водоснабжения","VS"]
[160,"Московская область","Мытищинский муниципальный район","46634000","городское поселение Мытищи","46634101","26548126","МУП \"ВК и ЖКХ \"Поведники\"","5029007008","502901001","Оказание услуг в сфере водоснабжения","VS"]
[161,"Московская область","городской округ Железнодорожный","46724000","Город Железнодорожный","46724000","26548059","МУП \"Водоканал","5012027045","501201001","Оказание услуг в сфере водоснабжения","VS"]
[162,"Московская область","Сергиево-Посадский муниципальный район","46615000","Город Сергиев Посад","46615101","26548357","МУП \"Водоканал\"","5042002584","504201001","Оказание услуг в сфере водоснабжения и очистки сточных вод","VS"]
[163,"Московская область","городской округ Климовск","46736000","Город Климовск","46736000","26548269","МУП \"Водоканал\"","5021012542","502101001","Оказание услуг в сфере водоснабжения","VS"]
[164,"Московская область","городской округ Подольск","46760000","Город Подольск","46760000","26548317","МУП \"Водоканал\"","5036029468","503601001","Оказание услуг в сфере водоснабжения","VS"]
[165,"Московская область","городской округ Фрязино","46780000","Город Фрязино","46780000","26548427","МУП \"Водоканал\"","5052009050","505201001","Оказание услуг в сфере водоснабжения","VS"]
[166,"Московская область","городской округ Серпухов","46770000","Город Серпухов","46770000","26548215","МУП \"Водоканал-Сервис","5043019742","504301001","Оказание услуг в сфере водоснабжения","VS"]
[167,"Московская область","Каширский муниципальный район","46620000","городское поселение Кашира","46620101","26548335","МУП \"Водоресурс\"","5019017166","501901001","Оказание услуг в сфере водоснабжения","VS"]
[168,"Московская область","Клинский муниципальный район","46621000","городское поселение Высоковск","46621103","26357707","МУП \"Высоковский коммунальщик\"","5020044492","502001001","Оказание услуг в сфере водоснабжения","VS"]
[169,"Московская область","Солнечногорский муниципальный район","46652000","городское поселение Солнечногорск","46652101","26357966","МУП \"Городское хозяйство\" г.о. Солнечногорск","5044069577","504401001","Оказание услуг в сфере водоснабжения","VS"]
[170,"Московская область","Каширский муниципальный район","46620000","городское поселение Кашира","46620101","26774401","МУП \"ДЕЗ Горхоз\"","5019021684","501901001","Транспортировка воды","VS"]
[171,"Московская область","городской округ Домодедово","46709000","Город Домодедово","46709000","26548075","МУП \"Домодедовский водоканал\"","5009034660","997650006","Оказание услуг в сфере водоснабжения","VS"]
[172,"Московская область","Ступинский муниципальный район","46653000","городское поселение Малино","46653156","26357975","МУП \"Дубневское ЖКХ\"","5045018751","504501001","Оказание услуг в сфере водоснабжения","VS"]
[173,"Московская область","Зарайский муниципальный район","46616000","городское поселение Зарайск","46616101","26357658","МУП \"ЕСКХ Зарайского района\"","5014008866","501401001","Оказание услуг в сфере водоснабжения","VS"]
[174,"Московская область","Егорьевский муниципальный район","46612000","горосдское поселение Рязановский","46612160","26357637","МУП \"ЖИЛЭП\"","5011002440","501101001","Оказание услуг в сфере водоснабжения","VS"]
[175,"Московская область","Егорьевский муниципальный район","46612000","сельское поселение Раменское","46612440","26357642","МУП \"ЖКХ - Раменки\"","5011020142","501101001","Оказание услуг в сфере водоснабжения и очистки сточных вод","VS"]
[176,"Московская область","городской округ Щербинка","46789000","Город Щербинка","46789000","26358023","МУП \"ЖКХ г. Щербинки\"","5051006070","505101001","Оказание услуг в сфере водоснабжения","VS"]
[177,"Московская область","городской округ Юбилейный","46793000","Город Юбилейный","46793000","26358033","МУП \"Жилищно-коммунальное объединение\" г.Юбилейного","5054086525","505401001","Оказание услуг в сфере водоснабжения","VS"]
[178,"Московская область","городской округ Молодежный (ЗАТО)","46761000","Поселок Молодежный (ЗАТО)","46761000","26357784","МУП \"Жилкомбытстрой-Молодежный\"","5030041170","503001001","Оказание услуг в сфере водоснабжения","VS"]
[179,"Московская область","Талдомский муниципальный район","46654000","городское поселение Талдом","46654101","26548287","МУП \"Жилкомсервис\"","5078015900","507801001","Оказание услуг в сфере водоснабжения","VS"]
[180,"Московская область","городской округ Ивантеевка","46732000","Город Ивантеевка","46732000","26548371","МУП \"Ивантеевский Водоканал\"","5016013318","501601001","Оказание услуг в сфере водоснабжения","VS"]
[181,"Московская область","городской округ Долгопрудный","46716000","Город Долгопрудный","46716000","26357618","МУП \"Инженерные сети г.Долгопрудного\"","5008032317","500801001","Оказание услуг в сфере водоснабжения","VS"]
[182,"Московская область","Истринский муниципальный район","46618000","городское поселение Истра","46618101","26548379","МУП \"Истринский Водоканал\"","5017046926","501701001","Оказание услуг в сфере водоснабжения","VS"]
[183,"Московская область","Сергиево-Посадский муниципальный район","46615000","городское поселение Краснозаводск","46615103","28275063","МУП \"ККК\"","5042128611","504201001","Оказание услуг в сфере водоснабжения","VS"]
[184,"Московская область","Люберецкий муниципальный район","46631000","городское поселение Красково","46631165","26357757","МУП \"Комбинат ЖКХ и благоустройства\"","5027084381","502701001","Оказание услуг в сфере водоснабжения","VS"]
[185,"Московская область","Сергиево-Посадский муниципальный район","46615000","городское поселение Пересвет","46615105","26548158","МУП \"Коммунальные сети\"","5042110156","504201001","Оказание услуг в сфере водоснабжения","VS"]
[186,"Московская область","Сергиево-Посадский муниципальный район","46615000","городское поселение Хотьково","46615106","26548405","МУП \"Коммунальные системы Хотьково\"","5042116990","504201001","Оказание услуг в сфере водоснабжения и очистки сточных вод","VS"]
[187,"Московская область","Талдомский муниципальный район","46654000","городское поселение Вербилки","46654154","26622068","МУП \"Коммунальный сервис Вербилки\"","5078019574","507801001","Оказание услуг в сфере водоснабжения и очистки сточных вод","VS"]
[188,"Московская область","городской округ Электрогорск","46791000","Город Электрогорск","46791000","26357873","МУП \"Коммунальщик\"","5035032436","503503001","Оказание услуг в сфере водоснабжения","VS"]
[189,"Московская область","Истринский муниципальный район","46618000","сельское поселение Костровское","46618419","26357676","МУП \"Костровское РЭП ЖКХ\"","5017030877","501701001","Оказание услуг в сфере водоснабжения","VS"]
[190,"Московская область","Подольский муниципальный район","46646000","городское поселение Львовский","46646154","28009115","МУП \"ЛТЭК\"","5074046190","507401001","Оказание услуг в сфере водоснабжения и очистки сточных вод","VS"]
[191,"Московская область","Пушкинский муниципальный район","46647000","городское поселение Лесной","46647156","26548323","МУП \"Лесной\"","5038070260","503801001","Оказание услуг в сфере водоснабжения","VS"]
[192,"Московская область","Воскресенский муниципальный район","46606000","городское поселение Хорлово","46606167","26508623","МУП \"Лопатинское ЖКХ\"","5005038663","500501001","Оказание услуг в сфере водоснабжения","VS"]
[193,"Московская область","Солнечногорский муниципальный район","46652000","сельское поселение Луневское","46652416","26531579","МУП \"Луневобытсервис\"","5044069680","504401001","Оказание услуг в сфере водоснабжения","VS"]
[194,"Московская область","Воскресенский муниципальный район","46606000","городское поселение им. Цюрупы","46606180","26508617","МУП \"Нерское ЖКХ\"","5005038688","500501001","Оказание услуг в сфере водоснабжения","VS"]
[195,"Московская область","Истринский муниципальный район","46618000","городское поселение Истра","46618101","26357675","МУП \"Ново-Петровское ПТО ЖКХ\"","5017030348","501701001","Оказание услуг в сфере водоснабжения","VS"]
[196,"Московская область","Егорьевский муниципальный район","46612000","городское поселение Егорьевск","46612101","26357641","МУП \"Новь\"","5011018111","501101001","Оказание услуг в сфере водоснабжения","VS"]
[197,"Московская область","Люберецкий муниципальный район","46631000","городское поселение Октябрьский","46631170","26548163","МУП \"Октябрьский водоканал\"","5027089781","502701001","Оказание услуг в сфере водоснабжения","VS"]
[198,"Московская область","Истринский муниципальный район","46618000","городское поселение Истра","46618101","26357680","МУП \"Онуфриевское РЭП ЖКХ\"","5017031260","501701001","Оказание услуг в сфере водоснабжения","VS"]
[199,"Московская область","Волоколамский муниципальный район","46605000","сельское поселение Осташевское","46605431","26357584","МУП \"Осташевское ПТП ЖКХ\"","5004023103","500401001","Оказание услуг в сфере водоснабжения","VS"]
[200,"Московская область","городской округ Рошаль","46765000","Город Рошаль","46765000","26549326","МУП \"ПТО ГХ г.Рошаль\"","5049002223","505501001","Оказание услуг в сфере водоснабжения","VS"]
[201,"Московская область","Ступинский муниципальный район","46653000","городское поселение Ступино","46653101","26645400","МУП \"ПТО ЖКХ\" городского поселения Ступино","5045003106","504501001","Оказание услуг в сфере водоснабжения и очистки сточных вод","VS"]
[202,"Московская область","городской округ Электросталь","46790000","Город Электросталь","46790000","26504820","МУП \"ПТП ГХ\", городской округ Электросталь","5053006284","505301001","Оказание услуг в сфере водоснабжения","VS"]
[203,"Московская область","Истринский муниципальный район","46618000","городское поселение Истра","46618101","26357678","МУП \"Павло-Слободское РЭП ЖКХ\"","5017031077","501701001","Оказание услуг в сфере водоснабжения","VS"]
[204,"Московская область","Пушкинский муниципальный район","46647000","городское поселение Пушкино","46647101","26548223","МУП \"Пушкинский Водоканал\"","5038057693","503801001","Оказание услуг в сфере водоснабжения","VS"]
[205,"Московская область","Воскресенский муниципальный район","46606000","сельское поселение Фединское","46606413","26508625","МУП \"Ратмировское ЖКХ\"","5005038624","500501001","Оказание услуг в сфере водоснабжения","VS"]
[206,"Московская область","городской округ Реутов","46764000","Город Реутов","46764000","26548144","МУП \"Реутовский водоканал\"","5012028497","504101001","Оказание услуг в сфере водоснабжения","VS"]
[207,"Московская область","городской округ Красноармейск","46743000","Город Красноармейск","46743000","26357719","МУП \"СКИ\"","5023010332","502301001","Оказание услуг в сфере водоснабжения","VS"]
[208,"Московская область","городской округ Черноголовка","46781000","Город Черноголовка","46781000","26511949","МУП \"Служба единого заказчика ЖКХ\"","5031044222","503101001","Оказание услуг в сфере водоснабжения","VS"]
[209,"Московская область","Волоколамский муниципальный район","46605000","городское поселение Сычево","46605158","26548413","МУП \"Сычевское ПТП ЖКХ\"","5004023128","500401001","Оказание услуг в сфере водоснабжения","VS"]
[210,"Московская область","Люберецкий муниципальный район","46631000","городское поселение Томилино","46631173","28267720","МУП \"ТКК\"","5027202116","502701001","Оказание услуг в сфере водоснабжения","VS"]
[211,"Московская область","Ступинский муниципальный район","46653000","городское поселение Михнево","46653158","26357976","МУП \"Татариновское ЖКХ\"","5045019755","504501001","Оказание услуг в сфере водоснабжения","VS"]
[212,"Московская область","городской округ Коломна","46738000","Город Коломна","46738000","26357717","МУП \"Тепло Коломны\"","5022030985","502201001","Оказание услуг в сфере водоснабжения","VS"]
[213,"Московская область","городской округ Пущино","46762000","Город Пущино","46762000","26357914","МУП \"Тепловодоканал\"","5039008071","503901001","Оказание услуг в сфере водоснабжения","VS"]
[214,"Московская область","Орехово-Зуевский муниципальный район","46643000","городское поселение Куровское","46643108","26354067","МУП \"Теплосеть\" Орехово-Зуевского района","5034028109","503401001","Оказание услуг в сфере водоснабжения и очистки сточных вод","VS"]
[215,"Московская область","Серпуховский муниципальный район","46651000","сельское поселение Дашковское","46651413","27018501","МУП \"Управляющая компания\"","5077024268","507701001","Оказание услуг в сфере водоснабжения","VS"]
[216,"Московская область","Мытищинский муниципальный район","46634000","сельское поселение Федоскинское","46634422","26579672","МУП \"Федоскинские инженерные системы\"","5029136483","502901001","Оказание услуг в сфере водоснабжения","VS"]
[217,"Московская область","Каширский муниципальный район","46620000","сельское поселение Топкановское","46620419","27734283","МУП \"Феникс\"","5019022952","501901001","Оказание услуг в сфере водоснабжения","VS"]
[218,"Московская область","Павлово-Посадский муниципальный район","46645000","городское поселение Павловский Посад","46645101","26357869","МУП \"Энергетик\"","5035019481","503501001","Оказание услуг в сфере водоснабжения","VS"]
[219,"Московская область","Истринский муниципальный район","46618000","городское поселение Истра","46618101","26357682","МУП \"Ядроминское РЭП ЖКХ\"","5017031775","501701001","Оказание услуг в сфере водоснабжения","VS"]
[220,"Московская область","Подольский муниципальный район","46646000","сельское поселение Лаговское","46646416","28009087","МУП «Бытсервис»","5074046344","507401001","Оказание услуг в сфере водоснабжения и очистки сточных вод","VS"]
[221,"Московская область","городкской округ Восход (ЗАТО)","46763000","Поселок Восход (ЗАТО)","46763000","26504916","МУП «ВОСХОД-КОМПЛЕКС»","5017042382","501701001","Оказание услуг в сфере водоснабжения","VS"]
[222,"Московская область","Мытищинский муниципальный район","46634000","городское поселение Мытищи","46634101","26808077","МУП «ГЖЭУ-4»","5029033350","502901001","Оказание услуг в сфере водоснабжения","VS"]
[223,"Московская область","Каширский муниципальный район","46620000","сельское поселение Домнинское","46620407","27496827","МУП «Домнинское»","5019020602","501901001","Оказание услуг в сфере водоснабжения и очистки сточных вод","VS"]
[224,"Московская область","Каширский муниципальный район","46620000","городское поселение Кашира","46620101","26818252","МУП «ПТК»","5019022504","501901001","Оказание услуг в сфере водоснабжения","VS"]
[225,"Московская область","Сергиево-Посадский муниципальный район","46615000","сельское поселение Селковское","46615452","27505912","МУП «РСК Селковское»","5042121278","504201001","Оказание услуг в сфере водоснабжения","VS"]
[226,"Московская область","Сергиево-Посадский муниципальный район","46615000","сельское поселение Березняковское","46615406","27284710","МУП «Ресурс»","5042120228","504201001","Оказание услуг в сфере водоснабжения","VS"]
[227,"Московская область","Талдомский муниципальный район","46654000","городское поселение Талдом","46654101","26358073","МУП «Талдомсервис»","5078015918","507801001","Оказание услуг в сфере водоснабжения","VS"]
[228,"Московская область","городской округ Краснознаменск (ЗАТО)","46706000","Город Краснознаменск (ЗАТО)","46706000","26566851","МУП ВКХ \"Водоканал\"","5006004145","500601001","Оказание услуг в сфере водоснабжения и очистки сточных вод","VS"]
[229,"Московская область","Сергиево-Посадский муниципальный район","46615000","городское поселение Краснозаводск","46615103","26357940","МУП ГХ г.Краснозаводск","5042006606","504201001","Оказание услуг в сфере водоснабжения","VS"]
[230,"Московская область","","","","","26773054","МУП ЖКУ МО \"Барановский сельсовет\"","3008005486","300801001","Оказание услуг в сфере водоснабжения","VS"]
[231,"Московская область","Люберецкий муниципальный район","46631000","городское поселение Малаховка","46631167","26357753","МУП ЖКХ ГП Малаховка","5027052196","502701001","Оказание услуг в сфере водоснабжения","VS"]
[232,"Московская область","Егорьевский муниципальный район","46612000","городское поселение Егорьевск","46612101","26357646","МУП КХ \"Егорьевские инженерные сети\"","5011025214","501101001","Оказание услуг в сфере водоснабжения","VS"]
[233,"Московская область","Серебряно-Прудский муниципальный район","46650000","сельское поселение Узуновское","46650419","26358064","МУП МПКХ Узуновское","5076007380","507601001","Оказание услуг в сфере водоснабжения и очистки сточных вод","VS"]
[234,"Московская область","Истринский муниципальный район","46618000","городское поселение Истра","46618101","26357681","МУП Обушковское РЭП ЖКХ","5017031750","501701001","Оказание услуг в сфере водоснабжения","VS"]
[235,"Московская область","Солнечногорский муниципальный район","46652000","городское поселение Андреевка","46652153","27517178","МУП ПК «Андреевка»","5044079945","504401001","Оказание услуг в сфере водоснабжения и очистки сточных вод","VS"]
[236,"Московская область","Орехово-Зуевский муниципальный район","46643000","сельское поселение Демиховское","46643422","26358040","МУП ПТО ЖХ №8 Орехово-Зуевского района","5073006726","507301001","Оказание услуг в сфере водоснабжения","VS"]
[237,"Московская область","Серпуховский муниципальный район","46651000","сельское поселение Дашковское","46651413","28265752","МУП Серпуховского муниципального района \"РКЭУ\"","5077027156","507701001","Оказание услуг в сфере водоснабжения и очистки сточных вод","VS"]
[238,"Московская область","городской округ Серпухов","46770000","Город Серпухов","46770000","26517721","МУП Серпуховского района \"УК ЖКХ\"","5077019733","507701001","Оказание услуг в сфере водоснабжения и очистки сточных вод","VS"]
[239,"Московская область","","","","","26360982","Московская дирекция по тепловодоснабжению - структурное подразделение Центральной дирекции по тепловодоснабжению - филиала ОАО \"РЖД\"","7708503727","770845068","Оказание услуг в сфере водоснабжения","VS"]
[240,"Московская область","Дмитровский муниципальный район","46608000","городское поселение  Дмитров","46608101","27435083","Московская дирекция по тепловодоснабжению СП ЦДТВ –филиал ОАО «РЖД»","7708503727","770845069","","VS"]
[241,"Московская область","Одинцовский муниципальный район","46641000","городское поселение Одинцово","46641101","26650723","Московская экономическая школа","7703093763","503232001","Оказание услуг в сфере водоснабжения","VS"]
[242,"Московская область","городской округ Бронницы","46705000","Город Бронницы","46705000","27622582","Московский филиал ОАО \"Ростелеком\"","7707049388","504743002","Оказание услуг в сфере водоснабжения","VS"]
[243,"Московская область","городской округ Лобня","46740000","Город Лобня","46740000","26548301","Московско-Савеловская дистанция ГС","7708503727","771031001","Оказание услуг в сфере водоснабжения","VS"]
[244,"Московская область","Красногорский муниципальный район","46623000","городское поселение Красногорск","46623101","26548173","Московско-Савеловская дистанция гражданских сооружений","7708503727","990850372","Оказание услуг в сфере водоснабжения","VS"]
[245,"Московская область","городской округ Лыткарино","46741000","Город Лыткарино","46741000","26361046","НИЦ ЦИАМ филиала ФГУП \"ЦИАМ им.П.И.Баранова\"","7722016820","502602001","Оказание услуг в сфере водоснабжения","VS"]
[246,"Московская область","Ногинский муниципальный район","46639000","городское поселение Ногинск","46639101","26804539","НП \"Благоустройство коттеджного поселка \"Лесная Купавна\"","5031071949","503101001","Оказание услуг в сфере водоснабжения","VS"]
[247,"Московская область","городской округ Троицк","46775000","Город Троицк","46775000","26647696","НП «Коттеджный поселок «Городок К»","5046063940","504601001","Оказание услуг в сфере водоснабжения","VS"]
[248,"Московская область","Истринский муниципальный район","46618000","городское поселение Истра","46618101","26567654","НП «Резиденции Бенилюкс»","5017053899","501701001","Оказание услуг в сфере водоснабжения","VS"]
[249,"Московская область","Истринский муниципальный район","46618000","городское поселение Истра","46618101","28047610","НП «ЦАРСКОЕ СЕЛО»","5017088669","501701001","Оказание услуг в сфере водоснабжения и очистки сточных вод","VS"]
[250,"Московская область","Наро-Фоминский муниципальный район","46638000","Городское поселение Наро-Фоминск","46638101","26357779","Наро-Фоминская КЭЧ","5030011009","503001001","Оказание услуг в сфере водоснабжения","VS"]
[251,"Московская область","Наро-Фоминский муниципальный район","46638000","Городское поселение Наро-Фоминск","46638101","26548393","Некоммерческое партнерство \"Турейка\"","5030030724","503001001","Оказание услуг в сфере водоснабжения","VS"]
[252,"Московская область","Истринский муниципальный район","46618000","городское поселение Истра","46618101","26653548","Некоммерческое партнерство «ЛэндиКо»","5044052816","504401001","Оказание услуг в сфере водоснабжения","VS"]
[253,"Московская область","Истринский муниципальный район","46618000","городское поселение Истра","46618101","26653825","Некоммерческое партнерство «Царское село»","5017055624","501701001","Оказание услуг в сфере водоснабжения","VS"]
[254,"Московская область","городской округ Электрогорск","46791000","Город Электрогорск","46791000","26654020","ОАО  «ЭлИНП»","5035000064","503501001","Оказание услуг в сфере водоснабжения","VS"]
[255,"Московская область","Одинцовский муниципальный район","46641000","городское поселение Одинцово","46641101","26650535","ОАО  НПО \"Наука\"","7714005350","503232001","Оказание услуг в сфере водоснабжения","VS"]
[256,"Московская область","Москва","46000000","Москва","46000000","26358054","ОАО \" Шишкин лес\"","5074030182","507401001","Оказание услуг в сфере водоснабжения","VS"]
[257,"Московская область","Дмитровский муниципальный район","46608000","городское поселение  Дмитров","46608101","26548037","ОАО \"Агрофирма \"Рогачево\"","5007007004","500701001","Оказание услуг в сфере водоснабжения","VS"]
[258,"Московская область","Рузский муниципальный район","46649000","городское поселение Руза","46649101","26548377","ОАО \"Аннинское\"","5075018043","507501001","Оказание услуг в сфере водоснабжения","VS"]
[259,"Московская область","Луховицкий муниципальный район","46630000","городское поселение Белоомут","46630153","26358038","ОАО \"БШФ\"","5072701131","507201001","Оказание услуг в сфере водоснабжения","VS"]
[260,"Московская область","Одинцовский муниципальный район","46641000","сельское поселение Барвихинское","46641404","26548061","ОАО \"Барвиха\"","5032200065","503201001","Оказание услуг в сфере водоснабжения","VS"]
[261,"Московская область","городской округ Котельники","46739000","Город Котельники","46739000","26357741","ОАО \"Белая Дача\"","5027026407","502701001","Оказание услуг в сфере водоснабжения","VS"]
[262,"Московская область","городской округ Домодедово","46709000","Город Домодедово","46709000","26357623","ОАО \"Белостолбовский кирпичный завод\"","5009008934","500901001","Оказание услуг в сфере водоснабжения","VS"]
[263,"Московская область","городской округ Домодедово","46709000","Город Домодедово","46709000","26548403","ОАО \"Белостолбовский кирпичный завод\"","5009008934","997650008","Оказание услуг в сфере водоснабжения","VS"]
[264,"Московская область","Рузский муниципальный район","46649000","городское поселение Тучково","46649163","26358058","ОАО \"Бикор\"","5075002999","507501001","Оказание услуг в сфере водоснабжения","VS"]
[265,"Московская область","Красногорский муниципальный район","46623000","городское поселение Красногорск","46623101","26357725","ОАО \"Биомед им.И.И.Мечникова\"","5024010960","502401001","Оказание услуг в сфере водоснабжения","VS"]
[266,"Московская область","Ногинский муниципальный район","46639000","сельское поселение Буньковское","46639407","26357799","ОАО \"Буньковский Экспериментальный Завод\"","5031013256","503101001","Оказание услуг в сфере водоснабжения","VS"]
[267,"Московская область","городской округ Реутов","46764000","Город Реутов","46764000","26357652","ОАО \"ВПК \"НПО машиностроения\"","5012039795","509950001","Оказание услуг в сфере водоснабжения","VS"]
[268,"Московская область","Мытищинский муниципальный район","46634000","городское поселение Мытищи","46634101","26506459","ОАО \"Вешки\"","5029004007","502901001","Оказание услуг в сфере водоснабжения","VS"]
[269,"Московская область","Красногорский муниципальный район","46623000","городское поселение Красногорск","46623101","28420696","ОАО \"Водоканал \"Павшино\"","5024139635","502401001","Оказание услуг в сфере водоснабжения","VS"]
[270,"Московская область","Шатурский муниципальный район","46657000","городское поселение Шатура","46657101","27517702","ОАО \"Водоканал Московской области\"","5056011395","502701001","Оказание услуг в сфере водоснабжения","VS"]
[271,"Московская область","Красногорский муниципальный район","46623000","городское поселение Красногорск","46623101","26548209","ОАО \"Водоканал\"","5024022700","502401001","Оказание услуг в сфере водоснабжения","VS"]
[272,"Московская область","городской округ Королев","46734000","Город Королев","46734000","26548305","ОАО \"Водоканал\"","5018134420","501801001","Оказание услуг в сфере водоснабжения","VS"]
[273,"Московская область","","","","","26774429","ОАО \"Водоканал\"","1108020501","110801001","Оказание услуг в сфере водоснабжения и очистки сточных вод","VS"]
[274,"Московская область","Мытищинский муниципальный район","46634000","городское поселение Мытищи","46634101","26548275","ОАО \"Водоканал-Мытищи\"","5029088173","502901001","Оказание услуг в сфере водоснабжения","VS"]
[275,"Московская область","Луховицкий муниципальный район","46630000","городское поселение Луховицы","46630101","26358039","ОАО \"Водотеплоканализационное хозяйство\"","5072724210","507201001","Оказание услуг в сфере водоснабжения","VS"]
[276,"Московская область","Волоколамский муниципальный район","46605000","городское поселение Волоколамск","46605101","26510853","ОАО \"Волоколамское ПТП РЖКХ\"","5004021787","500401001","Оказание услуг в сфере водоснабжения и очистки сточных вод","VS"]
[277,"Московская область","Дмитровский муниципальный район","46608000","городское поселение  Дмитров","46608101","26548349","ОАО \"ГУОВ МО\"","7703033130","500702001","Оказание услуг в сфере водоснабжения","VS"]
[278,"Московская область","Одинцовский муниципальный район","46641000","городское поселение Голицыно","46641104","26357823","ОАО \"Голицынский ОЗСА\"","5032012696","503201001","Оказание услуг в сфере водоснабжения","VS"]
[279,"Московская область","Одинцовский муниципальный район","46641000","городское поселение Одинцово","46641101","26357845","ОАО \"Голицынский автобусный завод\"","5032063891","503201001","Оказание услуг в сфере водоснабжения","VS"]
[280,"Московская область","Одинцовский муниципальный район","46641000","городское поселение Голицыно","46641104","26357815","ОАО \"Голицынский керамический завод\"","5032000108","509950001","Оказание услуг в сфере водоснабжения","VS"]
[281,"Московская область","Коломенский муниципальный район","46622000","городское поселение Пески","46622154","26548431","ОАО \"Гололобовский кирпичный завод\"","5070000010","502201001","Оказание услуг в сфере водоснабжения","VS"]
[282,"Московская область","Истринский муниципальный район","46618000","городское поселение Истра","46618101","26357672","ОАО \"ДП \"Истра-Нутриция\"","5017014392","501701001","Оказание услуг в сфере водоснабжения","VS"]
[283,"Московская область","Серпуховский муниципальный район","46651000","сельское поселение Калиновское","46651416","26548029","ОАО \"Дашковка\"","5077000154","507707001","Оказание услуг в сфере водоснабжения","VS"]
[284,"Московская область","Шатурский муниципальный район","46657000","городское поселение Шатура","46657101","26353593","ОАО \"Дмитровское\"","5049017702","504901001","Оказание услуг в сфере водоснабжения и очистки сточных вод","VS"]
[285,"Московская область","городской округ Долгопрудный","46716000","Город Долгопрудный","46716000","26357615","ОАО \"Долгопрудненское научно-производственное предприятие\"","5008000322","998050001","Оказание услуг в сфере водоснабжения","VS"]
[286,"Московская область","городской округ Дубна","46718000","Город Дубна","46718000","26357634","ОАО \"Дубненский  машиностроительный завод им. Н.П. Федорова\"","5010030050","501001001","Оказание услуг в сфере водоснабжения","VS"]
[287,"Московская область","Подольский муниципальный район","46646000","сельское поселение Дубровицкое","46646413","26358053","ОАО \"Дубровицы\"","5074030168","507401001","Оказание услуг в сфере водоснабжения","VS"]
[288,"Московская область","Орехово-Зуевский муниципальный район","46643000","городское поселение Дрезна","46643104","26804316","ОАО \"Дулевский красочный завод\"","5073050115","507301001","Оказание услуг в сфере водоснабжения","VS"]
[289,"Московская область","Одинцовский муниципальный район","46641000","городское поселение Одинцово","46641101","26357831","ОАО \"ЖКХ \"Горки-Х\"","5032199652","503201001","Оказание услуг в сфере водоснабжения","VS"]
[290,"Московская область","Дмитровский муниципальный район","46608000","городское поселение Деденево","46608154","27996896","ОАО \"ЖКХ г.п.Деденево\"","5007083703","500701001","Оказание услуг в сфере водоснабжения и очистки сточных вод","VS"]
[291,"Московская область","Ступинский муниципальный район","46653000","городское поселение Ступино","46653101","26357974","ОАО \"Жилевский завод пластмасс\"","5045009531","504501001","Оказание услуг в сфере водоснабжения и очистки сточных вод","VS"]
[292,"Московская область","городской округ Домодедово","46709000","Город Домодедово","46709000","26548154","ОАО \"Заря Подмоскоя\"","5009041096","997650007","Оказание услуг в сфере водоснабжения","VS"]
[293,"Московская область","городской округ Фрязино","46780000","Город Фрязино","46780000","26582198","ОАО \"Каблуковский водозаборный узел\"","5052018907","505201001","Оказание услуг в сфере водоснабжения","VS"]
[294,"Московская область","городской округ Орехово-Зуево","46757000","Город Орехово-Зуево","46757000","26357862","ОАО \"Карболит\"","5034050168","509950001","Оказание услуг в сфере водоснабжения и очистки сточных вод","VS"]
[295,"Московская область","городской округ Орехово-Зуево","46757000","Город Орехово-Зуево","46757000","26548441","ОАО \"Карболит\"","5034050168","503401001","Оказание услуг в сфере водоснабжения","VS"]
[296,"Московская область","городской округ Подольск","46760000","городской округ Подольск","46760000","26807166","ОАО \"Кимпор\"","5074000276","507401001","Оказание услуг в сфере водоснабжения","VS"]
[297,"Московская область","городской округ Королев","46734000","Город Королев","46734000","26358075","ОАО \"Корпорация \"Тактическое ракетное вооружение\"","5099000013","997850001","Оказание услуг в сфере водоснабжения","VS"]
[298,"Московская область","Красногорский муниципальный район","46623000","городское поселение Красногорск","46623101","26357731","ОАО \"Красногорское агропромышленное общество\"","5024043796","502401001","Оказание услуг в сфере водоснабжения","VS"]
[299,"Московская область","Ногинский муниципальный район","46639000","сельское поселение Аксено-Бутырское","46639402","26357797","ОАО \"ЛОК \"Дом отдыха Колонтаево\"","5031009115","503101001","Оказание услуг в сфере водоснабжения","VS"]
[300,"Московская область","Щелковский муниципальный район","46659000","городское поселение Щелково","46659101","26548257","ОАО \"Лакокраска\"","5050012040","505001001","Оказание услуг в сфере водоснабжения","VS"]
[301,"Московская область","городской округ Лыткарино","46741000","Город Лыткарино","46741000","26357737","ОАО \"Лыткаринский завод оптического стекла\"","5026000300","502601001","Оказание услуг в сфере водоснабжения","VS"]
[302,"Московская область","городской округ Котельники","46739000","Город Котельники","46739000","26548253","ОАО \"Люберецкий ГОК\"","5027035553","502701001","Оказание услуг в сфере водоснабжения","VS"]
[303,"Московская область","Люберецкий муниципальный район","46631000","городское поселение Люберцы","46631101","26548307","ОАО \"Люберецкий водоканал\"","5027130197","502701001","Оказание услуг в сфере водоснабжения","VS"]
[304,"Московская область","Люберецкий муниципальный район","46631000","городское поселение Люберцы","46631101","26357761","ОАО \"Люберецкий завод \"Пластмасс\"","5027100964","502701001","Оказание услуг в сфере водоснабжения","VS"]
[305,"Московская область","","","","","26324387","ОАО \"МОЭК\"","7720518494","997450001","Транспортировка воды","VS"]
[306,"Московская область","городской округ Электросталь","46790000","Город Электросталь","46790000","26358026","ОАО \"Металлургический завод \"Электросталь\"","5053000797","509950001","Оказание услуг в сфере водоснабжения","VS"]
[307,"Московская область","Мытищинский муниципальный район","46634000","городское поселение Мытищи","46634101","26357771","ОАО \"Метровагонмаш\"","5029006702","509950001","Оказание услуг в сфере водоснабжения","VS"]
[308,"Московская область","Шатурский муниципальный район","46657000","городское поселение Шатура","46657101","26536148","ОАО \"Мишеронское\"","5049017646","504901001","Оказание услуг в сфере водоснабжения","VS"]
[309,"Московская область","","","","","26358045","ОАО \"Мосагронаучприбор\"","5074002308","775101001","Оказание услуг в сфере водоснабжения","VS"]
[310,"Московская область","","","","","26381508","ОАО \"Мосводоканал\"","7701984274","770101001","Оказание услуг в сфере водоснабжения и очистки сточных вод","VS"]
[311,"Московская область","Каширский муниципальный район","46620000","сельское поселение Колтовское","46620413","26508638","ОАО \"Московский завод Кристалл филиал \"Корыстово\"","7722019116","501902001","Оказание услуг в сфере водоснабжения и очистки сточных вод","VS"]
[312,"Московская область","Москва","46000000","Москва","46000000","26548439","ОАО \"Москокс\"","5003003915","500301001","Транспортировка воды","VS"]
[313,"Московская область","","","","","26409916","ОАО \"Мосэнерго\"","7705035012","997450001","Оказание услуг в сфере водоснабжения и очистки сточных вод","VS"]
[314,"Московская область","Сергиево-Посадский муниципальный район","46615000","Город Сергиев Посад","46615101","26357930","ОАО \"НИИ Прикладной химии\"","5042120394","504201001","Оказание услуг в сфере водоснабжения","VS"]
[315,"Московская область","Сергиево-Посадский муниципальный район","46615000","Город Сергиев Посад","46615101","26785344","ОАО \"НИИРП\"","5042013804","504201001","Оказание услуг в сфере водоснабжения","VS"]
[316,"Московская область","Ногинский муниципальный район","46639000","городское поселение Электроугли","46639105","26357794","ОАО \"НИИЭИ\"","5031099373","503101001","Оказание услуг в сфере водоснабжения","VS"]
[317,"Московская область","Люберецкий муниципальный район","46631000","городское поселение Томилино","46631173","27581374","ОАО \"НПП \"Звезда\"","5027030107","502701001","Оказание услуг в сфере водоснабжения","VS"]
[318,"Московская область","Ногинский муниципальный район","46639000","городское поселение Ногинск","46639101","26357809","ОАО \"НПТО ЖКХ\"","5031100117","503101001","Оказание услуг в сфере водоснабжения","VS"]
[319,"Московская область","Подольский муниципальный район","46646000","городское поселение Львовский","46646154","26358055","ОАО \"Наш дом\"","5074030552","507401001","Оказание услуг в сфере водоснабжения","VS"]
[320,"Московская область","Истринский муниципальный район","46618000","сельское поселение Лучинское","46618425","26357673","ОАО \"Ново-Иерусалимский кирпичный завод\"","5017014441","501701001","Оказание услуг в сфере водоснабжения","VS"]
[321,"Московская область","Ленинский муниципальный район","46628000","сельское поселение Филимонковское","46628431","28252425","ОАО \"Новомосковский Технопарк\"","5003004676","500301001","Оказание услуг в сфере водоснабжения","VS"]
[322,"Московская область","Одинцовский муниципальный район","46641000","городское поселение Одинцово","46641101","26548303","ОАО \"Одинцовский Водоканал\"","5032199733","503201001","Оказание услуг в сфере водоснабжения и очистки сточных вод","VS"]
[323,"Московская область","Каширский муниципальный район","46620000","городское поселение Кашира","46620101","26548041","ОАО \"Ожерельевский комбикормовый завод\"","5019002410","501901001","Оказание услуг в сфере водоснабжения","VS"]
[324,"Московская область","Щелковский муниципальный район","46659000","городское поселение Щелково","46659101","26548103","ОАО \"Опытный завод №31 ГА\"","5050012314","505001001","Оказание услуг в сфере водоснабжения","VS"]
[325,"Московская область","Щелковский муниципальный район","46659000","сельское поселение Анискинское","46659402","26548035","ОАО \"Орловское\"","5050080402","505001001","Оказание услуг в сфере водоснабжения и очистки сточных вод","VS"]
[326,"Московская область","Мытищинский муниципальный район","46634000","городское поселение Мытищи","46634101","26511013","ОАО \"Особое конструкторское бюро кабельной промышленности\"","5029150262","502901001","Оказание услуг в сфере водоснабжения","VS"]
[327,"Московская область","Волоколамский муниципальный район","46605000","сельское поселение Осташевское","46605431","28079626","ОАО \"Осташевское ПТП ЖКХ\"","5004024717","500401001","Оказание услуг в сфере водоснабжения","VS"]
[328,"Московская область","городской округ Протвино","46767000","Город Протвино","46767000","26504765","ОАО \"ПРОТЭП\"","5037002934","503701001","Оказание услуг в сфере водоснабжения","VS"]
[329,"Московская область","городской округ Дубна","46718000","Город Дубна","46718000","27973009","ОАО \"ПТО ГХ\"","5010045296","501001001","Оказание услуг в сфере водоснабжения","VS"]
[330,"Московская область","Серпуховский муниципальный район","46651000","сельское поселение Васильевское","46651410","26548027","ОАО \"Пансионат \"Рождественское\"","5077001334","507707001","Оказание услуг в сфере водоснабжения","VS"]
[331,"Московская область","Одинцовский муниципальный район","46641000","сельское поселение Никольское","46641449","26357827","ОАО \"Пансионат с лечением Солнечная поляна\"","5032022603","503201001","Оказание услуг в сфере водоснабжения","VS"]
[332,"Московская область","Коломенский муниципальный район","46622000","городское поселение Пески","46622154","26548339","ОАО \"Песковский комбинат строительных материалов\"","5070000042","507001001","Оказание услуг в сфере водоснабжения","VS"]
[333,"Московская область","Красногорский муниципальный район","46623000","городское поселение Красногорск","46623101","26548433","ОАО \"Подводтрубопроводстрой фил. №1\"","7706003937","772513181","Оказание услуг в сфере водоснабжения","VS"]
[334,"Московская область","Одинцовский муниципальный район","46641000","городское поселение Новоивановское","46641162","26568954","ОАО \"Предприятие ЖКХ \"Шарапово\"","5032199902","503201001","Оказание услуг в сфере водоснабжения","VS"]
[335,"Московская область","городской округ Долгопрудный","46716000","Город Долгопрудный","46716000","26357614","ОАО \"Производственное объединение \"ТОС\"","5008000202","500801001","Оказание услуг в сфере водоснабжения","VS"]
[336,"Московская область","Одинцовский муниципальный район","46641000","городское поселение Одинцово","46641101","26548213","ОАО \"Промышленный парк Одинцово-1\"","5032099545","503201001","Оказание услуг в сфере водоснабжения","VS"]
[337,"Московская область","Пушкинский муниципальный район","46647000","городское поселение Пушкино","46647101","26357899","ОАО \"Пушкинский электромеханический завод\"","5038010790","503801001","Оказание услуг в сфере водоснабжения","VS"]
[338,"Московская область","Раменский муниципальный район","46648000","городское поселение Раменское","46648101","26357917","ОАО \"РАТЕКС\"","5040007918","504001001","Оказание услуг в сфере водоснабжения","VS"]
[339,"Московская область","","","","","26814895","ОАО \"РЖД\" (Октябрьская дирекция по тепловодоснабжению - СП Центральной дирекции по тепловодоснабжению - филиала ОАО \"РЖД\")","7708503727","780445015","Оказание услуг в сфере водоснабжения и очистки сточных вод","VS"]
[340,"Московская область","Одинцовский муниципальный район","46641000","сельское поселение Жаворонковское","46641470","26567489","ОАО \"РЭП \"Жаворонки\"","5032200001","503201001","Оказание услуг в сфере водоснабжения и очистки сточных вод","VS"]
[341,"Московская область","Одинцовский муниципальный район","46641000","сельское поселение Ершовское","46641419","26357829","ОАО \"РЭП \"Каринское\"","5032200026","503201001","Оказание услуг в сфере водоснабжения","VS"]
[342,"Московская область","Одинцовский муниципальный район","46641000","сельское поселение Никольское","46641449","26357840","ОАО \"РЭП \"Старый Городок\"","5032199910","503201001","Оказание услуг в сфере водоснабжения","VS"]
[343,"Московская область","Одинцовский муниципальный район","46641000","городское поселение Одинцово","46641101","26548409","ОАО \"РЭП Ершово\"","5032200019","503201001","Оказание услуг в сфере водоснабжения","VS"]
[344,"Московская область","Раменский муниципальный район","46648000","городское поселение Раменское","46648101","26513524","ОАО \"Раменская теплосеть\"","5040109331","504001001","Оказание услуг в сфере водоснабжения","VS"]
[345,"Московская область","Раменский муниципальный район","46648000","городское поселение Раменское","46648101","26357924","ОАО \"Раменские коммунальные системы\"","5040062796","504001001","Оказание услуг в сфере водоснабжения","VS"]
[346,"Московская область","Раменский муниципальный район","46648000","городское поселение Раменское","46648101","26802233","ОАО \"Раменский Водоканал\"","5040109194","504001001","Оказание услуг в сфере водоснабжения","VS"]
[347,"Московская область","Раменский муниципальный район","46648000","городское поселение Раменское","46648101","26548329","ОАО \"Раменский комбинат хлебопродуктов имени В.Я.Печенова\"","5040009908","504001001","Оказание услуг в сфере водоснабжения","VS"]
[348,"Московская область","Раменский муниципальный район","46648000","городское поселение Раменское","46648101","26548423","ОАО \"Речицкий фарфоровый завод\"","5040003695","504001001","Оказание услуг в сфере водоснабжения","VS"]
[349,"Московская область","Подольский муниципальный район","46646000","сельское поселение Лаговское","46646416","26358047","ОАО \"Рязаново\"","5074030175","507401001","Оказание услуг в сфере водоснабжения","VS"]
[350,"Московская область","Серпуховский муниципальный район","46651000","сельское поселение Васильевское","46651410","26548419","ОАО \"Санаторий \"Авангард\"","5077001327","507707001","Оказание услуг в сфере водоснабжения","VS"]
[351,"Московская область","городской округ Звенигород","46730000","Город Звенигород","46730000","26548443","ОАО \"Санаторий Поречье\"","5015000299","501501001","Оказание услуг в сфере водоснабжения","VS"]
[352,"Московская область","","","","","26885538","ОАО \"Славянка\" филиал \"Рязанский\"","7702707386","623043001","Оказание услуг в сфере водоснабжения","VS"]
[353,"Московская область","Истринский муниципальный район","46618000","городское поселение Дедовск","46618103","26357674","ОАО \"Сокол\"","5017014522","501701001","Оказание услуг в сфере водоснабжения и очистки сточных вод","VS"]
[354,"Московская область","Одинцовский муниципальный район","46641000","сельское поселение Захаровское","46641425","26357821","ОАО \"Стройполимер\"","5032010000","503201001","Оказание услуг в сфере водоснабжения","VS"]
[355,"Московская область","Ступинский муниципальный район","46653000","городское поселение Ступино","46653101","26357977","ОАО \"Ступинская металлургичекая компания\"","5045023416","509950001","Оказание услуг в сфере водоснабжения и очистки сточных вод","VS"]
[356,"Московская область","Волоколамский муниципальный район","46605000","городское поселение Сычево","46605158","28076876","ОАО \"Сычевское ПТП ЖКХ\"","5004024481","500401001","Оказание услуг в сфере водоснабжения и очистки сточных вод","VS"]
[357,"Московская область","Талдомский муниципальный район","46654000","городское поселение Северный","46654163","26548019","ОАО \"Талдомские коммунальные системы\"","5078019510","507801001","Оказание услуг в сфере водоснабжения","VS"]
[358,"Московская область","Щелковский муниципальный район","46659000","городское поселение Щелково","46659101","26548387","ОАО \"Тонкосуконная фабрика им. Свердлова\"","5050021608","505001001","Оказание услуг в сфере водоснабжения и очистки сточных вод","VS"]
[359,"Московская область","Одинцовский муниципальный район","46641000","городское поселение Одинцово","46641101","26650697","ОАО \"Трест Мособлстрой № 6\"","5032001704","503201001","Оказание услуг в сфере водоснабжения","VS"]
[360,"Московская область","городской округ Бронницы","46705000","Город Бронницы","46705000","26649181","ОАО \"УСК МОСТ\"","7702322731","509950001","Оказание услуг в сфере водоснабжения","VS"]
[361,"Московская область","Ногинский муниципальный район","46639000","городское поселение Ногинск","46639101","26548285","ОАО \"ФСК ЕЭС\"","4716016979","503101001","Оказание услуг в сфере водоснабжения","VS"]
[362,"Московская область","городской округ Химки","46783000","Город Химки","46783000","26548343","ОАО \"Химкинский водоканал\"","5047081156","504701001","Оказание услуг в сфере водоснабжения","VS"]
[363,"Московская область","Сергиево-Посадский муниципальный район","46615000","сельское поселение Васильевское","46615413","26357933","ОАО \"Хотьковский автомост\"","5042001439","504201001","Оказание услуг в сфере водоснабжения","VS"]
[364,"Московская область","Сергиево-Посадский муниципальный район","46615000","городское поселение Хотьково","46615106","26357935","ОАО \"ЦНИИСМ\"","5042003203","504201001","Оказание услуг в сфере водоснабжения","VS"]
[365,"Московская область","Красногорский муниципальный район","46623000","городское поселение Красногорск","46623101","26814724","ОАО \"ЭКК\"","5024113605","502401001","Оказание услуг в сфере водоснабжения","VS"]
[366,"Московская область","Одинцовский муниципальный район","46641000","городское поселение Одинцово","46641101","27581218","ОАО \"Ямское поле\"","7714802161","771401001","Оказание услуг в сфере водоснабжения","VS"]
[367,"Московская область","городской округ Жуковский","46725000","Город Жуковский","46725000","26504912","ОАО «ЛИИ им. М.М.Громова»","5040114973","504001001","Оказание услуг в сфере водоснабжения","VS"]
[368,"Московская область","городской округ Химки","46783000","Город Химки","46783000","26505074","ОАО «Международный аэропорт «Шереметьево»","7712094033","504701001","Оказание услуг в сфере водоснабжения","VS"]
[369,"Московская область","Мытищинский муниципальный район","46634000","городское поселение Мытищи","46634101","26504936","ОАО «Мосстройпластмасс»","5029007199","502901001","Оказание услуг в сфере водоснабжения","VS"]
[370,"Московская область","городской округ Жуковский","46725000","Город Жуковский","46725000","26504910","ОАО «НИИАО»","5040106669","504001001","Оказание услуг в сфере водоснабжения и очистки сточных вод","VS"]
[371,"Московская область","городской округ Химки","46783000","Город Химки","46783000","26781023","ОАО «Пансионат отдыха Новогорск»","5047018669","504701001","Оказание услуг в сфере водоснабжения","VS"]
[372,"Московская область","городской округ Жуковский","46725000","Город Жуковский","46725000","26504914","ОАО «ЭМЗ им. В.М.Мясищева»","5013011513","501301001","Оказание услуг в сфере водоснабжения","VS"]
[373,"Московская область","Одинцовский муниципальный район","46641000","городское поселение Кубинка","46641110","26568952","ОАО ЖКХ \"Наро-Осановское\"","5032199596","503201001","Оказание услуг в сфере водоснабжения","VS"]
[374,"Московская область","Красногорский муниципальный район","46623000","городское поселение Красногорск","46623101","26548221","ОАО КМЗ","5024022965","509950001","Оказание услуг в сфере водоснабжения","VS"]
[375,"Московская область","Ленинский муниципальный район","46628000","сельское поселение Филимонковское","46628431","26548291","ОАО Клинический санаторий Главмосстроя \"Валуево\"","7710013582","775101001","Оказание услуг в сфере водоснабжения","VS"]
[376,"Московская область","городской округ Лыткарино","46741000","Город Лыткарино","46741000","27614901","ОАО ЛЗОС","5026000300","509950001","Оказание услуг в сфере водоснабжения","VS"]
[377,"Московская область","Шатурский муниципальный район","46657000","городское поселение Шатура","46657101","26548325","ОАО МК Шатура","5049007736","504901001","Оказание услуг в сфере водоснабжения","VS"]
[378,"Московская область","Солнечногорский муниципальный район","46652000","городское поселение Андреевка","46652153","26357959","ОАО НПО \"Стеклопластик\"","5044000039","504401001","Оказание услуг в сфере водоснабжения","VS"]
[379,"Московская область","Пушкинский муниципальный район","46647000","городское поселение Софрино","46647163","26548279","ОАО ОК \"Софрино\"","5038040883","503801001","Оказание услуг в сфере водоснабжения","VS"]
[380,"Московская область","Одинцовский муниципальный район","46641000","городское поселение Голицыно","46641104","26357822","ОАО РЭП \"Голицыно\"","5032199589","503201001","Оказание услуг в сфере водоснабжения","VS"]
[381,"Московская область","Одинцовский муниципальный район","46641000","городское поселение Новоивановское","46641162","26357828","ОАО РЭП \"Немчиновка\"","5032199998","503201001","Оказание услуг в сфере водоснабжения","VS"]
[382,"Московская область","Ленинский муниципальный район","46628000","сельское поселение Володарское","46628407","26548124","ОАО ТФ \"Возрождение\"","5003001178","500301001","Оказание услуг в сфере водоснабжения","VS"]
[383,"Московская область","городской округ Электрогорск","46791000","Город Электрогорск","46791000","26357865","ОАО Электрогорский опытно-экспериментальный завод \"Элеон\"","5035001614","503501001","Оказание услуг в сфере водоснабжения","VS"]
[384,"Московская область","городской округ Дубна","46718000","Город Дубна","46718000","26361356","ОИЯИ (ОГЭ)","9909125356","501063001","Оказание услуг в сфере водоснабжения и очистки сточных вод","VS"]
[385,"Московская область","Рузский муниципальный район","46649000","сельское поселение Старорузское","46649431","26573320","ОК \"Старая Руза\" - подразделение Дирекции социальной сферы МОСК ж.д. ОАО \"РЖД\"","7708503727","770831018","Оказание услуг в сфере водоснабжения","VS"]
[386,"Московская область","городской округ Балашиха","46704000","Город Балашиха","46704000","26548219","ОНО ППЗ \"Кучинский\"","5001000605","501101001","Оказание услуг в сфере водоснабжения","VS"]
[387,"Московская область","Ногинский муниципальный район","46639000","сельское поселение Степановское","46639422","26357801","ООО  \"502 завод по ремонту военно-технического имущества\"","5031085677","503101001","Оказание услуг в сфере водоснабжения","VS"]
[388,"Московская область","Ногинский муниципальный район","46639000","сельское поселение Аксено-Бутырское","46639402","26650101","ООО \" УК \"Новатор плюс\"","5031092184","503101001","Оказание услуг в сфере водоснабжения","VS"]
[389,"Московская область","Дмитровский муниципальный район","46608000","городское поселение Некрасовский","46608163","28143360","ООО \"54 ПК\"","5007079834","500701001","Оказание услуг в сфере водоснабжения","VS"]
[390,"Московская область","Пушкинский муниципальный район","46647000","городское поселение Пушкино","46647101","26649271","ООО \"АЛЬФА-ВИТ\"","5038064250","503801001","Оказание услуг в сфере водоснабжения","VS"]
[391,"Московская область","Красногорский муниципальный район","46623000","городское поселение Нахабино","46623154","26357730","ООО \"Акватория\"","5024033942","502401001","Оказание услуг в сфере водоснабжения","VS"]
[392,"Московская область","Луховицкий муниципальный район","46630000","городское поселение Луховицы","46630101","27584008","ООО \"Альянс\"","5072722540","507201001","Оказание услуг в сфере водоснабжения","VS"]
[393,"Московская область","Дмитровский муниципальный район","46608000","городское поселение Яхрома","46608105","26360938","ООО \"Апраксин Центр\"","7705481426","500701001","Оказание услуг в сфере водоснабжения","VS"]
[394,"Московская область","Красногорский муниципальный район","46623000","городское поселение Красногорск","46623101","27580877","ООО \"Арсана-2000\"","7726280008","502401001","Оказание услуг в сфере водоснабжения","VS"]
[395,"Московская область","Одинцовский муниципальный район","46641000","городское поселение Одинцово","46641101","26650537","ООО \"Астрон\"","7729240204","503201001","Оказание услуг в сфере водоснабжения","VS"]
[396,"Московская область","Истринский муниципальный район","46618000","сельское поселение Онуфриевское","46618434","27583129","ООО \"Атлас Комэкс\"","7710756997","771001001","Оказание услуг в сфере водоснабжения","VS"]
[397,"Московская область","Одинцовский муниципальный район","46641000","городское поселение Одинцово","46641101","26357849","ООО \"Баковский завод\"","5032228582","503201001","Оказание услуг в сфере водоснабжения","VS"]
[398,"Московская область","городской округ Балашиха","46704000","Город Балашиха","46704000","26548083","ООО \"Балашихинский Водоканал\"","5001037884","500101001","Оказание услуг в сфере водоснабжения","VS"]
[399,"Московская область","городской округ Балашиха","46704000","Город Балашиха","46704000","28047300","ООО \"Балгорводхоз\"","5001085373","500101001","Оказание услуг в сфере водоснабжения и очистки сточных вод","VS"]
[400,"Московская область","Луховицкий муниципальный район","46630000","городское поселение Луховицы","46630101","27584124","ООО \"Барьер\"","5072001965","507201001","Оказание услуг в сфере водоснабжения","VS"]
[401,"Московская область","городской округ Домодедово","46709000","Город Домодедово","46709000","26548355","ООО \"Белостолбовская универсальная оптовая торговая база МСПК","5009040173","997650009","Оказание услуг в сфере водоснабжения","VS"]
[402,"Московская область","Луховицкий муниципальный район","46630000","городское поселение Луховицы","46630101","27584054","ООО \"Бизнес\"","5072001972","507201001","Оказание услуг в сфере водоснабжения","VS"]
[403,"Московская область","Можайский муниципальный район","46633000","сельское поселение Борисовское","46633402","26807294","ООО \"В Берлоге\"","5022088287","502801001","Оказание услуг в сфере водоснабжения","VS"]
[404,"Московская область","Сергиево-Посадский муниципальный район","46615000","сельское поселение Васильевское","46615413","28047622","ООО \"ВЕКТОР-V\"","5042116831","504201001","Оказание услуг в сфере водоснабжения и очистки сточных вод","VS"]
[405,"Московская область","Луховицкий муниципальный район","46630000","городское поселение Луховицы","46630101","28149509","ООО \"ВТКХ\"","5072003225","507201001","Оказание услуг в сфере водоснабжения и очистки сточных вод","VS"]
[406,"Московская область","Щелковский муниципальный район","46659000","городское поселение Монино","46659154","26548197","ООО \"Вега\"","5050071140","505001001","Оказание услуг в сфере водоснабжения","VS"]
[407,"Московская область","Луховицкий муниципальный район","46630000","городское поселение Луховицы","46630101","27584103","ООО \"Вектор\"","5072001940","507201001","Оказание услуг в сфере водоснабжения","VS"]
[408,"Московская область","городской округ Электросталь","46790000","Город Электросталь","46790000","26567454","ООО \"Водосервис\"","7720535852","772001001","Оказание услуг в сфере водоснабжения","VS"]
[409,"Московская область","Волоколамский муниципальный район","46605000","сельское поселение Теряевское","46605449","26357583","ООО \"Волоколамская тепловая компания\"","5004018752","500401001","Оказание услуг в сфере водоснабжения","VS"]
[410,"Московская область","Луховицкий муниципальный район","46630000","городское поселение Луховицы","46630101","27584112","ООО \"Вояж\"","5072722332","507201001","Оказание услуг в сфере водоснабжения","VS"]
[411,"Московская область","Луховицкий муниципальный район","46630000","городское поселение Луховицы","46630101","27584082","ООО \"Гермес-Сервис\"","5072000016","507201001","Оказание услуг в сфере водоснабжения","VS"]
[412,"Московская область","городской округ Домодедово","46709000","Город Домодедово","46709000","26548267","ООО \"Глобал Гасиз энд Энерджи\"","5003052782","997650010","Оказание услуг в сфере водоснабжения","VS"]
[413,"Московская область","городской округ Лосино-Петровский","46742000","Город Лосино-Петровский","46742000","26356796","ООО \"Дзержинские коммунальные сети\"","4004402685","505001001","Оказание услуг в сфере водоснабжения","VS"]
[414,"Московская область","Наро-Фоминский муниципальный район","46638000","Городское поселение Наро-Фоминск","46638101","26548136","ООО \"Дирекция Голицыно-3\"","5030070371","503001001","Оказание услуг в сфере водоснабжения","VS"]
[415,"Московская область","Дмитровский муниципальный район","46608000","городское поселение  Дмитров","46608101","26548047","ООО \"Дмитровский колос\"","5007052173","500701001","Оказание услуг в сфере водоснабжения","VS"]
[416,"Московская область","городской округ Домодедово","46709000","Город Домодедово","46709000","26548067","ООО \"Дом и К\"","5009040215","997650011","Оказание услуг в сфере водоснабжения","VS"]
[417,"Московская область","Щелковский муниципальный район","46659000","сельское поселение Гребневское","46659407","26548017","ООО \"ЕвроАльянс-Агро\"","5050050408","505001001","Оказание услуг в сфере водоснабжения","VS"]
[418,"Московская область","Егорьевский муниципальный район","46612000","городское поселение Егорьевск","46612101","26357645","ООО \"Егорьевская птицефабрика\"","5011020449","501101001","Оказание услуг в сфере водоснабжения","VS"]
[419,"Московская область","Одинцовский муниципальный район","46641000","сельское поселение Никольское","46641449","28266903","ООО \"ЖЕМЧУЖИНА-СЕРВИС\"","5032087229","503201001","Оказание услуг в сфере водоснабжения","VS"]
[420,"Московская область","Ступинский муниципальный район","46653000","сельское поселение Аксиньинское","46653402","28049559","ООО \"ЖКУ Аксиньино\"","5045050145","504501001","Оказание услуг в сфере водоснабжения и очистки сточных вод","VS"]
[421,"Московская область","Ступинский муниципальный район","46653000","городское поселение Жилёво","46653154","28049497","ООО \"ЖКХ Н. Ступино\"","5045052079","504501001","Оказание услуг в сфере водоснабжения и очистки сточных вод","VS"]
[422,"Московская область","Ступинский муниципальный район","46653000","городское поселение Ступино","46653101","28257193","ООО \"ЖКХ г.Ступино\"","5045053717","504501001","Оказание услуг в сфере водоснабжения","VS"]
[423,"Московская область","Луховицкий муниципальный район","46630000","городское поселение Луховицы","46630101","27584014","ООО \"ЖКХ\"","5072723022","507201001","Оказание услуг в сфере водоснабжения","VS"]
[424,"Московская область","Солнечногорский муниципальный район","46652000","сельское поселение Пешковское","46652431","26357969","ООО \"ЖилБытСервис\"","5044058462","504401001","Оказание услуг в сфере водоснабжения","VS"]
[425,"Московская область","Наро-Фоминский муниципальный район","46638000","Городское поселение Наро-Фоминск","46638101","26357785","ООО \"Жилкомсервис\"","5030049130","503001001","Оказание услуг в сфере водоснабжения","VS"]
[426,"Московская область","городской округ Рошаль","46765000","Город Рошаль","46765000","26361063","ООО \"Инвестгазпром\"","7728175697","505501001","Оказание услуг в сфере водоснабжения","VS"]
[427,"Московская область","Солнечногорский муниципальный район","46652000","городское поселение Ржавки","46652164","26357967","ООО \"Инфракомплекс-Сервис\"","5044047580","504401001","Оказание услуг в сфере водоснабжения","VS"]
[428,"Московская область","Раменский муниципальный район","46648000","городское поселение Быково","46648152","26357921","ООО \"Инфрастрой Быково\"","5040052212","504001001","Оказание услуг в сфере водоснабжения","VS"]
[429,"Московская область","городской округ Фрязино","46780000","Город Фрязино","46780000","26548071","ООО \"Источник\"","5052017950","505201001","Оказание услуг в сфере водоснабжения","VS"]
[430,"Московская область","Сергиево-Посадский муниципальный район","46615000","сельское поселение Васильевское","46615413","26548140","ООО \"КСК \"Регион\"","5042097272","504201001","Оказание услуг в сфере водоснабжения","VS"]
[431,"Московская область","Одинцовский муниципальный район","46641000","городское поселение Лесной Городок","46641160","26583859","ООО \"КТТ-Дубки\"","5032126728","503201001","Транспортировка воды","VS"]
[432,"Московская область","городской округ Лосино-Петровский","46742000","Город Лосино-Петровский","46742000","26358021","ООО \"Калорис\"","5050052645","505001001","Оказание услуг в сфере водоснабжения","VS"]
[433,"Московская область","городской округ Жуковский","46725000","Город Жуковский","46725000","26548425","ООО \"Канал-Сервис\"","5013044981","501301001","Оказание услуг в сфере водоснабжения","VS"]
[434,"Московская область","Клинский муниципальный район","46621000","городское поселение Клин","46621101","26548375","ООО \"Клинволокно Гидротехника\"","5020028846","502001001","Оказание услуг в сфере водоснабжения","VS"]
[435,"Московская область","Красногорский муниципальный район","46623000","городское поселение Красногорск","46623101","26357733","ООО \"Кнауф Гипс\"","5024051564","509950001","Оказание услуг в сфере водоснабжения","VS"]
[436,"Московская область","Москва","46000000","Москва","46000000","26548297","ООО \"Колхоз им. Владимира Ильича\"","5003040515","500301001","Оказание услуг в сфере водоснабжения","VS"]
[437,"Московская область","Люберецкий муниципальный район","46631000","городское поселение Томилино","46631173","26357764","ООО \"Коммунальные системы Томилино\"  (\"КСТ\")","5027118111","502701001","Оказание услуг в сфере водоснабжения","VS"]
[438,"Московская область","Одинцовский муниципальный район","46641000","городское поселение Одинцово","46641101","26548407","ООО \"Континент\"","7706610360","503201001","Оказание услуг в сфере водоснабжения и очистки сточных вод","VS"]
[439,"Московская область","Сергиево-Посадский муниципальный район","46615000","сельское поселение Васильевское","46615413","26645200","ООО \"Контур Строй\"","5042106985","504201001","Оказание услуг в сфере водоснабжения","VS"]
[440,"Московская область","Сергиево-Посадский муниципальный район","46615000","сельское поселение Реммаш","46615446","26631338","ООО \"Контур ресурс\"","5042106992","504201001","Оказание услуг в сфере водоснабжения","VS"]
[441,"Московская область","Пушкинский муниципальный район","46647000","городское поселение Пушкино","46647101","26548333","ООО \"Крыша\"","5038046356","503801001","Оказание услуг в сфере водоснабжения","VS"]
[442,"Московская область","Наро-Фоминский муниципальный район","46638000","Городское поселение Наро-Фоминск","46638101","26548399","ООО \"Кузнецовский комбинат\"","5030049820","503001001","Оказание услуг в сфере водоснабжения","VS"]
[443,"Московская область","Красногорский муниципальный район","46623000","городское поселение Красногорск","46623101","26548391","ООО \"Ленинский луч\"","7838024355","502401001","Оказание услуг в сфере водоснабжения","VS"]
[444,"Московская область","Одинцовский муниципальный район","46641000","городское поселение Одинцово","46641101","26548097","ООО \"Лесные поляны\"","5032070610","503201001","Оказание услуг в сфере водоснабжения и очистки сточных вод","VS"]
[445,"Московская область","Рузский муниципальный район","46649000","сельское поселение Старорузское","46649431","26358056","ООО \"Лечебно-профилактическое учреждение \"Санаторий Дорохово\"","5075023100","507501001","Оказание услуг в сфере водоснабжения","VS"]
[446,"Московская область","Орехово-Зуевский муниципальный район","46643000","городское поселение Ликино-Дулево","46643113","26511070","ООО \"Ликинский автобус\"","5073006518","503450001","Оказание услуг в сфере водоснабжения","VS"]
[447,"Московская область","Мытищинский муниципальный район","46634000","городское поселение Мытищи","46634101","26511050","ООО \"Лирсот\"","7712026280","502901001","Оказание услуг в сфере водоснабжения","VS"]
[448,"Московская область","городской округ Балашиха","46704000","Город Балашиха","46704000","26357551","ООО \"Лисья гора\"","5001058108","500101001","Оказание услуг в сфере водоснабжения","VS"]
[449,"Московская область","городской округ Лобня","46740000","Город Лобня","46740000","26548381","ООО \"Лобненский водоканал\"","5025017750","502501001","Оказание услуг в сфере водоснабжения","VS"]
[450,"Московская область","Коломенский муниципальный район","46622000","городское поселение Пески","46622154","26508886","ООО \"МКХ Коломенского района\"","5022560710","502201001","Оказание услуг в сфере водоснабжения","VS"]
[451,"Московская область","Щелковский муниципальный район","46659000","городское поселение Монино","46659154","26652088","ООО \"МСК\"","5050084693","505001001","Оказание услуг в сфере водоснабжения","VS"]
[452,"Московская область","Красногорский муниципальный район","46623000","сельское поселение Отрадненское","46623407","27580828","ООО \"Маркет Сервис\"","5024104907","502401001","Оказание услуг в сфере водоснабжения и очистки сточных вод","VS"]
[453,"Московская область","Дмитровский муниципальный район","46608000","городское поселение  Дмитров","46608101","27579088","ООО \"Мега-Мечта\"","5007036044","500701001","Оказание услуг в сфере водоснабжения и очистки сточных вод","VS"]
[454,"Московская область","Истринский муниципальный район","46618000","сельское поселение Обушковское","46618431","26567656","ООО \"Монолитстройсервис\"","7719284153","770801001","Оказание услуг в сфере водоснабжения","VS"]
[455,"Московская область","Красногорский муниципальный район","46623000","городское поселение Нахабино","46623154","26509777","ООО \"Нахабинские инженерные сети\"","5024092779","502401001","Оказание услуг в сфере водоснабжения","VS"]
[456,"Московская область","Красногорский муниципальный район","46623000","городское поселение Красногорск","46623101","27580846","ООО \"Новорижское\"","5024085718","502401001","Оказание услуг в сфере водоснабжения","VS"]
[457,"Московская область","Каширский муниципальный район","46620000","городское поселение Ожерелье","46620104","27731444","ООО \"ОКС\"","5019023949","501901001","Оказание услуг в сфере водоснабжения и очистки сточных вод","VS"]
[458,"Московская область","городской округ Лосино-Петровский","46742000","Город Лосино-Петровский","46742000","26648803","ООО \"Областные коммунальные системы\"","5050088120","505001001","Оказание услуг в сфере водоснабжения и очистки сточных вод","VS"]
[459,"Московская область","Одинцовский муниципальный район","46641000","городское поселение Одинцово","46641101","26650539","ООО \"Одинцовская РЭС\"","5032205793","503201001","Оказание услуг в сфере водоснабжения","VS"]
[460,"Московская область","Луховицкий муниципальный район","46630000","городское поселение Луховицы","46630101","27584075","ООО \"Ока-Сервис\"","5072725703","507201001","Оказание услуг в сфере водоснабжения","VS"]
[461,"Московская область","городской округ Орехово-Зуево","46757000","Город Орехово-Зуево","46757000","26548079","ООО \"Орехово-Зуевский \"Водоканал\"","5034027835","503401001","Оказание услуг в сфере водоснабжения","VS"]
[462,"Московская область","Одинцовский муниципальный район","46641000","сельское поселение Назарьевское","46641440","26650727","ООО \"ПЖК Николино\"","5032118935","503201001","Оказание услуг в сфере водоснабжения и очистки сточных вод","VS"]
[463,"Московская область","Дмитровский муниципальный район","46608000","городское поселение Деденево","46608154","26357613","ООО \"ПК Ресурс\"","5007056805","500701001","Оказание услуг в сфере водоснабжения","VS"]
[464,"Московская область","Дмитровский муниципальный район","46608000","городское поселение Икша","46608157","26548259","ООО \"ПКФ Фин-Строй\"","5025021072","502501001","Оказание услуг в сфере водоснабжения","VS"]
[465,"Московская область","городской округ Дзержинский","46711000","Город Дзержинский","46711000","27725327","ООО \"ПРОСТОР-СФ\"","7713275106","505601001","","VS"]
[466,"Московская область","Волоколамский муниципальный район","46605000","городское поселение Волоколамск","46605101","26357588","ООО \"Пансионат \"Ласточка\"","5004017540","500401001","Оказание услуг в сфере водоснабжения","VS"]
[467,"Московская область","Ступинский муниципальный район","46653000","городское поселение Ступино","46653101","26784883","ООО \"Пансионат \"Соколова Пустынь\"","5045047030","504501001","Оказание услуг в сфере водоснабжения и очистки сточных вод","VS"]
[468,"Московская область","Солнечногорский муниципальный район","46652000","городское поселение Солнечногорск","46652101","26845479","ООО \"Пешковские коммунальные системы\"","5044072900","504401001","Оказание услуг в сфере водоснабжения","VS"]
[469,"Московская область","Дмитровский муниципальный район","46608000","городское поселение Некрасовский","46608163","26568792","ООО \"Полимерконтейнер1\"","5007032018","500701001","Оказание услуг в сфере водоснабжения","VS"]
[470,"Московская область","Пушкинский муниципальный район","46647000","городское поселение Пушкино","46647101","26802844","ООО \"Производственно-строительный концерн \"21-ый век\"","5038024987","503801001","Оказание услуг в сфере водоснабжения","VS"]
[471,"Московская область","городской округ Домодедово","46709000","Город Домодедово","46709000","26548183","ООО \"Промкомбинат\"","5009057480","500901001","Оказание услуг в сфере водоснабжения","VS"]
[472,"Московская область","Серпуховский муниципальный район","46651000","сельское поселение Васильевское","46651410","26648006","ООО \"Промстрой М\"","7708605221","770801001","Оказание услуг в сфере водоснабжения","VS"]
[473,"Московская область","Одинцовский муниципальный район","46641000","сельское поселение Ершовское","46641419","26548299","ООО \"РАО Энерго-АПИ\"","7704219641","770401001","Оказание услуг в сфере водоснабжения","VS"]
[474,"Московская область","Чеховский муниципальный район","46656000","городское поселение Чехов","46656101","26812352","ООО \"РИАЛ\"","7733653934","773301001","Оказание услуг в сфере водоснабжения","VS"]
[475,"Московская область","Рузский муниципальный район","46649000","городское поселение Тучково","46649163","26573296","ООО \"РЭП КХ УК \"Тучково\"","5075372460","507501001","Оказание услуг в сфере водоснабжения","VS"]
[476,"Московская область","Сергиево-Посадский муниципальный район","46615000","сельское поселение Березняковское","46615406","26357947","ООО \"Ресурс\"","5042107019","504201001","Оказание услуг в сфере водоснабжения","VS"]
[477,"Московская область","Солнечногорский муниципальный район","46652000","сельское поселение Кутузовское","46652422","26566861","ООО \"Ресурс-С\"","5044068012","504401001","Оказание услуг в сфере водоснабжения","VS"]
[478,"Московская область","городской округ Реутов","46764000","Город Реутов","46764000","27588369","ООО \"Реутовский водоканал\"","5012055050","504101001","Оказание услуг в сфере водоснабжения","VS"]
[479,"Московская область","городской округ Подольск","46760000","городской округ Подольск","46760000","26361010","ООО \"Ридиос\"","7709221595","507401001","Оказание услуг в сфере водоснабжения","VS"]
[480,"Московская область","Рузский муниципальный район","46649000","сельское поселение Дороховское","46649428","26358061","ООО \"Рузская тепловая компания\"","5075030516","507501001","Оказание услуг в сфере водоснабжения","VS"]
[481,"Московская область","Рузский муниципальный район","46649000","сельское поселение Дороховское","46649428","26358060","ООО \"Рузская эксплуатационная компания\"","5075035352","507501001","Оказание услуг в сфере водоснабжения","VS"]
[482,"Московская область","Рузский муниципальный район","46649000","городское поселение Руза","46649101","26358062","ООО \"Рузские тепловые сети\"","5075032471","507501001","Оказание услуг в сфере водоснабжения","VS"]
[483,"Московская область","Дмитровский муниципальный район","46608000","городское поселение  Дмитров","46608101","26548171","ООО \"СЕМПО\"","7714508459","771401001","Оказание услуг в сфере водоснабжения","VS"]
[484,"Московская область","Истринский муниципальный район","46618000","городское поселение Истра","46618101","26548081","ООО \"СП \"Песчанный берег\"","5017070559","501701001","Оказание услуг в сфере водоснабжения","VS"]
[485,"Московская область","Наро-Фоминский муниципальный район","46638000","Городское поселение Наро-Фоминск","46638101","26548057","ООО \"Селятинские коммунальные системы\"","5030049154","503001001","Оказание услуг в сфере водоснабжения","VS"]
[486,"Московская область","Серебряно-Прудский муниципальный район","46650000","городское поселение Серебряные Пруды","46650151","26358063","ООО \"Серебряно-Прудское МПКХ\"","5076008538","507601001","Оказание услуг в сфере водоснабжения","VS"]
[487,"Московская область","городской округ Котельники","46739000","Город Котельники","46739000","27554086","ООО \"Синди-М\"","5027073076","502701001","Оказание услуг в сфере водоснабжения","VS"]
[488,"Московская область","городской округ Звенигород","46730000","Город Звенигород","46730000","26548099","ООО \"Современные технологии\"","7708229993","770801001","Оказание услуг в сфере водоснабжения","VS"]
[489,"Московская область","Дмитровский муниципальный район","46608000","городское поселение  Дмитров","46608101","26568830","ООО \"Спортивно - развлекательный парк культуры и отдыха \"Яхрома\"","5007069868","500701001","Оказание услуг в сфере водоснабжения","VS"]
[490,"Московская область","Москва","46000000","Москва","46000000","26509255","ООО \"Строитель-плюс\"","5074012017","507401001","Оказание услуг в сфере водоснабжения","VS"]
[491,"Московская область","Раменский муниципальный район","46648000","городское поселение Раменское","46648101","26357915","ООО \"Строительная группа Инфинити\"","7743603058","774301001","Оказание услуг в сфере водоснабжения","VS"]
[492,"Московская область","Москва","46000000","Москва","46000000","26358050","ООО \"Строительная фирма ТЛК\"","5074016614","507401001","Оказание услуг в сфере водоснабжения и очистки сточных вод","VS"]
[493,"Московская область","Щелковский муниципальный район","46659000","городское поселение Щелково","46659101","26357928","ООО \"ТЕПЛОСЕРВИС\"","5041024698","505001001","Оказание услуг в сфере водоснабжения","VS"]
[494,"Московская область","Дмитровский муниципальный район","46608000","городское поселение  Дмитров","46608101","27579111","ООО \"ТЕТА\"","5007070670","500701001","Оказание услуг в сфере водоснабжения и очистки сточных вод","VS"]
[495,"Московская область","городской округ Домодедово","46709000","Город Домодедово","46709000","26837949","ООО \"ТЭКА\"","5003065710","500301001","Оказание услуг в сфере водоснабжения","VS"]
[496,"Московская область","Луховицкий муниципальный район","46630000","городское поселение Луховицы","46630101","27584090","ООО \"Талисман\"","5072001958","507201001","Оказание услуг в сфере водоснабжения","VS"]
[497,"Московская область","Одинцовский муниципальный район","46641000","городское поселение Одинцово","46641101","28284500","ООО \"ТеплоВиК\"","5032230567","503201001","Оказание услуг в сфере водоснабжения","VS"]
[498,"Московская область","Волоколамский муниципальный район","46605000","городское поселение Волоколамск","46605101","26568935","ООО \"Теплосервис\"","5004018174","500401001","Оказание услуг в сфере водоснабжения","VS"]
[499,"Московская область","городской округ Химки","46783000","Город Химки","46783000","26357986","ООО \"УОСЦ Планерная\"","5047035706","504701001","Оказание услуг в сфере водоснабжения","VS"]
[500,"Московская область","Пушкинский муниципальный район","46647000","городское поселение Пушкино","46647101","26649278","ООО \"Уника\"","7702582881","770201001","Оказание услуг в сфере водоснабжения","VS"]
[501,"Московская область","Сергиево-Посадский муниципальный район","46615000","городское поселение Краснозаводск","46615103","26584379","ООО \"Управляющая компания \"Жилищно-строительная компания\"","5042110452","504201001","Оказание услуг в сфере водоснабжения","VS"]
[502,"Московская область","Москва","46000000","Москва","46000000","28153040","ООО \"Управляющая компания \"МЕГА-ГРУП\"","5003093179","500301001","Оказание услуг в сфере водоснабжения","VS"]
[503,"Московская область","Одинцовский муниципальный район","46641000","сельское поселение Успенское","46641461","26820962","ООО \"Управляющая компания КВ\"","5032065264","503201001","Оказание услуг в сфере водоснабжения и очистки сточных вод","VS"]
[504,"Московская область","Сергиево-Посадский муниципальный район","46615000","сельское поселение Шеметовское","46615461","26795642","ООО \"Управляющая компания Шеметово\"","5042111946","504201001","Оказание услуг в сфере водоснабжения","VS"]
[505,"Московская область","Истринский муниципальный район","46618000","городское поселение Снегири","46618156","26510958","ООО \"Управляющая организация \"Прогресс ЖКХ\"","5017073493","501701001","Оказание услуг в сфере водоснабжения","VS"]
[506,"Московская область","Луховицкий муниципальный район","46630000","городское поселение Луховицы","46630101","27584018","ООО \"ФЕНИКС-ГРУП-К\"","5072726802","507201001","Оказание услуг в сфере водоснабжения","VS"]
[507,"Московская область","Ногинский муниципальный район","46639000","городское поселение Старая Купавна","46639103","26548281","ООО \"Фаворит\"","7715844990","771501001","Оказание услуг в сфере водоснабжения","VS"]
[508,"Московская область","городской округ Реутов","46764000","Город Реутов","46764000","26647991","ООО \"Фаскон-1\"","7705298854","504101001","Оказание услуг в сфере водоснабжения","VS"]
[509,"Московская область","Дмитровский муниципальный район","46608000","городское поселение  Дмитров","46608101","26357609","ООО \"Фонте Аква\"","5007039750","500701001","","VS"]
[510,"Московская область","Ногинский муниципальный район","46639000","городское поселение Ногинск","46639101","27580956","ООО \"Чепца\"","4309006380","430901001","Оказание услуг в сфере водоснабжения","VS"]
[511,"Московская область","Шатурский муниципальный район","46657000","городское поселение Шатура","46657101","27517720","ООО \"Черустинские коммунальные системы\"","5049020141","504901001","Оказание услуг в сфере водоснабжения и очистки сточных вод","VS"]
[512,"Московская область","Люберецкий муниципальный район","46631000","городское поселение Томилино","46631173","26357759","ООО \"ЭНЕРГОСЕРВИС\"","5027098352","502701001","Оказание услуг в сфере водоснабжения","VS"]
[513,"Московская область","Коломенский муниципальный район","46622000","городское поселение Пески","46622154","28261033","ООО \"ЭНЕРГОТРЕЙД\"","5022556168","502201001","Оказание услуг в сфере водоснабжения и очистки сточных вод","VS"]
[514,"Московская область","Люберецкий муниципальный район","46631000","городское поселение Красково","46631165","26357740","ООО \"ЭНЕРГОЦЕНТР\"","5027010164","502701001","Оказание услуг в сфере водоснабжения","VS"]
[515,"Московская область","Клинский муниципальный район","46621000","городское поселение Клин","46621101","26627389","ООО \"Эгера\"","5020030690","502001001","Оказание услуг в сфере водоснабжения","VS"]
[516,"Московская область","Дмитровский муниципальный район","46608000","городское поселение  Дмитров","46608101","26548181","ООО \"Эко-Жилком\"","5007041140","500701001","Оказание услуг в сфере водоснабжения","VS"]
[517,"Московская область","Одинцовский муниципальный район","46641000","городское поселение Одинцово","46641101","27580934","ООО \"Эксплуатирующая компания \"Довиль\"","5032190353","503201001","Оказание услуг в сфере водоснабжения","VS"]
[518,"Московская область","Солнечногорский муниципальный район","46652000","городское поселение Солнечногорск","46652101","27583888","ООО \"Эксплуатирующая организация \"Золотые Купола\"","5044066946","504401001","Оказание услуг в сфере водоснабжения","VS"]
[519,"Московская область","Ленинский муниципальный район","46628000","сельское поселение Булатниковское","46628402","27580926","ООО \"Электра\"","7727510448","500301001","Оказание услуг в сфере водоснабжения","VS"]
[520,"Московская область","городской округ Электросталь","46790000","Город Электросталь","46790000","26509755","ООО \"Элемаш-ТЭК\"","5053055010","505301001","Оказание услуг в сфере водоснабжения","VS"]
[521,"Московская область","Дмитровский муниципальный район","46608000","городское поселение  Дмитров","46608101","26504864","ООО \"Эн+ Рециклинг\"","5007057012","500701001","Оказание услуг в сфере водоснабжения","VS"]
[522,"Московская область","Ногинский муниципальный район","46639000","городское поселение Электроугли","46639105","26357810","ООО \"Энергия Плюс\"","5031052745","503101001","Оказание услуг в сфере водоснабжения","VS"]
[523,"Московская область","Сергиево-Посадский муниципальный район","46615000","городское Поселение Скоропусковский","46615161","28009039","ООО \"Энергоресурс\"","5042088983","504201001","Оказание услуг в сфере водоснабжения и очистки сточных вод","VS"]
[524,"Московская область","городской округ Железнодорожный","46724000","Город Железнодорожный","46724000","26803937","ООО \"Ямал-Ф\"","5012021741","501201001","Оказание услуг в сфере водоснабжения","VS"]
[525,"Московская область","Зарайский муниципальный район","46616000","городское поселение Зарайск","46616101","26653053","ООО «Авдеевское»","5014010086","501401001","Оказание услуг в сфере водоснабжения","VS"]
[526,"Московская область","Ленинский муниципальный район","46628000","сельское поселение Развилковское","46628416","26504906","ООО «Газпром ВНИИГАЗ»","5003028155","500301001","Оказание услуг в сфере водоснабжения","VS"]
[527,"Московская область","Щелковский муниципальный район","46659000","городское поселение Щелково","46659101","27250109","ООО «Жилкомфондсервис»)","5037061792","505001001","Оказание услуг в сфере водоснабжения и очистки сточных вод","VS"]
[528,"Московская область","городской округ Звенигород","46730000","Город Звенигород","46730000","26778015","ООО «Звенигородский городской водоканал»","5015011318","501501001","Оказание услуг в сфере водоснабжения","VS"]
[529,"Московская область","Истринский муниципальный район","46618000","городское поселение Истра","46618101","26567652","ООО «Инжводком»","5017051524","501701001","Оказание услуг в сфере водоснабжения","VS"]
[530,"Московская область","Солнечногорский муниципальный район","46652000","сельское поселение Кутузовское","46652422","27524318","ООО «КомЭнерго»","5044077264","504401001","Оказание услуг в сфере водоснабжения","VS"]
[531,"Московская область","Люберецкий муниципальный район","46631000","городское поселение Люберцы","46631101","26504932","ООО «Любэнергоснаб»","5027098306","502701001","Оказание услуг в сфере водоснабжения","VS"]
[532,"Московская область","городской округ Электрогорск","46791000","Город Электрогорск","46791000","26654029","ООО «Мираж -4К»","5035033655","503501001","Оказание услуг в сфере водоснабжения","VS"]
[533,"Московская область","городской округ Электрогорск","46791000","Город Электрогорск","46791000","26654014","ООО «Мираж-3К»","5035021402","503501001","Оказание услуг в сфере водоснабжения","VS"]
[534,"Московская область","городской округ Бронницы","46705000","Город Бронницы","46705000","28221849","ООО «ПромСтройБетон»","7715340230","500245001","Оказание услуг в сфере водоснабжения","VS"]
[535,"Московская область","Одинцовский муниципальный район","46641000","городское поселение Одинцово","46641101","26807304","ООО «РОДЭКС-Девелопмент»","5032086440","503201001","Оказание услуг в сфере водоснабжения","VS"]
[536,"Московская область","городской округ Электрогорск","46791000","Город Электрогорск","46791000","26654022","ООО «Стройэксперт»","5035039449","503501001","Оказание услуг в сфере водоснабжения","VS"]
[537,"Московская область","Мытищинский муниципальный район","46634000","городское поселение Мытищи","46634101","26649179","ООО «Таркетт Соммер»","7727223490","772701001","Оказание услуг в сфере водоснабжения","VS"]
[538,"Московская область","Люберецкий муниципальный район","46631000","городское поселение Томилино","46631173","26802294","ООО «Теплоэлектрогенерация»","5027153980","502701001","Оказание услуг в сфере водоснабжения","VS"]
[539,"Московская область","Щелковский муниципальный район","46659000","городское поселение Монино","46659154","26652100","ООО «Управляющая компания «Жилищный сервис»","5044069217","504401001","Оказание услуг в сфере водоснабжения","VS"]
[540,"Московская область","городской округ Электрогорск","46791000","Город Электрогорск","46791000","26654025","ООО «Чистый город»","7831000122","500343001","Оказание услуг в сфере водоснабжения","VS"]
[541,"Московская область","городской округ Электрогорск","46791000","Город Электрогорск","46791000","26654031","ООО «Элинком»","5035025990","503501001","Оказание услуг в сфере водоснабжения","VS"]
[542,"Московская область","Шатурский муниципальный район","46657000","городское поселение Шатура","46657101","26548043","ООО АПК \"Шатурский\"","5049018880","504901001","Оказание услуг в сфере водоснабжения","VS"]
[543,"Московская область","Одинцовский муниципальный район","46641000","городское поселение Одинцово","46641101","26360921","ООО НПО \"Союз-М\"","7701048405","773301001","Оказание услуг в сфере водоснабжения","VS"]
[544,"Московская область","Одинцовский муниципальный район","46641000","городское поселение Одинцово","46641101","26548089","ООО НПО \"Союз-М\"","7701048405","770101001","Оказание услуг в сфере водоснабжения","VS"]
[545,"Московская область","Чеховский муниципальный район","46656000","городское поселение Чехов","46656101","26357850","ООО ПО \"РемЖилСервис\"","5032133588","503201001","Оказание услуг в сфере водоснабжения","VS"]
[546,"Московская область","Ногинский муниципальный район","46639000","городское поселение Ногинск","46639101","26548225","ООО ТВС","5031060930","503101001","Оказание услуг в сфере водоснабжения","VS"]
[547,"Московская область","Одинцовский муниципальный район","46641000","городское поселение Новоивановское","46641162","26548241","ООО Фонд развития Международного университета филиал \"Кунцево\"","5032018296","503202001","Оказание услуг в сфере водоснабжения","VS"]
[548,"Московская область","Подольский муниципальный район","46646000","сельское поселение Вороновское","46646404","26509167","Оздоровительное объединение \"Солнечный городок ЦБ РФ\"","7702235133","507431001","Оказание услуг в сфере водоснабжения","VS"]
[549,"Московская область","Орехово-Зуевский муниципальный район","46643000","сельское поселение Дороховское","46643425","26511072","Отделение филиала \"РТРС\" \"МРЦ\" Радиоцентр №7","7717127211","503432001","Оказание услуг в сфере водоснабжения","VS"]
[550,"Московская область","городской округ Электрогорск","46791000","Город Электрогорск","46791000","26549249","ПК \"Корпорация Электрогорскмебель\"","5035025069","509095001","Оказание услуг в сфере водоснабжения и очистки сточных вод","VS"]
[551,"Московская область","Наро-Фоминский муниципальный район","46638000","Городское поселение Наро-Фоминск","46638101","26357534","Пансионат \"Нара\"","5000000017","503002002","Оказание услуг в сфере водоснабжения","VS"]
[552,"Московская область","Мытищинский муниципальный район","46634000","городское поселение Пироговский","46634162","26548205","Пансионат \"Пестово\" МГТУ Банка России","7702235133","502931001","Оказание услуг в сфере водоснабжения","VS"]
[553,"Московская область","городской округ Протвино","46767000","Город Протвино","46767000","26357880","Протвинский филиал ФГУП \"НИИ НПО \"Луч\"","5036005308","503702001","Транспортировка воды","VS"]
[554,"Московская область","городской округ Домодедово","46709000","Город Домодедово","46709000","26548150","Психиатрическая больница №2 им. О.В.Кербикова","5009014328","997650012","Оказание услуг в сфере водоснабжения","VS"]
[555,"Московская область","Шатурский муниципальный район","46657000","городское поселение Черусти","46657187","26357996","Пустошинское МУ ЖКП","5049003971","504901001","Оказание услуг в сфере водоснабжения","VS"]
[556,"Московская область","Чеховский муниципальный район","46656000","городское поселение Чехов","46656101","26548167","СПК \"Чеховское\"","5048040297","504801001","Оказание услуг в сфере водоснабжения","VS"]
[557,"Московская область","Зарайский муниципальный район","46616000","городское поселение Зарайск","46616101","26653045","СПК «Сельхозпродукты-2»","5014008792","501401001","Оказание услуг в сфере водоснабжения","VS"]
[558,"Московская область","Люберецкий муниципальный район","46631000","городское поселение Красково","46631165","26548309","СУ \"Управление служебными зданиями\"","7708226907","770801001","Оказание услуг в сфере водоснабжения","VS"]
[559,"Московская область","Раменский муниципальный район","46648000","городское поселение Раменское","46648101","26548271","Туберкулезный санаторий №5","5040034823","504001001","Оказание услуг в сфере водоснабжения","VS"]
[560,"Московская область","Шатурский муниципальный район","46657000","сельское поселение Кривандинское","46657416","26548203","Туголесское МУЖКП","5049003749","504901001","Оказание услуг в сфере водоснабжения","VS"]
[561,"Московская область","Сергиево-Посадский муниципальный район","46615000","Город Сергиев Посад","46615101","26357945","УДП ФГУ Санаторий \"Загорские дали\"","5042015760","504201001","Оказание услуг в сфере водоснабжения","VS"]
[562,"Московская область","Ногинский муниципальный район","46639000","городское поселение Ногинск","46639101","26549219","УК \"Мамонтово-Ямкино\"","5031067893","503101001","Оказание услуг в сфере водоснабжения","VS"]
[563,"Московская область","Солнечногорский муниципальный район","46652000","городское поселение Солнечногорск","46652101","26653519","УТРОХ Дом творчества и отдыха художников «Сенеж»","5044026809","504401001","Оказание услуг в сфере водоснабжения","VS"]
[564,"Московская область","Подольский муниципальный район","46646000","сельское поселение Дубровицкое","46646413","26358044","ФБУ «Санаторий «Вороново» Министерства экономического развития Российской Федерации»","5074001505","775101001","Оказание услуг в сфере водоснабжения","VS"]
[565,"Московская область","","","","","26573412","ФГАУ \"Оздоровительный комплекс \"Архангельское\" УДП РФ","5003004002","775101001","Оказание услуг в сфере водоснабжения","VS"]
[566,"Московская область","Солнечногорский муниципальный район","46652000","городское поселение Солнечногорск","46652101","26357968","ФГАУ \"Оздоровительный комплекс \"Шереметьевский\" Управления делами Президента РФ","5044043360","504401001","Оказание услуг в сфере водоснабжения","VS"]
[567,"Московская область","Одинцовский муниципальный район","46641000","городское поселение Одинцово","46641101","28049182","ФГАУ <ОК <Рублево-Успенский> Управления делами Президента РФ","0710002588","503201001","Оказание услуг в сфере водоснабжения и очистки сточных вод","VS"]
[568,"Московская область","Пушкинский муниципальный район","46647000","городское поселение Черкизово","46647168","26509579","ФГБОУ ВПО «РГУТиС»","5038005448","503801001","Оказание услуг в сфере водоснабжения","VS"]
[569,"Московская область","городской округ Звездный городок (ЗАТО)","46774000","Городской округ Звездный городок (ЗАТО)","46774001","26571431","ФГБУ \"НИИ ЦПК имени Ю.А.Гагарина\"","5050077618","505001001","Оказание услуг в сфере водоснабжения","VS"]
[570,"Московская область","Истринский муниципальный район","46618000","сельское поселение Павло-Слободское","46618437","26357671","ФГБУ \"ОК \"Снегири\"","5017003810","501701001","Оказание услуг в сфере водоснабжения","VS"]
[571,"Московская область","Одинцовский муниципальный район","46641000","сельское поселение Жаворонковское","46641470","26548363","ФГБУ \"РНЦ МРиК\" Минздрава России","7704040281","770401001","Оказание услуг в сфере водоснабжения","VS"]
[572,"Московская область","городской округ Домодедово","46709000","Город Домодедово","46709000","26567452","ФГБУ «ОК «Бор» УДП РФ","5009061310","500901001","Оказание услуг в сфере водоснабжения и очистки сточных вод","VS"]
[573,"Московская область","Москва","46000000","Москва","46000000","26357564","ФГБУ «ОСДО «Десна» УД П РФ»","5003006930","500301001","Оказание услуг в сфере водоснабжения","VS"]
[574,"Московская область","городской округ Протвино","46767000","Город Протвино","46767000","28145252","ФГБУ ГНЦ ИФВЭ","5037007869","503701001","Транспортировка воды","VS"]
[575,"Московская область","городской округ Домодедово","46709000","Город Домодедово","46709000","26357622","ФГБУ ЛОК \"Елочки\"","5009067866","500901001","Оказание услуг в сфере водоснабжения","VS"]
[576,"Московская область","Озерский муниципальный район","46642000","городское поселение Озеры","46642101","26649474","ФГБУ санаторий «Ока» Минздравсоцразвития России","5033001760","503301001","Оказание услуг в сфере водоснабжения","VS"]
[577,"Московская область","Подольский муниципальный район","46646000","сельское поселение Лаговское","46646416","27579764","ФГБУЗ ЦКБВЛ ФМБА России","5044013246","504401001","Оказание услуг в сфере водоснабжения","VS"]
[578,"Московская область","Сергиево-Посадский муниципальный район","46615000","городское поселение Хотьково","46615106","26776512","ФГБУК \"Государственный историко-художественный и литературный музей-заповедник \"Абрамцево\"","5042017485","504201001","Оказание услуг в сфере водоснабжения","VS"]
[579,"Московская область","Шатурский муниципальный район","46657000","городское поселение Шатура","46657101","26548417","ФГКУ  комбинат \"Сосновка\" Росрезерва","5049005753","504901001","Оказание услуг в сфере водоснабжения","VS"]
[580,"Московская область","Ступинский муниципальный район","46653000","сельское поселение Семеновское","46653436","26511475","ФГКУ \"Санаторий \"Семеновское\" ФСБ России\"","5045003201","504501001","Оказание услуг в сфере водоснабжения","VS"]
[581,"Московская область","Чеховский муниципальный район","46656000","городское поселение Чехов","46656101","26509791","ФГКУ в/ч 51952","5048050640","504801001","Оказание услуг в сфере водоснабжения","VS"]
[582,"Московская область","городской округ Коломна","46738000","Город Коломна","46738000","26508705","ФГКЭУ \"Коломенская КЭЧ района\" Министерства обороны РФ","5022022261","502201001","Оказание услуг в сфере водоснабжения","VS"]
[583,"Московская область","Одинцовский муниципальный район","46641000","городское поселение Одинцово","46641101","26548295","ФГУ \"Дом отдыха \"Одинцово\"","5032001006","503201001","Оказание услуг в сфере водоснабжения и очистки сточных вод","VS"]
[584,"Московская область","Мытищинский муниципальный район","46634000","городское поселение Мытищи","46634101","26511046","ФГУ \"Марфинский центральный военный клинический санаторий\" МО РФ","5029030328","502901001","Оказание услуг в сфере водоснабжения","VS"]
[585,"Московская область","Мытищинский муниципальный район","46634000","городское поселение Мытищи","46634101","26357769","ФГУ \"Мытищинская КЭЧ района\" Минобороны России","5029009189","772501001","Оказание услуг в сфере водоснабжения","VS"]
[586,"Московская область","городской округ Домодедово","46709000","Город Домодедово","46709000","26548179","ФГУ \"ОС \"Подмосковье\" УДП РФ","5009014293","997650013","Оказание услуг в сфере водоснабжения","VS"]
[587,"Московская область","городской округ Домодедово","46709000","Город Домодедово","46709000","26357624","ФГУ \"Объединенный санаторий \"Подмосковье\" Управления делами Президента РФ","5009014293","500901001","Оказание услуг в сфере водоснабжения и очистки сточных вод","VS"]
[588,"Московская область","Москва","46000000","Москва","46000000","26548109","ФГУ \"РРЦ \"Детство\" Минздравсоцразвития России","5003018904","500301001","Оказание услуг в сфере водоснабжения","VS"]
[589,"Московская область","Одинцовский муниципальный район","46641000","городское поселение Одинцово","46641101","26357841","ФГУ \"Центр реабилитации Управления делами президента\"","5032039680","503201001","Оказание услуг в сфере водоснабжения","VS"]
[590,"Московская область","городской округ Балашиха","46704000","Город Балашиха","46704000","26805331","ФГУ \"в/ч 35690\"","5001082291","500101001","Оказание услуг в сфере водоснабжения","VS"]
[591,"Московская область","Красногорский муниципальный район","46623000","городское поселение Красногорск","46623101","26357720","ФГУ 3 ЦВКГ им. А.А.Вишневского МО РФ\"","5024000030","502401001","Оказание услуг в сфере водоснабжения","VS"]
[592,"Московская область","Сергиево-Посадский муниципальный район","46615000","Город Сергиев Посад","46615101","26504898","ФГУ «48 ЦНИИ Минобороны России» - «Вирусологический центр»","4345145445","504231001","Оказание услуг в сфере водоснабжения","VS"]
[593,"Московская область","Волоколамский муниципальный район","46605000","сельское поселение Чисменское","46605461","26510872","ФГУ ДЭП-24","5024000633","502401001","Оказание услуг в сфере водоснабжения","VS"]
[594,"Московская область","городской округ Троицк","46775000","Город Троицк","46775000","26647745","ФГУ Дом отдыха «ПОДМОСКОВНЫЕ ВЕЧЕРА» ФСБ России","5046005561","504601001","Оказание услуг в сфере водоснабжения","VS"]
[595,"Московская область","городской округ Электрогорск","46791000","Город Электрогорск","46791000","26548193","ФГУ НЦ БМТ РАМН \"Белый мох\"","7709379649","503502001","Оказание услуг в сфере водоснабжения","VS"]
[596,"Московская область","Одинцовский муниципальный район","46641000","городское поселение Кубинка","46641110","26357837","ФГУ Петелинская КЭЧ","5032030430","503201001","Оказание услуг в сфере водоснабжения и очистки сточных вод","VS"]
[597,"Московская область","Чеховский муниципальный район","46656000","сельское поселение Стремиловское","46656428","26357989","ФГУ Санаторий Русское поле","5048050739","504801001","Оказание услуг в сфере водоснабжения","VS"]
[598,"Московская область","Пушкинский муниципальный район","46647000","городское поселение Пушкино","46647101","26509442","ФГУ Центральный пограничный архив ФСБ РФ","5038021295","503801001","Оказание услуг в сфере водоснабжения","VS"]
[599,"Московская область","городской округ Домодедово","46709000","Город Домодедово","46709000","26357621","ФГУК \"Государственный фонд кинофильмов Российской Федерации\"","5009007137","500901001","Оказание услуг в сфере водоснабжения","VS"]
[600,"Московская область","Ногинский муниципальный район","46639000","городское поселение Ногинск","46639101","26548187","ФГУП \"22 БТРЗ МО РФ\"","7734022459","503101001","Оказание услуг в сфере водоснабжения","VS"]
[601,"Московская область","городской округ Домодедово","46709000","Город Домодедово","46709000","26548051","ФГУП \"ВНИИА\" им. Н.Л.Духова ДОЛ \"Искорка\"","7707074137","997650015","Оказание услуг в сфере водоснабжения","VS"]
[602,"Московская область","Солнечногорский муниципальный район","46652000","городское поселение Менделеево","46652158","26357961","ФГУП \"ВНИИФТРИ\"","5044000102","504401001","Оказание услуг в сфере водоснабжения","VS"]
[603,"Московская область","городской округ Королев","46734000","Город Королев","46734000","28268636","ФГУП \"ГКНПЦ им.М.В.Хруничева\", \"КБхиммаш им.А.М.Исаева\" - филиал ФГУП \"ГКНПЦ им.М.В.Хруничева\"","7730052050","501832001","Оказание услуг в сфере водоснабжения","VS"]
[604,"Московская область","Солнечногорский муниципальный район","46652000","городское поселение Солнечногорск","46652101","26548437","ФГУП \"Гостиница \"Золотое кольцо\"","7704218503","770401001","Оказание услуг в сфере водоснабжения","VS"]
[605,"Московская область","Раменский муниципальный район","46648000","городское поселение Раменское","46648101","26572745","ФГУП \"ИМГРЭ\" Бронницкая геолого-геохимическая экспедиция","7731007371","504002001","Оказание услуг в сфере водоснабжения","VS"]
[606,"Московская область","городской округ Дубна","46718000","Город Дубна","46718000","27581531","ФГУП \"Каменка\" Россельхозакадемии","5074000653","507401001","Оказание услуг в сфере водоснабжения","VS"]
[607,"Московская область","","","","","26436646","ФГУП \"Канал им.Москвы\"","7733022865","774850001","Транспортировка воды","VS"]
[608,"Московская область","Москва","46000000","Москва","46000000","28176875","ФГУП \"Комплекс\" ФСБ России","5003005239","770201001","Оказание услуг в сфере водоснабжения и очистки сточных вод","VS"]
[609,"Московская область","Ногинский муниципальный район","46639000","городское поселение Электроугли","46639105","26785891","ФГУП \"РТРС\" \"МРЦ\" Радиоцентр №9","7717127211","503131001","Оказание услуг в сфере водоснабжения","VS"]
[610,"Московская область","Одинцовский муниципальный район","46641000","сельское поселение Барвихинское","46641404","26357847","ФГУП \"Рублево-Успенский ЛОК\"","5032067134","509950001","Оказание услуг в сфере водоснабжения","VS"]
[611,"Московская область","городской округ Черноголовка","46781000","Город Черноголовка","46781000","26548156","ФГУП \"УЭ НЦЧ РАН\"","5031044222","503104001","Оказание услуг в сфере водоснабжения","VS"]
[612,"Московская область","городской округ Черноголовка","46781000","Город Черноголовка","46781000","26783107","ФГУП \"Управление эксплуатации научного центра РАН в Черноголовке\"","5031007809","503101001","Оказание услуг в сфере водоснабжения и очистки сточных вод","VS"]
[613,"Московская область","городской округ Химки","46783000","Город Химки","46783000","26357984","ФГУП \"Учебно-тренировочный центр \"Новогорск\"","5047002267","504701001","Оказание услуг в сфере водоснабжения","VS"]
[614,"Московская область","городской округ Жуковский","46725000","Город Жуковский","46725000","26548091","ФГУП \"ЦАГИ\"","5013009056","501301001","Оказание услуг в сфере водоснабжения","VS"]
[615,"Московская область","городской округ Королев","46734000","Город Королев","46734000","26588415","ФГУП \"ЦНИИмаш\"","5018034218","501801001","Оказание услуг в сфере водоснабжения","VS"]
[616,"Московская область","Сергиево-Посадский муниципальный район","46615000","Город Сергиев Посад","46615101","26357942","ФГУП \"Электромеханический завод \"Звезда\"","5042010458","504201001","Оказание услуг в сфере водоснабжения","VS"]
[617,"Московская область","городской округ Домодедово","46709000","Город Домодедово","46709000","26548365","ФГУП \"государственный фонд кинофильмов РФ\"","5009007137","997650014","Оказание услуг в сфере водоснабжения","VS"]
[618,"Московская область","городской округ Королев","46734000","Город Королев","46734000","26505084","ФГУП «ГК НПЦ им. М.В.Хруничева»","7730052050","500532001","","VS"]
[619,"Московская область","Люберецкий муниципальный район","46631000","городское поселение Красково","46631165","26567456","ФГУП «Коренево» Россельхозакадемии","5027031319","502701001","Оказание услуг в сфере водоснабжения и очистки сточных вод","VS"]
[620,"Московская область","Ленинский муниципальный район","46628000","сельское поселение Воскресенское","46628408","26357575","ФГУП АПК \"Воскресенский\"","5003034790","500301001","Оказание услуг в сфере водоснабжения","VS"]
[621,"Московская область","Истринский муниципальный район","46618000","городское поселение Истра","46618101","26548239","ФГУП ВЭИ","7722026032","501701001","Оказание услуг в сфере водоснабжения","VS"]
[622,"Московская область","","","","","26357563","ФГУП ПИПВЭ им. Чумакова","5003005824","775101001","Оказание услуг в сфере водоснабжения","VS"]
[623,"Московская область","Москва","46000000","Москва","46000000","26548132","ФГУП Центр радиотехнического оборудования и связи гражданской авиации","5003000401","500301001","Оказание услуг в сфере водоснабжения","VS"]
[624,"Московская область","Воскресенский муниципальный район","46606000","городское поселение Белоозерский","46606154","26357560","ФКП \"Воскресенский государственный казенный агрегатный завод\"","5005021250","509950001","Оказание услуг в сфере водоснабжения и очистки сточных вод","VS"]
[625,"Московская область","Воскресенский муниципальный район","46606000","городское поселение Белоозерский","46606154","26506574","ФКП \"ГкНИПАС\"","5005020218","500501001","Оказание услуг в сфере водоснабжения","VS"]
[626,"Московская область","Сергиево-Посадский муниципальный район","46615000","городское поселение Пересвет","46615105","26357938","ФКП \"НИЦ РКП\"","5042006211","504201001","Оказание услуг в сфере водоснабжения","VS"]
[627,"Московская область","городской округ Королев","46734000","Город Королев","46734000","28261480","ФКУ ФМС России \"УМиРЦ\"Болшево\"","5018036159","501801001","Оказание услуг в сфере водоснабжения","VS"]
[628,"Московская область","городской округ Троицк","46775000","Город Троицк","46775000","26647710","ФКУ ФМС России \"ЦМПР \"Ватутинки-1\"","5046005882","504601001","Оказание услуг в сфере водоснабжения","VS"]
[629,"Московская область","Одинцовский муниципальный район","46641000","городское поселение Одинцово","46641101","27780543","ФСО России","7704055094","770401001","Оказание услуг в сфере водоснабжения и очистки сточных вод","VS"]
[630,"Московская область","городской округ Химки","46783000","Город Химки","46783000","26627352","Филиал \"ДЭЗС\" ФГУП \"УСС № 12 при Спецстрое России\"","1835052755","773443005","Оказание услуг в сфере водоснабжения","VS"]
[631,"Московская область","Одинцовский муниципальный район","46641000","городское поселение Кубинка","46641110","27583950","Филиал \"Кубинский\" ОАО \"Славянка\"","7702707386","503243001","Оказание услуг в сфере водоснабжения","VS"]
[632,"Московская область","Ногинский муниципальный район","46639000","городское поселение Ногинск","46639101","26801802","Филиал \"Ногинский\" ОАО \"Славянка\"","7702707386","503143001","Оказание услуг в сфере водоснабжения","VS"]
[633,"Московская область","городской округ Подольск","46760000","Город Подольск","46760000","27619856","Филиал «Подольский» ОАО «Славянка»","7702707386","770201001","Оказание услуг в сфере водоснабжения","VS"]
[634,"Московская область","городской округ Электросталь","46790000","Город Электросталь","46790000","26361030","Филиал «РТРС» «МРЦ»","7717127211","771702001","Оказание услуг в сфере водоснабжения","VS"]
[635,"Московская область","Солнечногорский муниципальный район","46652000","городское поселение Солнечногорск","46652101","27524283","Филиал «Солнечногорский» ОАО «Славянка»","7702707386","504443001","Оказание услуг в сфере водоснабжения","VS"]
[636,"Московская область","городской округ Орехово-Зуево","46757000","Город Орехово-Зуево","46757000","28268327","Филиал ГУП МО \"КС МО\" \"ВСВ\"","5034065171","503443001","Оказание услуг в сфере водоснабжения","VS"]
[637,"Московская область","Солнечногорский муниципальный район","46652000","городское поселение Менделеево","46652158","26548189","Филиал ОАО \"Газпром\"- пансионат \"Морозовка\"","7736050003","504401001","Оказание услуг в сфере водоснабжения","VS"]
[638,"Московская область","Ступинский муниципальный район","46653000","городское поселение Малино","46653156","26802877","Филиал ОАО \"Малино\"","7722014069","504501001","Оказание услуг в сфере водоснабжения","VS"]
[639,"Московская область","Чеховский муниципальный район","46656000","городское поселение Чехов","46656101","26509676","Филиал ОАО \"Мостостройиндустрия\"  Чеховский завод мостовых конструкций","7708000794","504802001","Оказание услуг в сфере водоснабжения","VS"]
[640,"Московская область","Серебряно-Прудский муниципальный район","46650000","городское поселение Серебряные Пруды","46650151","26809151","Филиал ОАО \"СО ЕЭС\" ЦТО","7705454461","507602001","Оказание услуг в сфере водоснабжения","VS"]
[641,"Московская область","Дмитровский муниципальный район","46608000","городское поселение Икша","46608157","28134387","Филиал ОАО \"ФСК ЕЭС\" - Московское ПМЭС","4716016979","500743002","Оказание услуг в сфере водоснабжения","VS"]
[642,"Московская область","Москва","46000000","Москва","46000000","26814783","Филиал ООО \"Газпром трансгаз Москва\" УЭЗC","5003028028","997250001","Оказание услуг в сфере водоснабжения","VS"]
[643,"Московская область","Щелковский муниципальный район","46659000","городское поселение Фряново","46659163","26570773","Фряновское МП ЖКХ","5050037781","505001001","Оказание услуг в сфере водоснабжения","VS"]
[644,"Московская область","Шатурский муниципальный район","46657000","городское поселение Шатура","46657101","26504759","Шатурская ГРЭС","8602067092","504902001","Оказание услуг в сфере водоснабжения","VS"]
[645,"Московская область","Шатурский муниципальный район","46657000","городское поселение Шатура","46657101","26548160","Шатурское МУП ПТО ГХ","5049003153","504901001","Оказание услуг в сфере водоснабжения","VS"]
[646,"Московская область","Красногорский муниципальный район","46623000","городское поселение Красногорск","46623101","26548273","в/ч 03353","5024000270","502401001","Оказание услуг в сфере водоснабжения","VS"]
[647,"Московская область","Щелковский муниципальный район","46659000","городское поселение Щелково","46659101","26548138","в/ч 52531","5050006328","505001001","Оказание услуг в сфере водоснабжения","VS"]
[648,"Московская область","Каширский муниципальный район","46620000","городское поселение Кашира","46620101","27980582","филиал \"Каширская ГРЭС\" ОАО \"ИНТЕР РАО- Электрогенерация\"","7704784450","501943001","Оказание услуг в сфере водоснабжения","VS"]
[649,"Московская область","Истринский муниципальный район","46618000","сельское поселение Костровское","46618419","26510974","филиал ОАО \"ГАЗПРОМ\"- \"Пансионат \"Союз\"","7736050003","501702001","Оказание услуг в сфере водоснабжения","VS"]
[650,"Московская область","Луховицкий муниципальный район","46630000","городское поселение Луховицы","46630101","26775083","филиал ОООО \"Газпром трансгаз Москва\" \"Гавриловское ЛПУМГ\"","5003028028","507203001","Оказание услуг в сфере водоснабжения","VS"]

{"sheet":"modClassifierValidate","index":18,"n_rows":0,"n_cols":0,"rows_kept":0,"cut":false,"hidden":true,"merged":[]}

{"sheet":"modProv","index":19,"n_rows":0,"n_cols":0,"rows_kept":0,"cut":false,"hidden":true,"merged":[]}

{"sheet":"modHyp","index":20,"n_rows":0,"n_cols":0,"rows_kept":0,"cut":false,"hidden":true,"merged":[]}

{"sheet":"modList00","index":21,"n_rows":0,"n_cols":0,"rows_kept":0,"cut":false,"hidden":true,"merged":[]}

{"sheet":"modList01","index":22,"n_rows":0,"n_cols":0,"rows_kept":0,"cut":false,"hidden":true,"merged":[]}

{"sheet":"modList02","index":23,"n_rows":0,"n_cols":0,"rows_kept":0,"cut":false,"hidden":true,"merged":[]}

{"sheet":"modList03","index":24,"n_rows":0,"n_cols":0,"rows_kept":0,"cut":false,"hidden":true,"merged":[]}

{"sheet":"modfrmDateChoose","index":25,"n_rows":0,"n_cols":0,"rows_kept":0,"cut":false,"hidden":true,"merged":[]}

{"sheet":"modComm","index":26,"n_rows":0,"n_cols":0,"rows_kept":0,"cut":false,"hidden":true,"merged":[]}

{"sheet":"modThisWorkbook","index":27,"n_rows":0,"n_cols":0,"rows_kept":0,"cut":false,"hidden":true,"merged":[]}

{"sheet":"REESTR_MO","index":28,"n_rows":420,"n_cols":4,"rows_kept":420,"cut":false,"hidden":true,"merged":[]}
["№","МР","МО","МО_ОКТМО"]
[1,"Волоколамский муниципальный район","Волоколамский муниципальный район","46605000"]
[2,"Волоколамский муниципальный район","городское поселение Волоколамск","46605101"]
[3,"Волоколамский муниципальный район","городское поселение Сычево","46605158"]
[4,"Волоколамский муниципальный район","сельское поселение Кашинское","46605422"]
[5,"Волоколамский муниципальный район","сельское поселение Осташевское","46605431"]
[6,"Волоколамский муниципальный район","сельское поселение Спасское","46605434"]
[7,"Волоколамский муниципальный район","сельское поселение Теряевское","46605449"]
[8,"Волоколамский муниципальный район","сельское поселение Чисменское","46605461"]
[9,"Волоколамский муниципальный район","сельское поселение Ярополецкое","46605467"]
[10,"Воскресенский муниципальный район","Воскресенский муниципальный район","46606000"]
[11,"Воскресенский муниципальный район","городское поселение Белоозерский","46606154"]
[12,"Воскресенский муниципальный район","городское поселение Воскресенск","46606101"]
[13,"Воскресенский муниципальный район","городское поселение Хорлово","46606167"]
[14,"Воскресенский муниципальный район","городское поселение им. Цюрупы","46606180"]
[15,"Воскресенский муниципальный район","сельское поселение Ашитковское","46606402"]
[16,"Воскресенский муниципальный район","сельское поселение Фединское","46606413"]
[17,"Дмитровский муниципальный район","Дмитровский муниципальный район","46608000"]
[18,"Дмитровский муниципальный район","городское поселение  Дмитров","46608101"]
[19,"Дмитровский муниципальный район","городское поселение Деденево","46608154"]
[20,"Дмитровский муниципальный район","городское поселение Икша","46608157"]
[21,"Дмитровский муниципальный район","городское поселение Некрасовский","46608163"]
[22,"Дмитровский муниципальный район","городское поселение Яхрома","46608105"]
[23,"Дмитровский муниципальный район","сельское поселение Большерогачевское","46608407"]
[24,"Дмитровский муниципальный район","сельское поселение Габовское","46608413"]
[25,"Дмитровский муниципальный район","сельское поселение Костинское","46608431"]
[26,"Дмитровский муниципальный район","сельское поселение Куликовское","46608437"]
[27,"Дмитровский муниципальный район","сельское поселение Синьковское","46608461"]
[28,"Дмитровский муниципальный район","сельское поселение Якотское","46608470"]
[29,"Егорьевский муниципальный район","Егорьевский муниципальный район","46612000"]
[30,"Егорьевский муниципальный район","городское поселение Егорьевск","46612101"]
[31,"Егорьевский муниципальный район","горосдское поселение Рязановский","46612160"]
[32,"Егорьевский муниципальный район","сельское поселение Раменское","46612440"]
[33,"Егорьевский муниципальный район","сельское поселение Саввинское","46612443"]
[34,"Егорьевский муниципальный район","сельское поселение Юрцовское","46612434"]
[35,"Зарайский муниципальный район","Зарайский муниципальный район","46616000"]
[36,"Зарайский муниципальный район","городское поселение Зарайск","46616101"]
[37,"Зарайский муниципальный район","сельское поселение Гололобовское","46616408"]
[38,"Зарайский муниципальный район","сельское поселение Каринское","46616416"]
[39,"Зарайский муниципальный район","сельское поселение Машоновское","46616428"]
[40,"Зарайский муниципальный район","сельское поселение Струпненское","46616437"]
[41,"Истринский муниципальный район","Истринский муниципальный район","46618000"]
[42,"Истринский муниципальный район","городское поселение Дедовск","46618103"]
[43,"Истринский муниципальный район","городское поселение Истра","46618101"]
[44,"Истринский муниципальный район","городское поселение Снегири","46618156"]
[45,"Истринский муниципальный район","сельское поселение Бужаровское","46618402"]
[46,"Истринский муниципальный район","сельское поселение Букаревское","46618404"]
[47,"Истринский муниципальный район","сельское поселение Ермолинское","46618413"]
[48,"Истринский муниципальный район","сельское поселение Ивановское","46618416"]
[49,"Истринский муниципальный район","сельское поселение Костровское","46618419"]
[50,"Истринский муниципальный район","сельское поселение Лучинское","46618425"]
[51,"Истринский муниципальный район","сельское поселение Новопетровское","46618428"]
[52,"Истринский муниципальный район","сельское поселение Обушковское","46618431"]
[53,"Истринский муниципальный район","сельское поселение Онуфриевское","46618434"]
[54,"Истринский муниципальный район","сельское поселение Павло-Слободское","46618437"]
[55,"Истринский муниципальный район","сельское поселение Ядроминское","46618443"]
[56,"Каширский муниципальный район","Каширский муниципальный район","46620000"]
[57,"Каширский муниципальный район","городское поселение Кашира","46620101"]
[58,"Каширский муниципальный район","городское поселение Ожерелье","46620104"]
[59,"Каширский муниципальный район","сельское поселение Базаровское","46620402"]
[60,"Каширский муниципальный район","сельское поселение Домнинское","46620407"]
[61,"Каширский муниципальный район","сельское поселение Знаменское","46620410"]
[62,"Каширский муниципальный район","сельское поселение Колтовское","46620413"]
[63,"Каширский муниципальный район","сельское поселение Топкановское","46620419"]
[64,"Клинский муниципальный район","Клинский муниципальный район","46621000"]
[65,"Клинский муниципальный район","городское поселение Высоковск","46621103"]
[66,"Клинский муниципальный район","городское поселение Клин","46621101"]
[67,"Клинский муниципальный район","городское поселение Решетниково","46621154"]
[68,"Клинский муниципальный район","сельское поселение Воздвиженское","46621407"]
[69,"Клинский муниципальный район","сельское поселение Воронинское","46621410"]
[70,"Клинский муниципальный район","сельское поселение Зубовское","46621416"]
[71,"Клинский муниципальный район","сельское поселение Нудольское","46621434"]
[72,"Клинский муниципальный район","сельское поселение Петровское","46621437"]
[73,"Коломенский муниципальный район","Коломенский муниципальный район","46622000"]
[74,"Коломенский муниципальный район","городское поселение Пески","46622154"]
[75,"Коломенский муниципальный район","сельское поселение Акатьевское","46622402"]
[76,"Коломенский муниципальный район","сельское поселение Биорковское","46622404"]
[77,"Коломенский муниципальный район","сельское поселение Заруденское","46622416"]
[78,"Коломенский муниципальный район","сельское поселение Непецинское","46622419"]
[79,"Коломенский муниципальный район","сельское поселение Пестриковское","46622425"]
[80,"Коломенский муниципальный район","сельское поселение Проводниковское","46622431"]
[81,"Коломенский муниципальный район","сельское поселение Радужное","46622422"]
[82,"Коломенский муниципальный район","сельское поселение Хорошовское","46622434"]
[83,"Красногорский муниципальный район","Красногорский муниципальный район","46623000"]
[84,"Красногорский муниципальный район","городское поселение Красногорск","46623101"]
[85,"Красногорский муниципальный район","городское поселение Нахабино","46623154"]
[86,"Красногорский муниципальный район","сельское поселение Ильинское","46623404"]
[87,"Красногорский муниципальный район","сельское поселение Отрадненское","46623407"]
[88,"Ленинский муниципальный район","Ленинский муниципальный район","46628000"]
[89,"Ленинский муниципальный район","городское поселение Видное","46628101"]
[90,"Ленинский муниципальный район","городское поселение Горки Ленинские","46628155"]
[91,"Ленинский муниципальный район","городское поселение Московский","46628105"]
[92,"Ленинский муниципальный район","сельское поселение Булатниковское","46628402"]
[93,"Ленинский муниципальный район","сельское поселение Внуковское","46628404"]
[94,"Ленинский муниципальный район","сельское поселение Володарское","46628407"]
[95,"Ленинский муниципальный район","сельское поселение Воскресенское","46628408"]
[96,"Ленинский муниципальный район","сельское поселение Десеновское","46628413"]
[97,"Ленинский муниципальный район","сельское поселение Молоковское","46628422"]
[98,"Ленинский муниципальный район","сельское поселение Мосрентген","46628409"]
[99,"Ленинский муниципальный район","сельское поселение Развилковское","46628416"]
[100,"Ленинский муниципальный район","сельское поселение Совхоз имени Ленина","46628411"]
[101,"Ленинский муниципальный район","сельское поселение Сосенское","46628426"]
[102,"Ленинский муниципальный район","сельское поселение Филимонковское","46628431"]
[103,"Лотошинский муниципальный район","Лотошинский муниципальный район","46629000"]
[104,"Лотошинский муниципальный район","городское поселение Лотошино","46629151"]
[105,"Лотошинский муниципальный район","сельское поселение Микулинское","46629416"]
[106,"Лотошинский муниципальный район","сельское поселение Ошейкинское","46629428"]
[107,"Луховицкий муниципальный район","Луховицкий муниципальный район","46630000"]
[108,"Луховицкий муниципальный район","городское поселение Белоомут","46630153"]
[109,"Луховицкий муниципальный район","городское поселение Луховицы","46630101"]
[110,"Луховицкий муниципальный район","сельское поселение Астаповское","46630407"]
[111,"Луховицкий муниципальный район","сельское поселение Газопроводское","46630413"]
[112,"Луховицкий муниципальный район","сельское поселение Головачевское","46630416"]
[113,"Луховицкий муниципальный район","сельское поселение Дединовское","46630425"]
[114,"Луховицкий муниципальный район","сельское поселение Краснопоймовское","46630431"]
[115,"Луховицкий муниципальный район","сельское поселение Фруктовское","46630452"]
[116,"Люберецкий муниципальный район","Люберецкий муниципальный район","46631000"]
[117,"Люберецкий муниципальный район","городское поселение Красково","46631165"]
[118,"Люберецкий муниципальный район","городское поселение Люберцы","46631101"]
[119,"Люберецкий муниципальный район","городское поселение Малаховка","46631167"]
[120,"Люберецкий муниципальный район","городское поселение Октябрьский","46631170"]
[121,"Люберецкий муниципальный район","городское поселение Томилино","46631173"]
[122,"Можайский муниципальный район","Можайский муниципальный район","46633000"]
[123,"Можайский муниципальный район","городское поселение Можайск","46633101"]
[124,"Можайский муниципальный район","городское поселение Уваровка","46633154"]
[125,"Можайский муниципальный район","сельское поселение Борисовское","46633402"]
[126,"Можайский муниципальный район","сельское поселение Бородинское","46633404"]
[127,"Можайский муниципальный район","сельское поселение Горетовское","46633410"]
[128,"Можайский муниципальный район","сельское поселение Дровнинский","46633416"]
[129,"Можайский муниципальный район","сельское поселение Замошинское","46633419"]
[130,"Можайский муниципальный район","сельское поселение Клементьевский","46633422"]
[131,"Можайский муниципальный район","сельское поселение Порецкое","46633437"]
[132,"Можайский муниципальный район","сельское поселение Спутник","46633425"]
[133,"Можайский муниципальный район","сельское поселение Юрловское","46633449"]
[134,"Москва","Москва","46000000"]
[135,"Мытищинский муниципальный район","Мытищинский муниципальный район","46634000"]
[136,"Мытищинский муниципальный район","городское поселение Мытищи","46634101"]
[137,"Мытищинский муниципальный район","городское поселение Пироговский","46634162"]
[138,"Мытищинский муниципальный район","сельское поселение Федоскинское","46634422"]
[139,"Наро-Фоминский муниципальный район","Городское поселение Наро-Фоминск","46638101"]
[140,"Наро-Фоминский муниципальный район","Наро-Фоминский муниципальный район","46638000"]
[141,"Наро-Фоминский муниципальный район","городское поселение Апрелевка","46638102"]
[142,"Наро-Фоминский муниципальный район","городское поселение Верея","46638105"]
[143,"Наро-Фоминский муниципальный район","городское поселение Калининец","46638155"]
[144,"Наро-Фоминский муниципальный район","городское поселение Киевский","46638158"]
[145,"Наро-Фоминский муниципальный район","городское поселение Кокошкино","46638160"]
[146,"Наро-Фоминский муниципальный район","городское поселение Селятино","46638168"]
[147,"Наро-Фоминский муниципальный район","сельское поселение Атепцевское","46638404"]
[148,"Наро-Фоминский муниципальный район","сельское поселение Веселевское","46638410"]
[149,"Наро-Фоминский муниципальный район","сельское поселение Волченковское","46638407"]
[150,"Наро-Фоминский муниципальный район","сельское поселение Марушкинское","46638422"]
[151,"Наро-Фоминский муниципальный район","сельское поселение Новофедоровское","46638428"]
[152,"Наро-Фоминский муниципальный район","сельское поселение Первомайское","46638431"]
[153,"Наро-Фоминский муниципальный район","сельское поселение Ташировское","46638440"]
[154,"Ногинский муниципальный район","Ногинский муниципальный район","46639000"]
[155,"Ногинский муниципальный район","городское поселение Ногинск","46639101"]
[156,"Ногинский муниципальный район","городское поселение Обухово","46639158"]
[157,"Ногинский муниципальный район","городское поселение Старая Купавна","46639103"]
[158,"Ногинский муниципальный район","городское поселение Электроугли","46639105"]
[159,"Ногинский муниципальный район","городское поселение им. Воровского","46639154"]
[160,"Ногинский муниципальный район","сельское поселение Аксено-Бутырское","46639402"]
[161,"Ногинский муниципальный район","сельское поселение Буньковское","46639407"]
[162,"Ногинский муниципальный район","сельское поселение Мамонтовское","46639416"]
[163,"Ногинский муниципальный район","сельское поселение Степановское","46639422"]
[164,"Ногинский муниципальный район","сельское поселение Ямкинское","46639428"]
[165,"Одинцовский муниципальный район","Одинцовский муниципальный район","46641000"]
[166,"Одинцовский муниципальный район","городское поселение Большие Вяземы","46641152"]
[167,"Одинцовский муниципальный район","городское поселение Голицыно","46641104"]
[168,"Одинцовский муниципальный район","городское поселение Заречье","46641157"]
[169,"Одинцовский муниципальный район","городское поселение Кубинка","46641110"]
[170,"Одинцовский муниципальный район","городское поселение Лесной Городок","46641160"]
[171,"Одинцовский муниципальный район","городское поселение Новоивановское","46641162"]
[172,"Одинцовский муниципальный район","городское поселение Одинцово","46641101"]
[173,"Одинцовский муниципальный район","сельское поселение Барвихинское","46641404"]
[174,"Одинцовский муниципальный район","сельское поселение Горское","46641413"]
[175,"Одинцовский муниципальный район","сельское поселение Ершовское","46641419"]
[176,"Одинцовский муниципальный район","сельское поселение Жаворонковское","46641470"]
[177,"Одинцовский муниципальный район","сельское поселение Захаровское","46641425"]
[178,"Одинцовский муниципальный район","сельское поселение Назарьевское","46641440"]
[179,"Одинцовский муниципальный район","сельское поселение Никольское","46641449"]
[180,"Одинцовский муниципальный район","сельское поселение Успенское","46641461"]
[181,"Одинцовский муниципальный район","сельское поселение Часцовское","46641464"]
[182,"Озерский муниципальный район","Озерский муниципальный район","46642000"]
[183,"Озерский муниципальный район","городское поселение Озеры","46642101"]
[184,"Озерский муниципальный район","сельское поселение Бояркинское","46642402"]
[185,"Озерский муниципальный район","сельское поселение Клишинское","46642410"]
[186,"Орехово-Зуевский муниципальный район","Орехово-Зуевский муниципальный район","46643000"]
[187,"Орехово-Зуевский муниципальный район","городское поселение Дрезна","46643104"]
[188,"Орехово-Зуевский муниципальный район","городское поселение Куровское","46643108"]
[189,"Орехово-Зуевский муниципальный район","городское поселение Ликино-Дулево","46643113"]
[190,"Орехово-Зуевский муниципальный район","сельское поселение Белавинское","46643407"]
[191,"Орехово-Зуевский муниципальный район","сельское поселение Верейское","46643408"]
[192,"Орехово-Зуевский муниципальный район","сельское поселение Горское","46643413"]
[193,"Орехово-Зуевский муниципальный район","сельское поселение Давыдовское","46643419"]
[194,"Орехово-Зуевский муниципальный район","сельское поселение Демиховское","46643422"]
[195,"Орехово-Зуевский муниципальный район","сельское поселение Дороховское","46643425"]
[196,"Орехово-Зуевский муниципальный район","сельское поселение Ильинское","46643431"]
[197,"Орехово-Зуевский муниципальный район","сельское поселение Малодубенское","46643437"]
[198,"Орехово-Зуевский муниципальный район","сельское поселение Новинское","46643443"]
[199,"Орехово-Зуевский муниципальный район","сельское поселение Соболевское","46643446"]
[200,"Павлово-Посадский муниципальный район","Павлово-Посадский муниципальный район","46645000"]
[201,"Павлово-Посадский муниципальный район","городское поселение Большие Дворы","46645152"]
[202,"Павлово-Посадский муниципальный район","городское поселение Павловский Посад","46645101"]
[203,"Павлово-Посадский муниципальный район","сельское поселение Аверкиевское","46645402"]
[204,"Павлово-Посадский муниципальный район","сельское поселение Кузнецовское","46645404"]
[205,"Павлово-Посадский муниципальный район","сельское поселение Рахмановское","46645410"]
[206,"Павлово-Посадский муниципальный район","сельское поселение Улитинское","46645416"]
[207,"Подольский муниципальный район","Подольский муниципальный район","46646000"]
[208,"Подольский муниципальный район","городское поселение Львовский","46646154"]
[209,"Подольский муниципальный район","сельское поселение Вороновское","46646404"]
[210,"Подольский муниципальный район","сельское поселение Дубровицкое","46646413"]
[211,"Подольский муниципальный район","сельское поселение Кленовское","46646407"]
[212,"Подольский муниципальный район","сельское поселение Краснопахорское","46646410"]
[213,"Подольский муниципальный район","сельское поселение Лаговское","46646416"]
[214,"Подольский муниципальный район","сельское поселение Михайлово-Ярцевское","46646419"]
[215,"Подольский муниципальный район","сельское поселение Роговское","46646422"]
[216,"Подольский муниципальный район","сельское поселение Рязановское","46646425"]
[217,"Подольский муниципальный район","сельское поселение Стрелковское","46646428"]
[218,"Подольский муниципальный район","сельское поселение Щаповское","46646434"]
[219,"Пушкинский муниципальный район","Пушкинский муниципальный район","46647000"]
[220,"Пушкинский муниципальный район","городское поселение Ашукино","46647152"]
[221,"Пушкинский муниципальный район","городское поселение Зеленоградский","46647154"]
[222,"Пушкинский муниципальный район","городское поселение Лесной","46647156"]
[223,"Пушкинский муниципальный район","городское поселение Правдинский","46647158"]
[224,"Пушкинский муниципальный район","городское поселение Пушкино","46647101"]
[225,"Пушкинский муниципальный район","городское поселение Софрино","46647163"]
[226,"Пушкинский муниципальный район","городское поселение Черкизово","46647168"]
[227,"Пушкинский муниципальный район","сельское поселение Ельдигинское","46647407"]
[228,"Пушкинский муниципальный район","сельское поселение Тарасовское","46647437"]
[229,"Пушкинский муниципальный район","сельское поселение Царевское","46647443"]
[230,"Раменский муниципальный район","Раменский муниципальный район","46648000"]
[231,"Раменский муниципальный район","городское поселение Быково","46648152"]
[232,"Раменский муниципальный район","городское поселение Ильинский","46648155"]
[233,"Раменский муниципальный район","городское поселение Кратово","46648157"]
[234,"Раменский муниципальный район","городское поселение Раменское","46648101"]
[235,"Раменский муниципальный район","городское поселение Родники","46648162"]
[236,"Раменский муниципальный район","городское поселение Удельная","46648168"]
[237,"Раменский муниципальный район","сельское поселение Верейское","46648402"]
[238,"Раменский муниципальный район","сельское поселение Вялковское","46648407"]
[239,"Раменский муниципальный район","сельское поселение Ганусовское","46648410"]
[240,"Раменский муниципальный район","сельское поселение Гжельское","46648413"]
[241,"Раменский муниципальный район","сельское поселение Заболотьевское","46648422"]
[242,"Раменский муниципальный район","сельское поселение Константиновское","46648434"]
[243,"Раменский муниципальный район","сельское поселение Кузнецовское","46648443"]
[244,"Раменский муниципальный район","сельское поселение Никоновское","46648455"]
[245,"Раменский муниципальный район","сельское поселение Новохаритоновское","46648458"]
[246,"Раменский муниципальный район","сельское поселение Островецкое","46648461"]
[247,"Раменский муниципальный район","сельское поселение Рыболовское","46648470"]
[248,"Раменский муниципальный район","сельское поселение Сафоновское","46648473"]
[249,"Раменский муниципальный район","сельское поселение Софьинское","46648476"]
[250,"Раменский муниципальный район","сельское поселение Ульянинское","46648488"]
[251,"Раменский муниципальный район","сельское поселение Чулковское","46648491"]
[252,"Рузский муниципальный район","Рузский муниципальный район","46649000"]
[253,"Рузский муниципальный район","городское поселение Руза","46649101"]
[254,"Рузский муниципальный район","городское поселение Тучково","46649163"]
[255,"Рузский муниципальный район","сельское поселение Волковское","46649404"]
[256,"Рузский муниципальный район","сельское поселение Дороховское","46649428"]
[257,"Рузский муниципальный район","сельское поселение Ивановское","46649407"]
[258,"Рузский муниципальный район","сельское поселение Колюбакинское","46649402"]
[259,"Рузский муниципальный район","сельское поселение Старорузское","46649431"]
[260,"Сергиево-Посадский муниципальный район","Город Сергиев Посад","46615101"]
[261,"Сергиево-Посадский муниципальный район","Сергиево-Посадский муниципальный район","46615000"]
[262,"Сергиево-Посадский муниципальный район","городское Поселение Скоропусковский","46615161"]
[263,"Сергиево-Посадский муниципальный район","городское поселение Богородское","46615153"]
[264,"Сергиево-Посадский муниципальный район","городское поселение Краснозаводск","46615103"]
[265,"Сергиево-Посадский муниципальный район","городское поселение Пересвет","46615105"]
[266,"Сергиево-Посадский муниципальный район","городское поселение Хотьково","46615106"]
[267,"Сергиево-Посадский муниципальный район","сельское поселение Березняковское","46615406"]
[268,"Сергиево-Посадский муниципальный район","сельское поселение Васильевское","46615413"]
[269,"Сергиево-Посадский муниципальный район","сельское поселение Лозовское","46615458"]
[270,"Сергиево-Посадский муниципальный район","сельское поселение Реммаш","46615446"]
[271,"Сергиево-Посадский муниципальный район","сельское поселение Селковское","46615452"]
[272,"Сергиево-Посадский муниципальный район","сельское поселение Шеметовское","46615461"]
[273,"Серебряно-Прудский муниципальный район","Серебряно-Прудский муниципальный район","46650000"]
[274,"Серебряно-Прудский муниципальный район","городское поселение Серебряные Пруды","46650151"]
[275,"Серебряно-Прудский муниципальный район","сельское поселение Мочильское","46650409"]
[276,"Серебряно-Прудский муниципальный район","сельское поселение Узуновское","46650419"]
[277,"Серебряно-Прудский муниципальный район","сельское поселение Успенское","46650416"]
[278,"Серпуховский муниципальный район","Серпуховский муниципальный район","46651000"]
[279,"Серпуховский муниципальный район","городское поселение Пролетарский","46651154"]
[280,"Серпуховский муниципальный район","городское поселок Оболенск","46651152"]
[281,"Серпуховский муниципальный район","сельское поселение Васильевское","46651410"]
[282,"Серпуховский муниципальный район","сельское поселение Данковское","46651407"]
[283,"Серпуховский муниципальный район","сельское поселение Дашковское","46651413"]
[284,"Серпуховский муниципальный район","сельское поселение Калиновское","46651416"]
[285,"Серпуховский муниципальный район","сельское поселение Липицкое","46651422"]
[286,"Солнечногорский муниципальный район","Солнечногорский муниципальный район","46652000"]
[287,"Солнечногорский муниципальный район","городское поселение Андреевка","46652153"]
[288,"Солнечногорский муниципальный район","городское поселение Менделеево","46652158"]
[289,"Солнечногорский муниципальный район","городское поселение Поварово","46652162"]
[290,"Солнечногорский муниципальный район","городское поселение Ржавки","46652164"]
[291,"Солнечногорский муниципальный район","городское поселение Солнечногорск","46652101"]
[292,"Солнечногорский муниципальный район","сельское поселение Кривцовское","46652428"]
[293,"Солнечногорский муниципальный район","сельское поселение Кутузовское","46652422"]
[294,"Солнечногорский муниципальный район","сельское поселение Луневское","46652416"]
[295,"Солнечногорский муниципальный район","сельское поселение Пешковское","46652431"]
[296,"Солнечногорский муниципальный район","сельское поселение Смирновское","46652425"]
[297,"Солнечногорский муниципальный район","сельское поселение Соколовское","46652446"]
[298,"Ступинский муниципальный район","Ступинский муниципальный район","46653000"]
[299,"Ступинский муниципальный район","городское поселение Жилёво","46653154"]
[300,"Ступинский муниципальный район","городское поселение Малино","46653156"]
[301,"Ступинский муниципальный район","городское поселение Михнево","46653158"]
[302,"Ступинский муниципальный район","городское поселение Ступино","46653101"]
[303,"Ступинский муниципальный район","сельское поселение Аксиньинское","46653402"]
[304,"Ступинский муниципальный район","сельское поселение Леонтьевское","46653422"]
[305,"Ступинский муниципальный район","сельское поселение Семеновское","46653436"]
[306,"Талдомский муниципальный район","Талдомский муниципальный район","46654000"]
[307,"Талдомский муниципальный район","городское поселение Вербилки","46654154"]
[308,"Талдомский муниципальный район","городское поселение Запрудня","46654158"]
[309,"Талдомский муниципальный район","городское поселение Северный","46654163"]
[310,"Талдомский муниципальный район","городское поселение Талдом","46654101"]
[311,"Талдомский муниципальный район","сельское поселение Гуслевское","46654407"]
[312,"Талдомский муниципальный район","сельское поселение Ермолинское","46654410"]
[313,"Талдомский муниципальный район","сельское поселение Темповое","46654426"]
[314,"Чеховский муниципальный район","Чеховский муниципальный район","46656000"]
[315,"Чеховский муниципальный район","городское поселение Столбовая","46656155"]
[316,"Чеховский муниципальный район","городское поселение Чехов","46656101"]
[317,"Чеховский муниципальный район","сельское поселение Баранцевское","46656404"]
[318,"Чеховский муниципальный район","сельское поселение Любучанское","46656416"]
[319,"Чеховский муниципальный район","сельское поселение Стремиловское","46656428"]
[320,"Шатурский муниципальный район","Шатурский муниципальный район","46657000"]
[321,"Шатурский муниципальный район","городское поселение Мишеронский","46657163"]
[322,"Шатурский муниципальный район","городское поселение Черусти","46657187"]
[323,"Шатурский муниципальный район","городское поселение Шатура","46657101"]
[324,"Шатурский муниципальный район","сельское поселение Дмитровское","46657413"]
[325,"Шатурский муниципальный район","сельское поселение Кривандинское","46657416"]
[326,"Шатурский муниципальный район","сельское поселение Пышлицкое","46657440"]
[327,"Шатурский муниципальный район","сельское поселение Радовицкое","46657460"]
[328,"Шаховской муниципальный район","Шаховской муниципальный район","46658000"]
[329,"Шаховской муниципальный район","городское поселение Шаховская","46658151"]
[330,"Шаховской муниципальный район","сельское поселение Раменское","46658437"]
[331,"Шаховской муниципальный район","сельское поселение Серединское","46658440"]
[332,"Шаховской муниципальный район","сельское поселение Степаньковское","46658404"]
[333,"Щелковский муниципальный район","Щелковский муниципальный район","46659000"]
[334,"Щелковский муниципальный район","городское поселение Загорянский","46659152"]
[335,"Щелковский муниципальный район","городское поселение Монино","46659154"]
[336,"Щелковский муниципальный район","городское поселение Свердловский","46659158"]
[337,"Щелковский муниципальный район","городское поселение Фряново","46659163"]
[338,"Щелковский муниципальный район","городское поселение Щелково","46659101"]
[339,"Щелковский муниципальный район","сельское поселение Анискинское","46659402"]
[340,"Щелковский муниципальный район","сельское поселение Гребневское","46659407"]
[341,"Щелковский муниципальный район","сельское поселение Медвежье-Озерское","46659419"]
[342,"Щелковский муниципальный район","сельское поселение Огудневское","46659422"]
[343,"Щелковский муниципальный район","сельское поселение Трубинское","46659434"]
[344,"городкской округ Восход (ЗАТО)","Поселок Восход (ЗАТО)","46763000"]
[345,"городкской округ Восход (ЗАТО)","городкской округ Восход (ЗАТО)","46763000"]
[346,"городской округ Балашиха","Город Балашиха","46704000"]
[347,"городской округ Балашиха","городской округ Балашиха","46704000"]
[348,"городской округ Бронницы","Город Бронницы","46705000"]
[349,"городской округ Бронницы","городской округ Бронницы","46705000"]
[350,"городской округ Власиха","Городской округ Власиха","46773000"]
[351,"городской округ Власиха","городской округ Власиха","46773000"]
[352,"городской округ Дзержинский","Город Дзержинский","46711000"]
[353,"городской округ Дзержинский","городской округ Дзержинский","46711000"]
[354,"городской округ Долгопрудный","Город Долгопрудный","46716000"]
[355,"городской округ Долгопрудный","городской округ Долгопрудный","46716000"]
[356,"городской округ Домодедово","Город Домодедово","46709000"]
[357,"городской округ Домодедово","городской округ Домодедово","46709000"]
[358,"городской округ Дубна","Город Дубна","46718000"]
[359,"городской округ Дубна","городской округ Дубна","46718000"]
[360,"городской округ Железнодорожный","Город Железнодорожный","46724000"]
[361,"городской округ Железнодорожный","городской округ Железнодорожный","46724000"]
[362,"городской округ Жуковский","Город Жуковский","46725000"]
[363,"городской округ Жуковский","городской округ Жуковский","46725000"]
[364,"городской округ Звездный городок (ЗАТО)","Городской округ Звездный городок (ЗАТО)","46774001"]
[365,"городской округ Звездный городок (ЗАТО)","городской округ Звездный городок (ЗАТО)","46774000"]
[366,"городской округ Звенигород","Город Звенигород","46730000"]
[367,"городской округ Звенигород","городской округ Звенигород","46730000"]
[368,"городской округ Ивантеевка","Город Ивантеевка","46732000"]
[369,"городской округ Ивантеевка","городской округ Ивантеевка","46732000"]
[370,"городской округ Климовск","Город Климовск","46736000"]
[371,"городской округ Климовск","городской округ Климовск","46736000"]
[372,"городской округ Коломна","Город Коломна","46738000"]
[373,"городской округ Коломна","городской округ Коломна","46738000"]
[374,"городской округ Королев","Город Королев","46734000"]
[375,"городской округ Королев","городской округ Королев","46734000"]
[376,"городской округ Котельники","Город Котельники","46739000"]
[377,"городской округ Котельники","городской округ Котельники","46739000"]
[378,"городской округ Красноармейск","Город Красноармейск","46743000"]
[379,"городской округ Красноармейск","городской округ Красноармейск","46743000"]
[380,"городской округ Краснознаменск (ЗАТО)","Город Краснознаменск (ЗАТО)","46706000"]
[381,"городской округ Краснознаменск (ЗАТО)","городской округ Краснознаменск (ЗАТО)","46706000"]
[382,"городской округ Лобня","Город Лобня","46740000"]
[383,"городской округ Лобня","городской округ Лобня","46740000"]
[384,"городской округ Лосино-Петровский","Город Лосино-Петровский","46742000"]
[385,"городской округ Лосино-Петровский","городской округ Лосино-Петровский","46742000"]
[386,"городской округ Лыткарино","Город Лыткарино","46741000"]
[387,"городской округ Лыткарино","городской округ Лыткарино","46741000"]
[388,"городской округ Молодежный (ЗАТО)","Поселок Молодежный (ЗАТО)","46761000"]
[389,"городской округ Молодежный (ЗАТО)","городской округ Молодежный (ЗАТО)","46761000"]
[390,"городской округ Орехово-Зуево","Город Орехово-Зуево","46757000"]
[391,"городской округ Орехово-Зуево","городской округ Орехово-Зуево","46757000"]
[392,"городской округ Подольск","Город Подольск","46760000"]
[393,"городской округ Подольск","городской округ Подольск","46760000"]
[394,"городской округ Протвино","Город Протвино","46767000"]
[395,"городской округ Протвино","городской округ Протвино","46767000"]
[396,"городской округ Пущино","Город Пущино","46762000"]
[397,"городской округ Пущино","городской округ Пущино","46762000"]
[398,"городской округ Реутов","Город Реутов","46764000"]
[399,"городской округ Реутов","городской округ Реутов","46764000"]
[400,"городской округ Рошаль","Город Рошаль","46765000"]
[401,"городской округ Рошаль","городской округ Рошаль","46765000"]
[402,"городской округ Серпухов","Город Серпухов","46770000"]
[403,"городской округ Серпухов","городской округ Серпухов","46770000"]
[404,"городской округ Троицк","Город Троицк","46775000"]
[405,"городской округ Троицк","городской округ Троицк","46775000"]
[406,"городской округ Фрязино","Город Фрязино","46780000"]
[407,"городской округ Фрязино","городской округ Фрязино","46780000"]
[408,"городской округ Химки","Город Химки","46783000"]
[409,"городской округ Химки","городской округ Химки","46783000"]
[410,"городской округ Черноголовка","Город Черноголовка","46781000"]
[411,"городской округ Черноголовка","городской округ Черноголовка","46781000"]
[412,"городской округ Щербинка","Город Щербинка","46789000"]
[413,"городской округ Щербинка","городской округ Щербинка","46789000"]
[414,"городской округ Электрогорск","Город Электрогорск","46791000"]
[415,"городской округ Электрогорск","городской округ Электрогорск","46791000"]
[416,"городской округ Электросталь","Город Электросталь","46790000"]
[417,"городской округ Электросталь","городской округ Электросталь","46790000"]
[418,"городской округ Юбилейный","Город Юбилейный","46793000"]
[419,"городской округ Юбилейный","городской округ Юбилейный","46793000"]

{"sheet":"modfrmReestrMR","index":29,"n_rows":0,"n_cols":0,"rows_kept":0,"cut":false,"hidden":true,"merged":[]}

{"sheet":"modfrmCheckUpdates","index":30,"n_rows":0,"n_cols":0,"rows_kept":0,"cut":false,"hidden":true,"merged":[]}